{"text_format":"1","workbook":"xlsx","n_sheets":17,"sheets":["Recovery 2","Recovery 3","Investment 2","Investment 3","Investment 4","Investment 5","Investment 6","Investment 7","Investment 8","Investment 9","Investment 10","Investment 11","Investment 12","Indirect Cost Calculator","Analysis","CatDataSht","supt list 013006"],"not_rendered":{"charts":0,"images":0,"macros":1,"external_links":2,"defined_names":45,"comments":0,"pivot_tables":0},"unopened":[],"bounds":{"document_bytes":16777216,"sheet_cells":100000,"rows_first":2000,"rows_last":500,"rows_between":2000,"halvings":0,"cell_chars":16384,"cell_head_chars":4096},"cells_cut":0,"cells_raw":0,"read":"whole","date_system":"1900"}

{"sheet":"Recovery 2","index":0,"n_rows":82,"n_cols":15,"rows_kept":82,"cut":false,"hidden":true,"merged":[[23,9,23,10],[24,1,24,8],[24,9,24,10],[35,2,35,4],[22,1,22,8],[27,2,27,4],[22,9,22,10],[26,1,26,4],[28,2,28,4],[29,2,29,4],[30,2,30,4],[32,2,32,5],[33,2,33,4],[34,2,34,4],[38,2,38,3],[45,2,45,8],[39,2,39,4],[40,2,40,4],[23,1,23,8],[41,2,41,4],[5,0,5,9],[7,0,7,10],[6,0,6,10],[16,1,16,10],[18,1,18,10],[8,1,8,10],[10,1,10,10],[12,1,12,10],[15,1,15,10],[17,1,17,10],[14,0,14,10],[0,0,0,10],[2,0,2,10],[3,0,3,10],[1,0,1,10],[4,0,4,10],[81,2,81,4],[65,2,65,4],[69,3,69,5],[72,3,72,5],[77,2,77,6],[71,3,71,4],[73,3,73,4],[79,2,79,5],[70,3,70,4],[74,3,74,5],[75,3,75,4],[9,1,9,10],[11,1,11,10],[13,1,13,10],[80,2,80,4],[64,2,64,4],[63,2,63,4],[36,2,36,4],[58,2,58,5],[44,2,44,9],[59,2,59,5],[21,1,21,8],[20,1,20,8],[20,9,20,10],[21,9,21,10],[60,2,60,5],[42,2,42,4]]}
["Name of Grant Program: The American Recovery and Reinvestment Act: Saving and Creating Jobs and Reforming Education (ARRA) - IDEA                                                                                                                               Fund Code:  760"]
["ARRA Purpose:  The overall purposes of the ARRA federal grant programs are to fund activities that will advance ARRA’s short-term economic goals by investing quickly to save and create jobs, and to fund activities that support ARRA’s long-term economic goals by investing wisely, funding activities designed to strengthen education, drive reforms, and improve results for students.  \n \nARRA - IDEA Purpose:\nActivities funded through the ARRA - IDEA grant must be designed to help to ensure that students with disabilities have access to a free and appropriate education (FAPE) to meet each student’s unique needs and to prepare each student for further education, employment, and independent living.  \n"]
["Recovery "]
["Under this priority, districts may consider using funds to advance ARRA’s short-term economic goals by investing quickly to save jobs and improve student achievement.  \n\n"]
["REQUIRED PROGRAM INFORMATION - NARRATIVE COMPONENT"]
["Listed below are the required components in the order that they must appear in the proposal."]
["Each application must include information on the following items."]
["Recovery Activity I - Save Jobs and Improve Student Achievement"]
["A.","Describe the identified recovery activities. Provide a timeline for the fund use."]
[]
["B.","Describe the types of services and programmatic components that will benefit from the identified fund use."]
[]
["C.","Indicate how many jobs will be saved as a result of these funds."]
[]
["Recovery Activity II - Other"]
["A.","Describe the identified recovery activities.  Provide a timeline for the fund use."]
[]
["B.","Describe the types of services and programmatic components that will benefit from the identified fund use. "]
[]
[]
[null,"A.  Amount of Federal Special Education ARRA funds.  ",null,null,null,null,null,null,null,{"$f":"#REF!","v":{"$error":"#REF!"}}]
[null,"Districts are encouraged to use their ARRA - IDEA funds on strategic investments that will help further progress and that will provide ongoing benefits and/or cost savings beyond the expiration of the ARRA funding.  As a guide, it is suggested that districts use no more than 50% of the funds for recovery activities. SEE 50% AMOUNT TO THE RIGHT                     →",null,null,null,null,null,null,null,{"$f":"J21*0.5","v":{"$error":"#REF!"}}]
[null,"B. Indicate the TOTAL FEDERAL SPECIAL EDUCATION ARRA FUNDS THAT WILL BE USED FOR RECOVERY.  The amount entered in Line B CANNOT be greater than Line A."]
[null,"C.  Total Amount Requested for Recovery \n(Auto calculation)",null,null,null,null,null,null,null,{"$f":"#REF!","v":{"$error":"#REF!"}}]
[null,"D.  Total Amount Requested for Investment \n(Auto calculation)",null,null,null,null,null,null,null,{"$f":"#REF!","v":{"$error":"#REF!"}}]
[]
["ll.","ALLOCATION OF FUNDS",null,null,null,null,null,"# of staff","FTE","MTRS","Amount"]
[null,1,"Administrators:"]
[null,null,"Supervisor/Director",null,null,null,null,null,null,null,null,null,null,false,{"$f":"IF(N29,K29,0)","v":0}]
[null,null,"Project Coordinator",null,null,null,null,null,null,null,null,null,null,false,{"$f":"IF(N30,K30,0)","v":0}]
[null,null,"Stipends",null,null,null,null,null,null,null,null,null,null,false,{"$f":"IF(N31,K31,0)","v":0}]
[null,null,null,null,null,null,null,null,null,null,null,null,null,null,{"$f":"SUM(O29:O31)","v":0}]
[null,2,"Instructional/Professional Staff:"]
[null,null,null,null,null,null,null,null,null,null,null,null,null,false,{"$f":"IF(N34,K34,0)","v":0}]
[null,null,null,null,null,null,null,null,null,null,null,null,null,false,{"$f":"IF(N35,K35,0)","v":0}]
[null,null,null,null,null,null,null,null,null,null,null,null,null,false,{"$f":"IF(N36,K36,0)","v":0}]
[null,null,"stipends",null,null,null,null,null,null,null,null,null,null,false,{"$f":"IF(N37,K37,0)","v":0}]
[null,null,null,null,null,null,null,null,null,null,null,null,null,null,{"$f":"SUM(O34:O37)","v":0}]
[null,3,"Support Staff"]
[null,null,"Aides/Paraprofessionals",null,null,null,null,null,null,null,null,null,null,false,{"$f":"IF(N40,K40,0)","v":0}]
[null,null,"Secretary/Bookkeeper",null,null,null,null,null,null,null,null,null,null,false,{"$f":"IF(N41,K41,0)","v":0}]
[null,null,"Other",null,null,null,null,null,null,null,null,null,null,false,{"$f":"IF(N42,K42,0)","v":0}]
[null,null,"Stipends",null,null,null,null,null,null,null,null,null,null,false,{"$f":"IF(N43,K43,0)","v":0}]
[null,null,null,null,null,null,null,null,null,null,null,null,null,null,{"$f":"SUM(O40:O43)","v":0}]
[null,4,"Fringe Benefits:  Other Fringe Benefits to be completed on budget pages"]
[null,null,"4-a   MTRS ",null,null,null,null,null,null,null,{"$f":"ROUND((O32+O38+O44)*0.09, 0)","v":0}]
[null,null,"4-b   OTHER FRINGE BENEFITS (Other retirement systems, health insurance, FICA)"]
[]
[null,5,"Contractual Services ",null,null,null,null,"Rate ($)","Hour/Day"]
[null,null,null,"Consultants"]
[null,null,null,"Specialists"]
[null,null,null,"Instructors"]
[null,null,null,"Speakers"]
[null,null,null,"Substitutes"]
[null,null,null,"Supplemental Services - Contracted Provider"]
[null,null,null,"Other"]
[]
[null,6,"Supplies and Materials ",null,null,null,null,null,null,null,"Amount"]
[null,null,"Textbooks and Instructional Materials"]
[null,null,"Instructional Technology including Software"]
[null,null,"Non-instructional Supplies"]
[]
[null,7,"Travel:  Mileage, conference registration, hotel and meals"]
[null,null,"Supervisory Staff"]
[null,null,"Instructional Staff"]
[null,null,"Other"]
[]
[null,8,"Other Costs "]
[null,null,null,"Advertising"]
[null,null,null,"Maintenance/Repairs"]
[null,null,null,"Rental of Space"]
[null,null,null,"Rental of Equipment"]
[null,null,null,"Transportation of Students"]
[null,null,null,"Telephone/Utilities"]
[null,null,null,"Memberships/Subscriptions"]
[null,null,null,"Printing/Reproduction"]
[]
[null,9,"INDIRECT COSTS - to be entered on budget pages"]
[]
[null,10,"EQUIPMENT:"]
[null,null,"Instructional Equipment"]
[null,null,"Non-instructional Equipment"]

{"sheet":"Recovery 3","index":1,"n_rows":82,"n_cols":15,"rows_kept":82,"cut":false,"hidden":true,"merged":[[81,2,81,4],[65,2,65,4],[69,3,69,5],[72,3,72,5],[77,2,77,6],[71,3,71,4],[73,3,73,4],[79,2,79,5],[74,3,74,5],[75,3,75,4],[80,2,80,4],[70,3,70,4],[32,2,32,5],[33,2,33,4],[45,2,45,8],[64,2,64,4],[63,2,63,4],[58,2,58,5],[42,2,42,4],[41,2,41,4],[36,2,36,4],[34,2,34,4],[35,2,35,4],[44,2,44,9],[59,2,59,5],[60,2,60,5],[15,1,15,10],[0,0,0,10],[2,0,2,10],[3,0,3,10],[1,0,1,10],[40,2,40,4],[16,1,16,10],[18,1,18,10],[24,9,24,10],[22,1,22,8],[21,9,21,10],[17,1,17,10],[39,2,39,4],[23,1,23,8],[24,1,24,8],[27,2,27,4],[23,9,23,10],[22,9,22,10],[26,1,26,4],[29,2,29,4],[30,2,30,4],[28,2,28,4],[38,2,38,3],[21,1,21,8],[20,1,20,8],[4,0,4,10],[5,0,5,9],[7,0,7,10],[6,0,6,10],[20,9,20,10],[8,1,8,10],[10,1,10,10],[12,1,12,10],[9,1,9,10],[14,0,14,10],[11,1,11,10],[13,1,13,10]]}
["Name of Grant Program: The American Recovery and Reinvestment Act: Saving and Creating Jobs and Reforming Education (ARRA) - IDEA                                                                                                                               Fund Code:  760"]
["ARRA Purpose:  The overall purposes of the ARRA federal grant programs are to fund activities that will advance ARRA’s short-term economic goals by investing quickly to save and create jobs, and to fund activities that support ARRA’s long-term economic goals by investing wisely, funding activities designed to strengthen education, drive reforms, and improve results for students.  \n \nARRA - IDEA Purpose:\nActivities funded through the ARRA - IDEA grant must be designed to help to ensure that students with disabilities have access to a free and appropriate education (FAPE) to meet each student’s unique needs and to prepare each student for further education, employment, and independent living.  \n"]
["Recovery "]
["Under this priority, districts may consider using funds to advance ARRA’s short-term economic goals by investing quickly to save jobs and improve student achievement.  \n\n"]
["REQUIRED PROGRAM INFORMATION - NARRATIVE COMPONENT"]
["Listed below are the required components in the order that they must appear in the proposal."]
["Each application must include information on the following items."]
["Recovery Activity I - Save Jobs and Improve Student Achievement"]
["A.","Describe the identified recovery activities. Provide a timeline for the fund use."]
[]
["B.","Describe the types of services and programmatic components that will benefit from the identified fund use."]
[]
["C.","Indicate how many jobs will be saved as a result of these funds."]
[]
["Recovery Activity II - Other"]
["A.","Describe the identified recovery activities.  Provide a timeline for the fund use."]
[]
["B.","Describe the types of services and programmatic components that will benefit from the identified fund use. "]
[]
[]
[null,"A.  Amount of Federal Special Education ARRA funds.  ",null,null,null,null,null,null,null,{"$f":"#REF!","v":{"$error":"#REF!"}}]
[null,"Districts are encouraged to use their ARRA - IDEA funds on strategic investments that will help further progress and that will provide ongoing benefits and/or cost savings beyond the expiration of the ARRA funding.  As a guide, it is suggested that districts use no more than 50% of the funds for recovery activities. SEE 50% AMOUNT TO THE RIGHT                     →",null,null,null,null,null,null,null,{"$f":"J21*0.5","v":{"$error":"#REF!"}}]
[null,"B. Indicate the TOTAL FEDERAL SPECIAL EDUCATION ARRA FUNDS THAT WILL BE USED FOR RECOVERY.  The amount entered in Line B CANNOT be greater than Line A."]
[null,"C.  Total Amount Requested for Recovery \n(Auto calculation)",null,null,null,null,null,null,null,{"$f":"#REF!","v":{"$error":"#REF!"}}]
[null,"D.  Total Amount Requested for Investment \n(Auto calculation)",null,null,null,null,null,null,null,{"$f":"#REF!","v":{"$error":"#REF!"}}]
[]
["ll.","ALLOCATION OF FUNDS",null,null,null,null,null,"# of staff","FTE","MTRS","Amount"]
[null,1,"Administrators:"]
[null,null,"Supervisor/Director",null,null,null,null,null,null,null,null,null,null,false,{"$f":"IF(N29,K29,0)","v":0}]
[null,null,"Project Coordinator",null,null,null,null,null,null,null,null,null,null,false,{"$f":"IF(N30,K30,0)","v":0}]
[null,null,"Stipends",null,null,null,null,null,null,null,null,null,null,false,{"$f":"IF(N31,K31,0)","v":0}]
[null,null,null,null,null,null,null,null,null,null,null,null,null,null,{"$f":"SUM(O29:O31)","v":0}]
[null,2,"Instructional/Professional Staff:"]
[null,null,null,null,null,null,null,null,null,null,null,null,null,false,{"$f":"IF(N34,K34,0)","v":0}]
[null,null,null,null,null,null,null,null,null,null,null,null,null,false,{"$f":"IF(N35,K35,0)","v":0}]
[null,null,null,null,null,null,null,null,null,null,null,null,null,false,{"$f":"IF(N36,K36,0)","v":0}]
[null,null,"stipends",null,null,null,null,null,null,null,null,null,null,false,{"$f":"IF(N37,K37,0)","v":0}]
[null,null,null,null,null,null,null,null,null,null,null,null,null,null,{"$f":"SUM(O34:O37)","v":0}]
[null,3,"Support Staff"]
[null,null,"Aides/Paraprofessionals",null,null,null,null,null,null,null,null,null,null,false,{"$f":"IF(N40,K40,0)","v":0}]
[null,null,"Secretary/Bookkeeper",null,null,null,null,null,null,null,null,null,null,false,{"$f":"IF(N41,K41,0)","v":0}]
[null,null,"Other",null,null,null,null,null,null,null,null,null,null,false,{"$f":"IF(N42,K42,0)","v":0}]
[null,null,"Stipends",null,null,null,null,null,null,null,null,null,null,false,{"$f":"IF(N43,K43,0)","v":0}]
[null,null,null,null,null,null,null,null,null,null,null,null,null,null,{"$f":"SUM(O40:O43)","v":0}]
[null,4,"Fringe Benefits:  Other Fringe Benefits to be completed on budget pages"]
[null,null,"4-a   MTRS ",null,null,null,null,null,null,null,{"$f":"ROUND((O32+O38+O44)*0.09, 0)","v":0}]
[null,null,"4-b   OTHER FRINGE BENEFITS (Other retirement systems, health insurance, FICA)"]
[]
[null,5,"Contractual Services ",null,null,null,null,"Rate ($)","Hour/Day"]
[null,null,null,"Consultants"]
[null,null,null,"Specialists"]
[null,null,null,"Instructors"]
[null,null,null,"Speakers"]
[null,null,null,"Substitutes"]
[null,null,null,"Supplemental Services - Contracted Provider"]
[null,null,null,"Other"]
[]
[null,6,"Supplies and Materials ",null,null,null,null,null,null,null,"Amount"]
[null,null,"Textbooks and Instructional Materials"]
[null,null,"Instructional Technology including Software"]
[null,null,"Non-instructional Supplies"]
[]
[null,7,"Travel:  Mileage, conference registration, hotel and meals"]
[null,null,"Supervisory Staff"]
[null,null,"Instructional Staff"]
[null,null,"Other"]
[]
[null,8,"Other Costs "]
[null,null,null,"Advertising"]
[null,null,null,"Maintenance/Repairs"]
[null,null,null,"Rental of Space"]
[null,null,null,"Rental of Equipment"]
[null,null,null,"Transportation of Students"]
[null,null,null,"Telephone/Utilities"]
[null,null,null,"Memberships/Subscriptions"]
[null,null,null,"Printing/Reproduction"]
[]
[null,9,"INDIRECT COSTS - to be entered on budget pages"]
[]
[null,10,"EQUIPMENT:"]
[null,null,"Instructional Equipment"]
[null,null,"Non-instructional Equipment"]

{"sheet":"Investment 2","index":2,"n_rows":85,"n_cols":15,"rows_kept":85,"cut":false,"hidden":true,"merged":[[0,0,0,11],[4,1,4,11],[15,1,15,11],[16,1,16,11],[1,0,1,11],[5,0,5,11],[2,0,2,11],[8,1,8,3],[6,1,6,11],[7,1,7,11],[8,4,8,10],[18,1,18,11],[19,1,19,11],[38,2,38,4],[28,1,28,11],[21,1,21,11],[22,1,22,11],[23,1,23,11],[20,1,20,11],[86,4,86,7],[29,1,29,4],[41,2,41,3],[42,2,42,4],[43,2,43,4],[44,2,44,4],[47,2,47,9],[45,2,45,4],[37,2,37,4],[68,2,68,4],[39,2,39,4],[83,2,83,4],[84,2,84,4],[30,2,30,4],[31,2,31,4],[32,2,32,4],[33,2,33,4],[35,2,35,5],[36,2,36,4],[48,2,48,8],[77,3,77,5],[78,3,78,4],[62,2,62,5],[63,2,63,5],[66,2,66,4],[67,2,67,4],[61,2,61,5],[82,2,82,5],[72,3,72,5],[75,3,75,5],[80,2,80,6],[74,3,74,4],[73,3,73,4],[76,3,76,4],[9,1,9,11],[25,1,25,11],[26,1,26,11],[27,1,27,11],[10,1,10,11],[11,1,11,11],[12,1,12,11],[13,1,13,11],[14,1,14,11],[17,1,17,11],[24,1,24,11]]}
["Name of Grant Program: The American Recovery and Reinvestment Act: Saving and Creating Jobs and Reforming Education (ARRA) - IDEA American Recovery and Reinvestment Act                                                                                                                            Fund Code:  760"]
["Investment "]
["ARRA Purpose:  The overall purposes of the ARRA federal grant programs are to fund activities that will advance ARRA’s short-term economic goals by investing quickly to save and create jobs, and to fund activities that support ARRA’s long-term economic goals by investing wisely, funding activities designed to strengthen education, drive reforms, and improve results for students.  \n \nARRA - IDEA Purpose:\nActivities funded through the ARRA - IDEA grant must be designed to help to ensure that students with disabilities have access to a free and appropriate education (FAPE) to meet each student’s unique needs and to prepare each student for further education, employment, and independent living.  ",null,null,null,null,null,null,null,null,null,null,null,1]
["\n "]
[null,{"$f":"VLOOKUP(M3,CatDataSht!A1:C5,3,FALSE)","v":0}]
["REQUIRED PROGRAM INFORMATION - NARRATIVE COMPONENT"]
[]
[]
[null,"Name of Activity: Identify new or continuation activity"]
[null,"For each initiative proposed, answer all of the following questions."]
["1)","Activity Description: (Project plan / Evaluation mechanisms)\n\n"]
[null,"a) If this is a new FY11 activity, identify and describe the proposed activity.  If the activity is a continuation from FY10 to FY11, provide a brief description of the activity."]
[]
[null,"b) If this is a new FY11 activity, identify the specific gaps or weaknesses that will be addressed through this activity.  (If the activity is a continuation from FY10 to FY11, please go to question c)."]
[]
[null,"c) For new or continuation activities, outline the steps for implementation, including proposed timeline."]
[]
[null,"d) For new or continuation activities, describe i) how the district will assess the implementation and impact of the activity; and ii) how the district will periodically use this information to guide decisions regarding this activity."]
[]
["2)","Integration/Alignment: (Alignment with district strategic plan / Leveraging district and regional resources) "]
[null,"a) For new FY11 activities, describe how the proposed activity is aligned with existing activities and improvement strategies within the district (e.g., the district strategic plan).  If this is a continuation activity, go to question b)."]
[]
[null,"b) For new or continuation activities, describe how the district plans to coordinate the funds for this activity with other ARRA or regular entitlement funds or through regional/collaborative approaches to service delivery. "]
[]
["3)","Lasting Benefits: (Building new capacity / Sustainability and benefits beyond the grant period)"]
[null,"a) For new or continuation activities, describe the anticipated long term benefits that will result from the proposed activity.  Provide information on how the activity will:\n     • improve results for students with disabilities; \n     • increase teacher competencies; and/or \n     • result in systems change beyond the grant period.  \n"]
[]
[null,"b) For new or continuation activities, describe how the activity, or its benefits, will be sustained beyond the grant period.  "]
[]
["ll.","ALLOCATION OF FUNDS",null,null,null,null,null,"# of staff","FTE","MTRS","Amount"]
[null,1,"Administrators:"]
[null,null,"Supervisor/Director",null,null,null,null,null,null,null,null,null,null,false,{"$f":"IF(N32,K32,0)","v":0}]
[null,null,"Project Coordinator",null,null,null,null,null,null,null,null,null,null,false,{"$f":"IF(N33,K33,0)","v":0}]
[null,null,"Stipends",null,null,null,null,null,null,null,null,null,null,false,{"$f":"IF(N34,K34,0)","v":0}]
[null,null,null,null,null,null,null,null,null,null,null,null,null,null,{"$f":"SUM(O32:O34)","v":0}]
[null,2,"Instructional/Professional Staff:"]
[null,null,null,null,null,null,null,null,null,null,null,null,null,false,{"$f":"IF(N37,K37,0)","v":0}]
[null,null,null,null,null,null,null,null,null,null,null,null,null,false,{"$f":"IF(N38,K38,0)","v":0}]
[null,null,null,null,null,null,null,null,null,null,null,null,null,false,{"$f":"IF(N39,K39,0)","v":0}]
[null,null,"stipends",null,null,null,null,null,null,null,null,null,null,false,{"$f":"IF(N40,K40,0)","v":0}]
[null,null,null,null,null,null,null,null,null,null,null,null,null,null,{"$f":"SUM(O37:O40)","v":0}]
[null,3,"Support Staff"]
[null,null,"Aides/Paraprofessionals",null,null,null,null,null,null,null,null,null,null,false,{"$f":"IF(N43,K43,0)","v":0}]
[null,null,"Secretary/Bookkeeper",null,null,null,null,null,null,null,null,null,null,false,{"$f":"IF(N44,K44,0)","v":0}]
[null,null,"Other",null,null,null,null,null,null,null,null,null,null,false,{"$f":"IF(N45,K45,0)","v":0}]
[null,null,"Stipends",null,null,null,null,null,null,null,null,null,null,false,{"$f":"IF(N46,K46,0)","v":0}]
[null,null,null,null,null,null,null,null,null,null,null,null,null,null,{"$f":"SUM(O43:O46)","v":0}]
[null,4,"Fringe Benefits:  Other Fringe Benefits to be completed on budget pages"]
[null,null,"4-a   MTRS ",null,null,null,null,null,null,null,{"$f":"ROUND((O35+O41+O47)*0.09, 0)","v":0}]
[null,null,"4-b   OTHER FRINGE BENEFITS (Other retirement systems, health insurance, FICA)"]
[]
[null,5,"Contractual Services ",null,null,null,null,"Rate ($)","Hour/Day"]
[null,null,null,"Consultants"]
[null,null,null,"Specialists"]
[null,null,null,"Instructors"]
[null,null,null,"Speakers"]
[null,null,null,"Substitutes"]
[null,null,null,"Supplemental Services - Contracted Provider"]
[null,null,null,"Other"]
[]
[null,6,"Supplies and Materials ",null,null,null,null,null,null,null,"Amount"]
[null,null,"Textbooks and Instructional Materials"]
[null,null,"Instructional Technology including Software"]
[null,null,"Non-instructional Supplies"]
[]
[null,7,"Travel:  Mileage, conference registration, hotel and meals"]
[null,null,"Supervisory Staff"]
[null,null,"Instructional Staff"]
[null,null,"Other"]
[]
[null,8,"Other Costs "]
[null,null,null,"Advertising"]
[null,null,null,"Maintenance/Repairs"]
[null,null,null,"Rental of Space"]
[null,null,null,"Rental of Equipment"]
[null,null,null,"Transportation of Students"]
[null,null,null,"Telephone/Utilities"]
[null,null,null,"Memberships/Subscriptions"]
[null,null,null,"Printing/Reproduction"]
[]
[null,9,"INDIRECT COSTS - to be entered on budget pages"]
[]
[null,10,"EQUIPMENT:"]
[null,null,"Instructional Equipment"]
[null,null,"Non-instructional Equipment"]

{"sheet":"Investment 3","index":3,"n_rows":85,"n_cols":15,"rows_kept":85,"cut":false,"hidden":true,"merged":[[33,2,33,4],[35,2,35,5],[36,2,36,4],[68,2,68,4],[66,2,66,4],[67,2,67,4],[48,2,48,8],[42,2,42,4],[43,2,43,4],[29,1,29,4],[82,2,82,5],[72,3,72,5],[75,3,75,5],[80,2,80,6],[74,3,74,4],[73,3,73,4],[76,3,76,4],[77,3,77,5],[41,2,41,3],[30,2,30,4],[31,2,31,4],[37,2,37,4],[38,2,38,4],[39,2,39,4],[32,2,32,4],[86,4,86,7],[44,2,44,4],[47,2,47,9],[45,2,45,4],[78,3,78,4],[62,2,62,5],[63,2,63,5],[83,2,83,4],[84,2,84,4],[61,2,61,5],[28,1,28,11],[19,1,19,11],[0,0,0,11],[4,1,4,11],[7,1,7,11],[8,1,8,3],[1,0,1,11],[5,0,5,11],[10,1,10,11],[11,1,11,11],[12,1,12,11],[13,1,13,11],[14,1,14,11],[15,1,15,11],[27,1,27,11],[20,1,20,11],[21,1,21,11],[22,1,22,11],[23,1,23,11],[24,1,24,11],[25,1,25,11],[26,1,26,11],[18,1,18,11],[2,0,2,11],[6,1,6,11],[8,4,8,10],[9,1,9,11],[16,1,16,11],[17,1,17,11]]}
["Name of Grant Program: The American Recovery and Reinvestment Act: Saving and Creating Jobs and Reforming Education (ARRA) - IDEA American Recovery and Reinvestment Act                                                                                                                            Fund Code:  760"]
["Investment "]
["ARRA Purpose:  The overall purposes of the ARRA federal grant programs are to fund activities that will advance ARRA’s short-term economic goals by investing quickly to save and create jobs, and to fund activities that support ARRA’s long-term economic goals by investing wisely, funding activities designed to strengthen education, drive reforms, and improve results for students.  \n \nARRA - IDEA Purpose:\nActivities funded through the ARRA - IDEA grant must be designed to help to ensure that students with disabilities have access to a free and appropriate education (FAPE) to meet each student’s unique needs and to prepare each student for further education, employment, and independent living.  ",null,null,null,null,null,null,null,null,null,null,null,1]
["\n "]
[null,{"$f":"VLOOKUP(M3,CatDataSht!A1:C5,3,FALSE)","v":0}]
["REQUIRED PROGRAM INFORMATION - NARRATIVE COMPONENT"]
[]
[]
[null,"Name of Activity: Identify new or continuation activity"]
[null,"For each initiative proposed, answer all of the following questions."]
["1)","Activity Description: (Project plan / Evaluation mechanisms)\n\n"]
[null,"a) If this is a new FY11 activity, identify and describe the proposed activity.  If the activity is a continuation from FY10 to FY11, provide a brief description of the activity."]
[]
[null,"b) If this is a new FY11 activity, identify the specific gaps or weaknesses that will be addressed through this activity.  (If the activity is a continuation from FY10 to FY11, please go to question c)."]
[]
[null,"c) For new or continuation activities, outline the steps for implementation, including proposed timeline."]
[]
[null,"d) For new or continuation activities, describe i) how the district will assess the implementation and impact of the activity; and ii) how the district will periodically use this information to guide decisions regarding this activity."]
[]
["2)","Integration/Alignment: (Alignment with district strategic plan / Leveraging district and regional resources) "]
[null,"a) For new FY11 activities, describe how the proposed activity is aligned with existing activities and improvement strategies within the district (e.g., the district strategic plan).  If this is a continuation activity, go to question b)."]
[]
[null,"b) For new or continuation activities, describe how the district plans to coordinate the funds for this activity with other ARRA or regular entitlement funds or through regional/collaborative approaches to service delivery. "]
[]
["3)","Lasting Benefits: (Building new capacity / Sustainability and benefits beyond the grant period)"]
[null,"a) For new or continuation activities, describe the anticipated long term benefits that will result from the proposed activity.  Provide information on how the activity will:\n     • improve results for students with disabilities; \n     • increase teacher competencies; and/or \n     • result in systems change beyond the grant period.  \n"]
[]
[null,"b) For new or continuation activities, describe how the activity, or its benefits, will be sustained beyond the grant period.  "]
[]
["ll.","ALLOCATION OF FUNDS",null,null,null,null,null,"# of staff","FTE","MTRS","Amount"]
[null,1,"Administrators:"]
[null,null,"Supervisor/Director",null,null,null,null,null,null,null,null,null,null,false,{"$f":"IF(N32,K32,0)","v":0}]
[null,null,"Project Coordinator",null,null,null,null,null,null,null,null,null,null,false,{"$f":"IF(N33,K33,0)","v":0}]
[null,null,"Stipends",null,null,null,null,null,null,null,null,null,null,false,{"$f":"IF(N34,K34,0)","v":0}]
[null,null,null,null,null,null,null,null,null,null,null,null,null,null,{"$f":"SUM(O32:O34)","v":0}]
[null,2,"Instructional/Professional Staff:"]
[null,null,null,null,null,null,null,null,null,null,null,null,null,false,{"$f":"IF(N37,K37,0)","v":0}]
[null,null,null,null,null,null,null,null,null,null,null,null,null,false,{"$f":"IF(N38,K38,0)","v":0}]
[null,null,null,null,null,null,null,null,null,null,null,null,null,false,{"$f":"IF(N39,K39,0)","v":0}]
[null,null,"stipends",null,null,null,null,null,null,null,null,null,null,false,{"$f":"IF(N40,K40,0)","v":0}]
[null,null,null,null,null,null,null,null,null,null,null,null,null,null,{"$f":"SUM(O37:O40)","v":0}]
[null,3,"Support Staff"]
[null,null,"Aides/Paraprofessionals",null,null,null,null,null,null,null,null,null,null,false,{"$f":"IF(N43,K43,0)","v":0}]
[null,null,"Secretary/Bookkeeper",null,null,null,null,null,null,null,null,null,null,false,{"$f":"IF(N44,K44,0)","v":0}]
[null,null,"Other",null,null,null,null,null,null,null,null,null,null,false,{"$f":"IF(N45,K45,0)","v":0}]
[null,null,"Stipends",null,null,null,null,null,null,null,null,null,null,false,{"$f":"IF(N46,K46,0)","v":0}]
[null,null,null,null,null,null,null,null,null,null,null,null,null,null,{"$f":"SUM(O43:O46)","v":0}]
[null,4,"Fringe Benefits:  Other Fringe Benefits to be completed on budget pages"]
[null,null,"4-a   MTRS ",null,null,null,null,null,null,null,{"$f":"ROUND((O35+O41+O47)*0.09, 0)","v":0}]
[null,null,"4-b   OTHER FRINGE BENEFITS (Other retirement systems, health insurance, FICA)"]
[]
[null,5,"Contractual Services ",null,null,null,null,"Rate ($)","Hour/Day"]
[null,null,null,"Consultants"]
[null,null,null,"Specialists"]
[null,null,null,"Instructors"]
[null,null,null,"Speakers"]
[null,null,null,"Substitutes"]
[null,null,null,"Supplemental Services - Contracted Provider"]
[null,null,null,"Other"]
[]
[null,6,"Supplies and Materials ",null,null,null,null,null,null,null,"Amount"]
[null,null,"Textbooks and Instructional Materials"]
[null,null,"Instructional Technology including Software"]
[null,null,"Non-instructional Supplies"]
[]
[null,7,"Travel:  Mileage, conference registration, hotel and meals"]
[null,null,"Supervisory Staff"]
[null,null,"Instructional Staff"]
[null,null,"Other"]
[]
[null,8,"Other Costs "]
[null,null,null,"Advertising"]
[null,null,null,"Maintenance/Repairs"]
[null,null,null,"Rental of Space"]
[null,null,null,"Rental of Equipment"]
[null,null,null,"Transportation of Students"]
[null,null,null,"Telephone/Utilities"]
[null,null,null,"Memberships/Subscriptions"]
[null,null,null,"Printing/Reproduction"]
[]
[null,9,"INDIRECT COSTS - to be entered on budget pages"]
[]
[null,10,"EQUIPMENT:"]
[null,null,"Instructional Equipment"]
[null,null,"Non-instructional Equipment"]

{"sheet":"Investment 4","index":4,"n_rows":85,"n_cols":15,"rows_kept":85,"cut":false,"hidden":true,"merged":[[74,3,74,4],[73,3,73,4],[76,3,76,4],[67,2,67,4],[61,2,61,5],[83,2,83,4],[84,2,84,4],[30,2,30,4],[31,2,31,4],[32,2,32,4],[33,2,33,4],[35,2,35,5],[36,2,36,4],[37,2,37,4],[68,2,68,4],[82,2,82,5],[72,3,72,5],[75,3,75,5],[80,2,80,6],[38,2,38,4],[39,2,39,4],[86,4,86,7],[29,1,29,4],[41,2,41,3],[42,2,42,4],[43,2,43,4],[44,2,44,4],[47,2,47,9],[45,2,45,4],[48,2,48,8],[77,3,77,5],[78,3,78,4],[62,2,62,5],[63,2,63,5],[66,2,66,4],[13,1,13,11],[1,0,1,11],[5,0,5,11],[2,0,2,11],[7,1,7,11],[6,1,6,11],[8,1,8,3],[8,4,8,10],[0,0,0,11],[4,1,4,11],[10,1,10,11],[11,1,11,11],[12,1,12,11],[26,1,26,11],[27,1,27,11],[28,1,28,11],[9,1,9,11],[22,1,22,11],[23,1,23,11],[24,1,24,11],[25,1,25,11],[18,1,18,11],[19,1,19,11],[20,1,20,11],[21,1,21,11],[14,1,14,11],[15,1,15,11],[16,1,16,11],[17,1,17,11]]}
["Name of Grant Program: The American Recovery and Reinvestment Act: Saving and Creating Jobs and Reforming Education (ARRA) - IDEA American Recovery and Reinvestment Act                                                                                                                            Fund Code:  760"]
["Investment "]
["ARRA Purpose:  The overall purposes of the ARRA federal grant programs are to fund activities that will advance ARRA’s short-term economic goals by investing quickly to save and create jobs, and to fund activities that support ARRA’s long-term economic goals by investing wisely, funding activities designed to strengthen education, drive reforms, and improve results for students.  \n \nARRA - IDEA Purpose:\nActivities funded through the ARRA - IDEA grant must be designed to help to ensure that students with disabilities have access to a free and appropriate education (FAPE) to meet each student’s unique needs and to prepare each student for further education, employment, and independent living.  ",null,null,null,null,null,null,null,null,null,null,null,1]
["\n "]
[null,{"$f":"VLOOKUP(M3,CatDataSht!A1:C5,3,FALSE)","v":0}]
["REQUIRED PROGRAM INFORMATION - NARRATIVE COMPONENT"]
[]
[]
[null,"Name of Activity: Identify new or continuation activity"]
[null,"For each initiative proposed, answer all of the following questions."]
["1)","Activity Description: (Project plan / Evaluation mechanisms)\n\n"]
[null,"a) If this is a new FY11 activity, identify and describe the proposed activity.  If the activity is a continuation from FY10 to FY11, provide a brief description of the activity."]
[]
[null,"b) If this is a new FY11 activity, identify the specific gaps or weaknesses that will be addressed through this activity.  (If the activity is a continuation from FY10 to FY11, please go to question c)."]
[]
[null,"c) For new or continuation activities, outline the steps for implementation, including proposed timeline."]
[]
[null,"d) For new or continuation activities, describe i) how the district will assess the implementation and impact of the activity; and ii) how the district will periodically use this information to guide decisions regarding this activity."]
[]
["2)","Integration/Alignment: (Alignment with district strategic plan / Leveraging district and regional resources) "]
[null,"a) For new FY11 activities, describe how the proposed activity is aligned with existing activities and improvement strategies within the district (e.g., the district strategic plan).  If this is a continuation activity, go to question b)."]
[]
[null,"b) For new or continuation activities, describe how the district plans to coordinate the funds for this activity with other ARRA or regular entitlement funds or through regional/collaborative approaches to service delivery. "]
[]
["3)","Lasting Benefits: (Building new capacity / Sustainability and benefits beyond the grant period)"]
[null,"a) For new or continuation activities, describe the anticipated long term benefits that will result from the proposed activity.  Provide information on how the activity will:\n     • improve results for students with disabilities; \n     • increase teacher competencies; and/or \n     • result in systems change beyond the grant period.  \n"]
[]
[null,"b) For new or continuation activities, describe how the activity, or its benefits, will be sustained beyond the grant period.  "]
[]
["ll.","ALLOCATION OF FUNDS",null,null,null,null,null,"# of staff","FTE","MTRS","Amount"]
[null,1,"Administrators:"]
[null,null,"Supervisor/Director",null,null,null,null,null,null,null,null,null,null,false,{"$f":"IF(N32,K32,0)","v":0}]
[null,null,"Project Coordinator",null,null,null,null,null,null,null,null,null,null,false,{"$f":"IF(N33,K33,0)","v":0}]
[null,null,"Stipends",null,null,null,null,null,null,null,null,null,null,false,{"$f":"IF(N34,K34,0)","v":0}]
[null,null,null,null,null,null,null,null,null,null,null,null,null,null,{"$f":"SUM(O32:O34)","v":0}]
[null,2,"Instructional/Professional Staff:"]
[null,null,null,null,null,null,null,null,null,null,null,null,null,false,{"$f":"IF(N37,K37,0)","v":0}]
[null,null,null,null,null,null,null,null,null,null,null,null,null,false,{"$f":"IF(N38,K38,0)","v":0}]
[null,null,null,null,null,null,null,null,null,null,null,null,null,false,{"$f":"IF(N39,K39,0)","v":0}]
[null,null,"stipends",null,null,null,null,null,null,null,null,null,null,false,{"$f":"IF(N40,K40,0)","v":0}]
[null,null,null,null,null,null,null,null,null,null,null,null,null,null,{"$f":"SUM(O37:O40)","v":0}]
[null,3,"Support Staff"]
[null,null,"Aides/Paraprofessionals",null,null,null,null,null,null,null,null,null,null,false,{"$f":"IF(N43,K43,0)","v":0}]
[null,null,"Secretary/Bookkeeper",null,null,null,null,null,null,null,null,null,null,false,{"$f":"IF(N44,K44,0)","v":0}]
[null,null,"Other",null,null,null,null,null,null,null,null,null,null,false,{"$f":"IF(N45,K45,0)","v":0}]
[null,null,"Stipends",null,null,null,null,null,null,null,null,null,null,false,{"$f":"IF(N46,K46,0)","v":0}]
[null,null,null,null,null,null,null,null,null,null,null,null,null,null,{"$f":"SUM(O43:O46)","v":0}]
[null,4,"Fringe Benefits:  Other Fringe Benefits to be completed on budget pages"]
[null,null,"4-a   MTRS ",null,null,null,null,null,null,null,{"$f":"ROUND((O35+O41+O47)*0.09, 0)","v":0}]
[null,null,"4-b   OTHER FRINGE BENEFITS (Other retirement systems, health insurance, FICA)"]
[]
[null,5,"Contractual Services ",null,null,null,null,"Rate ($)","Hour/Day"]
[null,null,null,"Consultants"]
[null,null,null,"Specialists"]
[null,null,null,"Instructors"]
[null,null,null,"Speakers"]
[null,null,null,"Substitutes"]
[null,null,null,"Supplemental Services - Contracted Provider"]
[null,null,null,"Other"]
[]
[null,6,"Supplies and Materials ",null,null,null,null,null,null,null,"Amount"]
[null,null,"Textbooks and Instructional Materials"]
[null,null,"Instructional Technology including Software"]
[null,null,"Non-instructional Supplies"]
[]
[null,7,"Travel:  Mileage, conference registration, hotel and meals"]
[null,null,"Supervisory Staff"]
[null,null,"Instructional Staff"]
[null,null,"Other"]
[]
[null,8,"Other Costs "]
[null,null,null,"Advertising"]
[null,null,null,"Maintenance/Repairs"]
[null,null,null,"Rental of Space"]
[null,null,null,"Rental of Equipment"]
[null,null,null,"Transportation of Students"]
[null,null,null,"Telephone/Utilities"]
[null,null,null,"Memberships/Subscriptions"]
[null,null,null,"Printing/Reproduction"]
[]
[null,9,"INDIRECT COSTS - to be entered on budget pages"]
[]
[null,10,"EQUIPMENT:"]
[null,null,"Instructional Equipment"]
[null,null,"Non-instructional Equipment"]

{"sheet":"Investment 5","index":5,"n_rows":85,"n_cols":15,"rows_kept":85,"cut":false,"hidden":true,"merged":[[0,0,0,11],[4,1,4,11],[15,1,15,11],[16,1,16,11],[1,0,1,11],[5,0,5,11],[2,0,2,11],[8,1,8,3],[6,1,6,11],[7,1,7,11],[8,4,8,10],[18,1,18,11],[19,1,19,11],[38,2,38,4],[28,1,28,11],[21,1,21,11],[22,1,22,11],[23,1,23,11],[20,1,20,11],[86,4,86,7],[29,1,29,4],[41,2,41,3],[42,2,42,4],[43,2,43,4],[44,2,44,4],[47,2,47,9],[45,2,45,4],[37,2,37,4],[68,2,68,4],[39,2,39,4],[83,2,83,4],[84,2,84,4],[30,2,30,4],[31,2,31,4],[32,2,32,4],[33,2,33,4],[35,2,35,5],[36,2,36,4],[48,2,48,8],[77,3,77,5],[78,3,78,4],[62,2,62,5],[63,2,63,5],[66,2,66,4],[67,2,67,4],[61,2,61,5],[82,2,82,5],[72,3,72,5],[75,3,75,5],[80,2,80,6],[74,3,74,4],[73,3,73,4],[76,3,76,4],[9,1,9,11],[25,1,25,11],[26,1,26,11],[27,1,27,11],[10,1,10,11],[11,1,11,11],[12,1,12,11],[13,1,13,11],[14,1,14,11],[17,1,17,11],[24,1,24,11]]}
["Name of Grant Program: The American Recovery and Reinvestment Act: Saving and Creating Jobs and Reforming Education (ARRA) - IDEA American Recovery and Reinvestment Act                                                                                                                            Fund Code:  760"]
["Investment "]
["ARRA Purpose:  The overall purposes of the ARRA federal grant programs are to fund activities that will advance ARRA’s short-term economic goals by investing quickly to save and create jobs, and to fund activities that support ARRA’s long-term economic goals by investing wisely, funding activities designed to strengthen education, drive reforms, and improve results for students.  \n \nARRA-IDEA Purpose:\nActivities funded through the ARRA – IDEA grant must be designed to help to ensure that students with disabilities have access to a free and appropriate education (FAPE) to meet each student’s unique needs and to prepare each student for further education, employment, and independent living.  ",null,null,null,null,null,null,null,null,null,null,null,1]
["\n "]
[null,{"$f":"VLOOKUP(M3,CatDataSht!A1:C5,3,FALSE)","v":0}]
["REQUIRED PROGRAM INFORMATION - NARRATIVE COMPONENT"]
[]
[]
[null,"Name of Activity: Identify new or continuation activity"]
[null,"For each initiative proposed, answer all of the following questions."]
["1)","Activity Description: (Project plan / Evaluation mechanisms)\n\n"]
[null,"a) If this is a new FY11 activity, identify and describe the proposed activity.  If the activity is a continuation from FY10 to FY11, provide a brief description of the activity."]
[]
[null,"b) If this is a new FY11 activity, identify the specific gaps or weaknesses that will be addressed through this activity.  (If the activity is a continuation from FY10 to FY11, please go to question c)."]
[]
[null,"c) For new or continuation activities, outline the steps for implementation, including proposed timeline."]
[]
[null,"d) For new or continuation activities, describe i) how the district will assess the implementation and impact of the activity; and ii) how the district will periodically use this information to guide decisions regarding this activity."]
[]
["2)","Integration/Alignment: (Alignment with district strategic plan / Leveraging district and regional resources) "]
[null,"a) For new FY11 activities, describe how the proposed activity is aligned with existing activities and improvement strategies within the district (e.g., the district strategic plan).  If this is a continuation activity, go to question b)."]
[]
[null,"b) For new or continuation activities, describe how the district plans to coordinate the funds for this activity with other ARRA or regular entitlement funds or through regional/collaborative approaches to service delivery. "]
[]
["3)","Lasting Benefits: (Building new capacity / Sustainability and benefits beyond the grant period)"]
[null,"a) For new or continuation activities, describe the anticipated long term benefits that will result from the proposed activity.  Provide information on how the activity will:\n     • improve results for students with disabilities; \n     • increase teacher competencies; and/or \n     • result in systems change beyond the grant period.  \n"]
[]
[null,"b) For new or continuation activities, describe how the activity, or its benefits, will be sustained beyond the grant period.  "]
[]
["ll.","ALLOCATION OF FUNDS",null,null,null,null,null,"# of staff","FTE","MTRS","Amount"]
[null,1,"Administrators:"]
[null,null,"Supervisor/Director",null,null,null,null,null,null,null,null,null,null,false,{"$f":"IF(N32,K32,0)","v":0}]
[null,null,"Project Coordinator",null,null,null,null,null,null,null,null,null,null,false,{"$f":"IF(N33,K33,0)","v":0}]
[null,null,"Stipends",null,null,null,null,null,null,null,null,null,null,false,{"$f":"IF(N34,K34,0)","v":0}]
[null,null,null,null,null,null,null,null,null,null,null,null,null,null,{"$f":"SUM(O32:O34)","v":0}]
[null,2,"Instructional/Professional Staff:"]
[null,null,null,null,null,null,null,null,null,null,null,null,null,false,{"$f":"IF(N37,K37,0)","v":0}]
[null,null,null,null,null,null,null,null,null,null,null,null,null,false,{"$f":"IF(N38,K38,0)","v":0}]
[null,null,null,null,null,null,null,null,null,null,null,null,null,false,{"$f":"IF(N39,K39,0)","v":0}]
[null,null,"stipends",null,null,null,null,null,null,null,null,null,null,false,{"$f":"IF(N40,K40,0)","v":0}]
[null,null,null,null,null,null,null,null,null,null,null,null,null,null,{"$f":"SUM(O37:O40)","v":0}]
[null,3,"Support Staff"]
[null,null,"Aides/Paraprofessionals",null,null,null,null,null,null,null,null,null,null,false,{"$f":"IF(N43,K43,0)","v":0}]
[null,null,"Secretary/Bookkeeper",null,null,null,null,null,null,null,null,null,null,false,{"$f":"IF(N44,K44,0)","v":0}]
[null,null,"Other",null,null,null,null,null,null,null,null,null,null,false,{"$f":"IF(N45,K45,0)","v":0}]
[null,null,"Stipends",null,null,null,null,null,null,null,null,null,null,false,{"$f":"IF(N46,K46,0)","v":0}]
[null,null,null,null,null,null,null,null,null,null,null,null,null,null,{"$f":"SUM(O43:O46)","v":0}]
[null,4,"Fringe Benefits:  Other Fringe Benefits to be completed on budget pages"]
[null,null,"4-a   MTRS ",null,null,null,null,null,null,null,{"$f":"ROUND((O35+O41+O47)*0.09, 0)","v":0}]
[null,null,"4-b   OTHER FRINGE BENEFITS (Other retirement systems, health insurance, FICA)"]
[]
[null,5,"Contractual Services ",null,null,null,null,"Rate ($)","Hour/Day"]
[null,null,null,"Consultants"]
[null,null,null,"Specialists"]
[null,null,null,"Instructors"]
[null,null,null,"Speakers"]
[null,null,null,"Substitutes"]
[null,null,null,"Supplemental Services - Contracted Provider"]
[null,null,null,"Other"]
[]
[null,6,"Supplies and Materials ",null,null,null,null,null,null,null,"Amount"]
[null,null,"Textbooks and Instructional Materials"]
[null,null,"Instructional Technology including Software"]
[null,null,"Non-instructional Supplies"]
[]
[null,7,"Travel:  Mileage, conference registration, hotel and meals"]
[null,null,"Supervisory Staff"]
[null,null,"Instructional Staff"]
[null,null,"Other"]
[]
[null,8,"Other Costs "]
[null,null,null,"Advertising"]
[null,null,null,"Maintenance/Repairs"]
[null,null,null,"Rental of Space"]
[null,null,null,"Rental of Equipment"]
[null,null,null,"Transportation of Students"]
[null,null,null,"Telephone/Utilities"]
[null,null,null,"Memberships/Subscriptions"]
[null,null,null,"Printing/Reproduction"]
[]
[null,9,"INDIRECT COSTS - to be entered on budget pages"]
[]
[null,10,"EQUIPMENT:"]
[null,null,"Instructional Equipment"]
[null,null,"Non-instructional Equipment"]

{"sheet":"Investment 6","index":6,"n_rows":85,"n_cols":15,"rows_kept":85,"cut":false,"hidden":true,"merged":[[33,2,33,4],[35,2,35,5],[36,2,36,4],[68,2,68,4],[66,2,66,4],[67,2,67,4],[48,2,48,8],[42,2,42,4],[43,2,43,4],[29,1,29,4],[82,2,82,5],[72,3,72,5],[75,3,75,5],[80,2,80,6],[74,3,74,4],[73,3,73,4],[76,3,76,4],[77,3,77,5],[41,2,41,3],[30,2,30,4],[31,2,31,4],[37,2,37,4],[38,2,38,4],[39,2,39,4],[32,2,32,4],[86,4,86,7],[44,2,44,4],[47,2,47,9],[45,2,45,4],[78,3,78,4],[62,2,62,5],[63,2,63,5],[83,2,83,4],[84,2,84,4],[61,2,61,5],[28,1,28,11],[19,1,19,11],[0,0,0,11],[4,1,4,11],[7,1,7,11],[8,1,8,3],[1,0,1,11],[5,0,5,11],[10,1,10,11],[11,1,11,11],[12,1,12,11],[13,1,13,11],[14,1,14,11],[15,1,15,11],[27,1,27,11],[20,1,20,11],[21,1,21,11],[22,1,22,11],[23,1,23,11],[24,1,24,11],[25,1,25,11],[26,1,26,11],[18,1,18,11],[2,0,2,11],[6,1,6,11],[8,4,8,10],[9,1,9,11],[16,1,16,11],[17,1,17,11]]}
["Name of Grant Program: The American Recovery and Reinvestment Act: Saving and Creating Jobs and Reforming Education (ARRA) - IDEA American Recovery and Reinvestment Act                                                                                                                            Fund Code:  760"]
["Investment "]
["ARRA Purpose:  The overall purposes of the ARRA federal grant programs are to fund activities that will advance ARRA’s short-term economic goals by investing quickly to save and create jobs, and to fund activities that support ARRA’s long-term economic goals by investing wisely, funding activities designed to strengthen education, drive reforms, and improve results for students.  \n \nARRA-IDEA Purpose:\nActivities funded through the ARRA – IDEA grant must be designed to help to ensure that students with disabilities have access to a free and appropriate education (FAPE) to meet each student’s unique needs and to prepare each student for further education, employment, and independent living.  ",null,null,null,null,null,null,null,null,null,null,null,1]
["\n "]
[null,{"$f":"VLOOKUP(M3,CatDataSht!A1:C5,3,FALSE)","v":0}]
["REQUIRED PROGRAM INFORMATION - NARRATIVE COMPONENT"]
[]
[]
[null,"Name of Activity: Identify new or continuation activity"]
[null,"For each initiative proposed, answer all of the following questions."]
["1)","Activity Description: (Project plan / Evaluation mechanisms)\n\n"]
[null,"a) If this is a new FY11 activity, identify and describe the proposed activity.  If the activity is a continuation from FY10 to FY11, provide a brief description of the activity."]
[]
[null,"b) If this is a new FY11 activity, identify the specific gaps or weaknesses that will be addressed through this activity.  (If the activity is a continuation from FY10 to FY11, please go to question c)."]
[]
[null,"c) For new or continuation activities, outline the steps for implementation, including proposed timeline."]
[]
[null,"d) For new or continuation activities, describe i) how the district will assess the implementation and impact of the activity; and ii) how the district will periodically use this information to guide decisions regarding this activity."]
[]
["2)","Integration/Alignment: (Alignment with district strategic plan / Leveraging district and regional resources) "]
[null,"a) For new FY11 activities, describe how the proposed activity is aligned with existing activities and improvement strategies within the district (e.g., the district strategic plan).  If this is a continuation activity, go to question b)."]
[]
[null,"b) For new or continuation activities, describe how the district plans to coordinate the funds for this activity with other ARRA or regular entitlement funds or through regional/collaborative approaches to service delivery. "]
[]
["3)","Lasting Benefits: (Building new capacity / Sustainability and benefits beyond the grant period)"]
[null,"a) For new or continuation activities, describe the anticipated long term benefits that will result from the proposed activity.  Provide information on how the activity will:\n     • improve results for students with disabilities; \n     • increase teacher competencies; and/or \n     • result in systems change beyond the grant period.  \n"]
[]
[null,"b) For new or continuation activities, describe how the activity, or its benefits, will be sustained beyond the grant period.  "]
[]
["ll.","ALLOCATION OF FUNDS",null,null,null,null,null,"# of staff","FTE","MTRS","Amount"]
[null,1,"Administrators:"]
[null,null,"Supervisor/Director",null,null,null,null,null,null,null,null,null,null,false,{"$f":"IF(N32,K32,0)","v":0}]
[null,null,"Project Coordinator",null,null,null,null,null,null,null,null,null,null,false,{"$f":"IF(N33,K33,0)","v":0}]
[null,null,"Stipends",null,null,null,null,null,null,null,null,null,null,false,{"$f":"IF(N34,K34,0)","v":0}]
[null,null,null,null,null,null,null,null,null,null,null,null,null,null,{"$f":"SUM(O32:O34)","v":0}]
[null,2,"Instructional/Professional Staff:"]
[null,null,null,null,null,null,null,null,null,null,null,null,null,false,{"$f":"IF(N37,K37,0)","v":0}]
[null,null,null,null,null,null,null,null,null,null,null,null,null,false,{"$f":"IF(N38,K38,0)","v":0}]
[null,null,null,null,null,null,null,null,null,null,null,null,null,false,{"$f":"IF(N39,K39,0)","v":0}]
[null,null,"stipends",null,null,null,null,null,null,null,null,null,null,false,{"$f":"IF(N40,K40,0)","v":0}]
[null,null,null,null,null,null,null,null,null,null,null,null,null,null,{"$f":"SUM(O37:O40)","v":0}]
[null,3,"Support Staff"]
[null,null,"Aides/Paraprofessionals",null,null,null,null,null,null,null,null,null,null,false,{"$f":"IF(N43,K43,0)","v":0}]
[null,null,"Secretary/Bookkeeper",null,null,null,null,null,null,null,null,null,null,false,{"$f":"IF(N44,K44,0)","v":0}]
[null,null,"Other",null,null,null,null,null,null,null,null,null,null,false,{"$f":"IF(N45,K45,0)","v":0}]
[null,null,"Stipends",null,null,null,null,null,null,null,null,null,null,false,{"$f":"IF(N46,K46,0)","v":0}]
[null,null,null,null,null,null,null,null,null,null,null,null,null,null,{"$f":"SUM(O43:O46)","v":0}]
[null,4,"Fringe Benefits:  Other Fringe Benefits to be completed on budget pages"]
[null,null,"4-a   MTRS ",null,null,null,null,null,null,null,{"$f":"ROUND((O35+O41+O47)*0.09, 0)","v":0}]
[null,null,"4-b   OTHER FRINGE BENEFITS (Other retirement systems, health insurance, FICA)"]
[]
[null,5,"Contractual Services ",null,null,null,null,"Rate ($)","Hour/Day"]
[null,null,null,"Consultants"]
[null,null,null,"Specialists"]
[null,null,null,"Instructors"]
[null,null,null,"Speakers"]
[null,null,null,"Substitutes"]
[null,null,null,"Supplemental Services - Contracted Provider"]
[null,null,null,"Other"]
[]
[null,6,"Supplies and Materials ",null,null,null,null,null,null,null,"Amount"]
[null,null,"Textbooks and Instructional Materials"]
[null,null,"Instructional Technology including Software"]
[null,null,"Non-instructional Supplies"]
[]
[null,7,"Travel:  Mileage, conference registration, hotel and meals"]
[null,null,"Supervisory Staff"]
[null,null,"Instructional Staff"]
[null,null,"Other"]
[]
[null,8,"Other Costs "]
[null,null,null,"Advertising"]
[null,null,null,"Maintenance/Repairs"]
[null,null,null,"Rental of Space"]
[null,null,null,"Rental of Equipment"]
[null,null,null,"Transportation of Students"]
[null,null,null,"Telephone/Utilities"]
[null,null,null,"Memberships/Subscriptions"]
[null,null,null,"Printing/Reproduction"]
[]
[null,9,"INDIRECT COSTS - to be entered on budget pages"]
[]
[null,10,"EQUIPMENT:"]
[null,null,"Instructional Equipment"]
[null,null,"Non-instructional Equipment"]

{"sheet":"Investment 7","index":7,"n_rows":85,"n_cols":15,"rows_kept":85,"cut":false,"hidden":true,"merged":[[17,1,17,11],[18,1,18,11],[19,1,19,11],[20,1,20,11],[0,0,0,11],[4,1,4,11],[15,1,15,11],[16,1,16,11],[11,1,11,11],[12,1,12,11],[1,0,1,11],[5,0,5,11],[2,0,2,11],[8,1,8,3],[38,2,38,4],[25,1,25,11],[26,1,26,11],[27,1,27,11],[28,1,28,11],[13,1,13,11],[14,1,14,11],[9,1,9,11],[6,1,6,11],[7,1,7,11],[10,1,10,11],[8,4,8,10],[86,4,86,7],[29,1,29,4],[41,2,41,3],[42,2,42,4],[43,2,43,4],[44,2,44,4],[47,2,47,9],[45,2,45,4],[48,2,48,8],[77,3,77,5],[39,2,39,4],[83,2,83,4],[84,2,84,4],[30,2,30,4],[31,2,31,4],[32,2,32,4],[33,2,33,4],[35,2,35,5],[36,2,36,4],[37,2,37,4],[68,2,68,4],[78,3,78,4],[62,2,62,5],[63,2,63,5],[66,2,66,4],[67,2,67,4],[61,2,61,5],[21,1,21,11],[22,1,22,11],[23,1,23,11],[24,1,24,11],[82,2,82,5],[72,3,72,5],[75,3,75,5],[80,2,80,6],[74,3,74,4],[73,3,73,4],[76,3,76,4]]}
["Name of Grant Program: The American Recovery and Reinvestment Act: Saving and Creating Jobs and Reforming Education (ARRA) - IDEA American Recovery and Reinvestment Act                                                                                                                            Fund Code:  760"]
["Investment "]
["ARRA Purpose:  The overall purposes of the ARRA federal grant programs are to fund activities that will advance ARRA’s short-term economic goals by investing quickly to save and create jobs, and to fund activities that support ARRA’s long-term economic goals by investing wisely, funding activities designed to strengthen education, drive reforms, and improve results for students.  \n \nARRA-IDEA Purpose:\nActivities funded through the ARRA – IDEA grant must be designed to help to ensure that students with disabilities have access to a free and appropriate education (FAPE) to meet each student’s unique needs and to prepare each student for further education, employment, and independent living.  ",null,null,null,null,null,null,null,null,null,null,null,1]
["\n "]
[null,{"$f":"VLOOKUP(M3,CatDataSht!A1:C5,3,FALSE)","v":0}]
["REQUIRED PROGRAM INFORMATION - NARRATIVE COMPONENT"]
[]
[]
[null,"Name of Activity: Identify new or continuation activity"]
[null,"For each initiative proposed, answer all of the following questions."]
["1)","Activity Description: (Project plan / Evaluation mechanisms)\n\n"]
[null,"a) If this is a new FY11 activity, identify and describe the proposed activity.  If the activity is a continuation from FY10 to FY11, provide a brief description of the activity."]
[]
[null,"b) If this is a new FY11 activity, identify the specific gaps or weaknesses that will be addressed through this activity.  (If the activity is a continuation from FY10 to FY11, please go to question c)."]
[]
[null,"c) For new or continuation activities, outline the steps for implementation, including proposed timeline."]
[]
[null,"d) For new or continuation activities, describe i) how the district will assess the implementation and impact of the activity; and ii) how the district will periodically use this information to guide decisions regarding this activity."]
[]
["2)","Integration/Alignment: (Alignment with district strategic plan / Leveraging district and regional resources) "]
[null,"a) For new FY11 activities, describe how the proposed activity is aligned with existing activities and improvement strategies within the district (e.g., the district strategic plan).  If this is a continuation activity, go to question b)."]
[]
[null,"b) For new or continuation activities, describe how the district plans to coordinate the funds for this activity with other ARRA or regular entitlement funds or through regional/collaborative approaches to service delivery. "]
[]
["3)","Lasting Benefits: (Building new capacity / Sustainability and benefits beyond the grant period)"]
[null,"a) For new or continuation activities, describe the anticipated long term benefits that will result from the proposed activity.  Provide information on how the activity will:\n     • improve results for students with disabilities; \n     • increase teacher competencies; and/or \n     • result in systems change beyond the grant period.  \n"]
[]
[null,"b) For new or continuation activities, describe how the activity, or its benefits, will be sustained beyond the grant period.  "]
[]
["ll.","ALLOCATION OF FUNDS",null,null,null,null,null,"# of staff","FTE","MTRS","Amount"]
[null,1,"Administrators:"]
[null,null,"Supervisor/Director",null,null,null,null,null,null,null,null,null,null,false,{"$f":"IF(N32,K32,0)","v":0}]
[null,null,"Project Coordinator",null,null,null,null,null,null,null,null,null,null,false,{"$f":"IF(N33,K33,0)","v":0}]
[null,null,"Stipends",null,null,null,null,null,null,null,null,null,null,false,{"$f":"IF(N34,K34,0)","v":0}]
[null,null,null,null,null,null,null,null,null,null,null,null,null,null,{"$f":"SUM(O32:O34)","v":0}]
[null,2,"Instructional/Professional Staff:"]
[null,null,null,null,null,null,null,null,null,null,null,null,null,false,{"$f":"IF(N37,K37,0)","v":0}]
[null,null,null,null,null,null,null,null,null,null,null,null,null,false,{"$f":"IF(N38,K38,0)","v":0}]
[null,null,null,null,null,null,null,null,null,null,null,null,null,false,{"$f":"IF(N39,K39,0)","v":0}]
[null,null,"stipends",null,null,null,null,null,null,null,null,null,null,false,{"$f":"IF(N40,K40,0)","v":0}]
[null,null,null,null,null,null,null,null,null,null,null,null,null,null,{"$f":"SUM(O37:O40)","v":0}]
[null,3,"Support Staff"]
[null,null,"Aides/Paraprofessionals",null,null,null,null,null,null,null,null,null,null,false,{"$f":"IF(N43,K43,0)","v":0}]
[null,null,"Secretary/Bookkeeper",null,null,null,null,null,null,null,null,null,null,false,{"$f":"IF(N44,K44,0)","v":0}]
[null,null,"Other",null,null,null,null,null,null,null,null,null,null,false,{"$f":"IF(N45,K45,0)","v":0}]
[null,null,"Stipends",null,null,null,null,null,null,null,null,null,null,false,{"$f":"IF(N46,K46,0)","v":0}]
[null,null,null,null,null,null,null,null,null,null,null,null,null,null,{"$f":"SUM(O43:O46)","v":0}]
[null,4,"Fringe Benefits:  Other Fringe Benefits to be completed on budget pages"]
[null,null,"4-a   MTRS ",null,null,null,null,null,null,null,{"$f":"ROUND((O35+O41+O47)*0.09, 0)","v":0}]
[null,null,"4-b   OTHER FRINGE BENEFITS (Other retirement systems, health insurance, FICA)"]
[]
[null,5,"Contractual Services ",null,null,null,null,"Rate ($)","Hour/Day"]
[null,null,null,"Consultants"]
[null,null,null,"Specialists"]
[null,null,null,"Instructors"]
[null,null,null,"Speakers"]
[null,null,null,"Substitutes"]
[null,null,null,"Supplemental Services - Contracted Provider"]
[null,null,null,"Other"]
[]
[null,6,"Supplies and Materials ",null,null,null,null,null,null,null,"Amount"]
[null,null,"Textbooks and Instructional Materials"]
[null,null,"Instructional Technology including Software"]
[null,null,"Non-instructional Supplies"]
[]
[null,7,"Travel:  Mileage, conference registration, hotel and meals"]
[null,null,"Supervisory Staff"]
[null,null,"Instructional Staff"]
[null,null,"Other"]
[]
[null,8,"Other Costs "]
[null,null,null,"Advertising"]
[null,null,null,"Maintenance/Repairs"]
[null,null,null,"Rental of Space"]
[null,null,null,"Rental of Equipment"]
[null,null,null,"Transportation of Students"]
[null,null,null,"Telephone/Utilities"]
[null,null,null,"Memberships/Subscriptions"]
[null,null,null,"Printing/Reproduction"]
[]
[null,9,"INDIRECT COSTS - to be entered on budget pages"]
[]
[null,10,"EQUIPMENT:"]
[null,null,"Instructional Equipment"]
[null,null,"Non-instructional Equipment"]

{"sheet":"Investment 8","index":8,"n_rows":85,"n_cols":15,"rows_kept":85,"cut":false,"hidden":true,"merged":[[74,3,74,4],[73,3,73,4],[76,3,76,4],[67,2,67,4],[61,2,61,5],[83,2,83,4],[84,2,84,4],[30,2,30,4],[31,2,31,4],[32,2,32,4],[33,2,33,4],[35,2,35,5],[36,2,36,4],[37,2,37,4],[68,2,68,4],[82,2,82,5],[72,3,72,5],[75,3,75,5],[80,2,80,6],[38,2,38,4],[39,2,39,4],[86,4,86,7],[29,1,29,4],[41,2,41,3],[42,2,42,4],[43,2,43,4],[44,2,44,4],[47,2,47,9],[45,2,45,4],[48,2,48,8],[77,3,77,5],[78,3,78,4],[62,2,62,5],[63,2,63,5],[66,2,66,4],[13,1,13,11],[1,0,1,11],[5,0,5,11],[2,0,2,11],[7,1,7,11],[6,1,6,11],[8,1,8,3],[8,4,8,10],[0,0,0,11],[4,1,4,11],[10,1,10,11],[11,1,11,11],[12,1,12,11],[26,1,26,11],[27,1,27,11],[28,1,28,11],[9,1,9,11],[22,1,22,11],[23,1,23,11],[24,1,24,11],[25,1,25,11],[18,1,18,11],[19,1,19,11],[20,1,20,11],[21,1,21,11],[14,1,14,11],[15,1,15,11],[16,1,16,11],[17,1,17,11]]}
["Name of Grant Program: The American Recovery and Reinvestment Act: Saving and Creating Jobs and Reforming Education (ARRA) - IDEA American Recovery and Reinvestment Act                                                                                                                            Fund Code:  760"]
["Investment "]
["ARRA Purpose:  The overall purposes of the ARRA federal grant programs are to fund activities that will advance ARRA’s short-term economic goals by investing quickly to save and create jobs, and to fund activities that support ARRA’s long-term economic goals by investing wisely, funding activities designed to strengthen education, drive reforms, and improve results for students.  \n \nARRA-IDEA Purpose:\nActivities funded through the ARRA – IDEA grant must be designed to help to ensure that students with disabilities have access to a free and appropriate education (FAPE) to meet each student’s unique needs and to prepare each student for further education, employment, and independent living.  ",null,null,null,null,null,null,null,null,null,null,null,1]
["\n "]
[null,{"$f":"VLOOKUP(M3,CatDataSht!A1:C5,3,FALSE)","v":0}]
["REQUIRED PROGRAM INFORMATION - NARRATIVE COMPONENT"]
[]
[]
[null,"Name of Activity: Identify new or continuation activity"]
[null,"For each initiative proposed, answer all of the following questions."]
["1)","Activity Description: (Project plan / Evaluation mechanisms)\n\n"]
[null,"a) If this is a new FY11 activity, identify and describe the proposed activity.  If the activity is a continuation from FY10 to FY11, provide a brief description of the activity."]
[]
[null,"b) If this is a new FY11 activity, identify the specific gaps or weaknesses that will be addressed through this activity.  (If the activity is a continuation from FY10 to FY11, please go to question c)."]
[]
[null,"c) For new or continuation activities, outline the steps for implementation, including proposed timeline."]
[]
[null,"d) For new or continuation activities, describe i) how the district will assess the implementation and impact of the activity; and ii) how the district will periodically use this information to guide decisions regarding this activity."]
[]
["2)","Integration/Alignment: (Alignment with district strategic plan / Leveraging district and regional resources) "]
[null,"a) For new FY11 activities, describe how the proposed activity is aligned with existing activities and improvement strategies within the district (e.g., the district strategic plan).  If this is a continuation activity, go to question b)."]
[]
[null,"b) For new or continuation activities, describe how the district plans to coordinate the funds for this activity with other ARRA or regular entitlement funds or through regional/collaborative approaches to service delivery. "]
[]
["3)","Lasting Benefits: (Building new capacity / Sustainability and benefits beyond the grant period)"]
[null,"a) For new or continuation activities, describe the anticipated long term benefits that will result from the proposed activity.  Provide information on how the activity will:\n     • improve results for students with disabilities; \n     • increase teacher competencies; and/or \n     • result in systems change beyond the grant period.  \n"]
[]
[null,"b) For new or continuation activities, describe how the activity, or its benefits, will be sustained beyond the grant period.  "]
[]
["ll.","ALLOCATION OF FUNDS",null,null,null,null,null,"# of staff","FTE","MTRS","Amount"]
[null,1,"Administrators:"]
[null,null,"Supervisor/Director",null,null,null,null,null,null,null,null,null,null,false,{"$f":"IF(N32,K32,0)","v":0}]
[null,null,"Project Coordinator",null,null,null,null,null,null,null,null,null,null,false,{"$f":"IF(N33,K33,0)","v":0}]
[null,null,"Stipends",null,null,null,null,null,null,null,null,null,null,false,{"$f":"IF(N34,K34,0)","v":0}]
[null,null,null,null,null,null,null,null,null,null,null,null,null,null,{"$f":"SUM(O32:O34)","v":0}]
[null,2,"Instructional/Professional Staff:"]
[null,null,null,null,null,null,null,null,null,null,null,null,null,false,{"$f":"IF(N37,K37,0)","v":0}]
[null,null,null,null,null,null,null,null,null,null,null,null,null,false,{"$f":"IF(N38,K38,0)","v":0}]
[null,null,null,null,null,null,null,null,null,null,null,null,null,false,{"$f":"IF(N39,K39,0)","v":0}]
[null,null,"stipends",null,null,null,null,null,null,null,null,null,null,false,{"$f":"IF(N40,K40,0)","v":0}]
[null,null,null,null,null,null,null,null,null,null,null,null,null,null,{"$f":"SUM(O37:O40)","v":0}]
[null,3,"Support Staff"]
[null,null,"Aides/Paraprofessionals",null,null,null,null,null,null,null,null,null,null,false,{"$f":"IF(N43,K43,0)","v":0}]
[null,null,"Secretary/Bookkeeper",null,null,null,null,null,null,null,null,null,null,false,{"$f":"IF(N44,K44,0)","v":0}]
[null,null,"Other",null,null,null,null,null,null,null,null,null,null,false,{"$f":"IF(N45,K45,0)","v":0}]
[null,null,"Stipends",null,null,null,null,null,null,null,null,null,null,false,{"$f":"IF(N46,K46,0)","v":0}]
[null,null,null,null,null,null,null,null,null,null,null,null,null,null,{"$f":"SUM(O43:O46)","v":0}]
[null,4,"Fringe Benefits:  Other Fringe Benefits to be completed on budget pages"]
[null,null,"4-a   MTRS ",null,null,null,null,null,null,null,{"$f":"ROUND((O35+O41+O47)*0.09, 0)","v":0}]
[null,null,"4-b   OTHER FRINGE BENEFITS (Other retirement systems, health insurance, FICA)"]
[]
[null,5,"Contractual Services ",null,null,null,null,"Rate ($)","Hour/Day"]
[null,null,null,"Consultants"]
[null,null,null,"Specialists"]
[null,null,null,"Instructors"]
[null,null,null,"Speakers"]
[null,null,null,"Substitutes"]
[null,null,null,"Supplemental Services - Contracted Provider"]
[null,null,null,"Other"]
[]
[null,6,"Supplies and Materials ",null,null,null,null,null,null,null,"Amount"]
[null,null,"Textbooks and Instructional Materials"]
[null,null,"Instructional Technology including Software"]
[null,null,"Non-instructional Supplies"]
[]
[null,7,"Travel:  Mileage, conference registration, hotel and meals"]
[null,null,"Supervisory Staff"]
[null,null,"Instructional Staff"]
[null,null,"Other"]
[]
[null,8,"Other Costs "]
[null,null,null,"Advertising"]
[null,null,null,"Maintenance/Repairs"]
[null,null,null,"Rental of Space"]
[null,null,null,"Rental of Equipment"]
[null,null,null,"Transportation of Students"]
[null,null,null,"Telephone/Utilities"]
[null,null,null,"Memberships/Subscriptions"]
[null,null,null,"Printing/Reproduction"]
[]
[null,9,"INDIRECT COSTS - to be entered on budget pages"]
[]
[null,10,"EQUIPMENT:"]
[null,null,"Instructional Equipment"]
[null,null,"Non-instructional Equipment"]

{"sheet":"Investment 9","index":9,"n_rows":85,"n_cols":15,"rows_kept":85,"cut":false,"hidden":true,"merged":[[10,1,10,11],[6,1,6,11],[8,1,8,3],[8,4,8,10],[0,0,0,11],[4,1,4,11],[7,1,7,11],[1,0,1,11],[5,0,5,11],[2,0,2,11],[86,4,86,7],[29,1,29,4],[41,2,41,3],[42,2,42,4],[43,2,43,4],[44,2,44,4],[47,2,47,9],[45,2,45,4],[83,2,83,4],[84,2,84,4],[30,2,30,4],[31,2,31,4],[32,2,32,4],[33,2,33,4],[35,2,35,5],[36,2,36,4],[37,2,37,4],[68,2,68,4],[48,2,48,8],[77,3,77,5],[78,3,78,4],[62,2,62,5],[63,2,63,5],[66,2,66,4],[12,1,12,11],[13,1,13,11],[14,1,14,11],[82,2,82,5],[72,3,72,5],[75,3,75,5],[80,2,80,6],[74,3,74,4],[73,3,73,4],[76,3,76,4],[67,2,67,4],[61,2,61,5],[38,2,38,4],[39,2,39,4],[27,1,27,11],[28,1,28,11],[9,1,9,11],[23,1,23,11],[24,1,24,11],[25,1,25,11],[26,1,26,11],[19,1,19,11],[20,1,20,11],[21,1,21,11],[22,1,22,11],[15,1,15,11],[16,1,16,11],[17,1,17,11],[18,1,18,11],[11,1,11,11]]}
["Name of Grant Program: The American Recovery and Reinvestment Act: Saving and Creating Jobs and Reforming Education (ARRA) - IDEA American Recovery and Reinvestment Act                                                                                                                            Fund Code:  760"]
["Investment "]
["ARRA Purpose:  The overall purposes of the ARRA federal grant programs are to fund activities that will advance ARRA’s short-term economic goals by investing quickly to save and create jobs, and to fund activities that support ARRA’s long-term economic goals by investing wisely, funding activities designed to strengthen education, drive reforms, and improve results for students.  \n \nARRA-IDEA Purpose:\nActivities funded through the ARRA – IDEA grant must be designed to help to ensure that students with disabilities have access to a free and appropriate education (FAPE) to meet each student’s unique needs and to prepare each student for further education, employment, and independent living.  ",null,null,null,null,null,null,null,null,null,null,null,1]
["\n "]
[null,{"$f":"VLOOKUP(M3,CatDataSht!A1:C5,3,FALSE)","v":0}]
["REQUIRED PROGRAM INFORMATION - NARRATIVE COMPONENT"]
[]
[]
[null,"Name of Activity: Identify new or continuation activity"]
[null,"For each initiative proposed, answer all of the following questions."]
["1)","Activity Description: (Project plan / Evaluation mechanisms)\n\n"]
[null,"a) If this is a new FY11 activity, identify and describe the proposed activity.  If the activity is a continuation from FY10 to FY11, provide a brief description of the activity."]
[]
[null,"b) If this is a new FY11 activity, identify the specific gaps or weaknesses that will be addressed through this activity.  (If the activity is a continuation from FY10 to FY11, please go to question c)."]
[]
[null,"c) For new or continuation activities, outline the steps for implementation, including proposed timeline."]
[]
[null,"d) For new or continuation activities, describe i) how the district will assess the implementation and impact of the activity; and ii) how the district will periodically use this information to guide decisions regarding this activity."]
[]
["2)","Integration/Alignment: (Alignment with district strategic plan / Leveraging district and regional resources) "]
[null,"a) For new FY11 activities, describe how the proposed activity is aligned with existing activities and improvement strategies within the district (e.g., the district strategic plan).  If this is a continuation activity, go to question b)."]
[]
[null,"b) For new or continuation activities, describe how the district plans to coordinate the funds for this activity with other ARRA or regular entitlement funds or through regional/collaborative approaches to service delivery. "]
[]
["3)","Lasting Benefits: (Building new capacity / Sustainability and benefits beyond the grant period)"]
[null,"a) For new or continuation activities, describe the anticipated long term benefits that will result from the proposed activity.  Provide information on how the activity will:\n     • improve results for students with disabilities; \n     • increase teacher competencies; and/or \n     • result in systems change beyond the grant period.  \n"]
[]
[null,"b) For new or continuation activities, describe how the activity, or its benefits, will be sustained beyond the grant period.  "]
[]
["ll.","ALLOCATION OF FUNDS",null,null,null,null,null,"# of staff","FTE","MTRS","Amount"]
[null,1,"Administrators:"]
[null,null,"Supervisor/Director",null,null,null,null,null,null,null,null,null,null,false,{"$f":"IF(N32,K32,0)","v":0}]
[null,null,"Project Coordinator",null,null,null,null,null,null,null,null,null,null,false,{"$f":"IF(N33,K33,0)","v":0}]
[null,null,"Stipends",null,null,null,null,null,null,null,null,null,null,false,{"$f":"IF(N34,K34,0)","v":0}]
[null,null,null,null,null,null,null,null,null,null,null,null,null,null,{"$f":"SUM(O32:O34)","v":0}]
[null,2,"Instructional/Professional Staff:"]
[null,null,null,null,null,null,null,null,null,null,null,null,null,false,{"$f":"IF(N37,K37,0)","v":0}]
[null,null,null,null,null,null,null,null,null,null,null,null,null,false,{"$f":"IF(N38,K38,0)","v":0}]
[null,null,null,null,null,null,null,null,null,null,null,null,null,false,{"$f":"IF(N39,K39,0)","v":0}]
[null,null,"stipends",null,null,null,null,null,null,null,null,null,null,false,{"$f":"IF(N40,K40,0)","v":0}]
[null,null,null,null,null,null,null,null,null,null,null,null,null,null,{"$f":"SUM(O37:O40)","v":0}]
[null,3,"Support Staff"]
[null,null,"Aides/Paraprofessionals",null,null,null,null,null,null,null,null,null,null,false,{"$f":"IF(N43,K43,0)","v":0}]
[null,null,"Secretary/Bookkeeper",null,null,null,null,null,null,null,null,null,null,false,{"$f":"IF(N44,K44,0)","v":0}]
[null,null,"Other",null,null,null,null,null,null,null,null,null,null,false,{"$f":"IF(N45,K45,0)","v":0}]
[null,null,"Stipends",null,null,null,null,null,null,null,null,null,null,false,{"$f":"IF(N46,K46,0)","v":0}]
[null,null,null,null,null,null,null,null,null,null,null,null,null,null,{"$f":"SUM(O43:O46)","v":0}]
[null,4,"Fringe Benefits:  Other Fringe Benefits to be completed on budget pages"]
[null,null,"4-a   MTRS ",null,null,null,null,null,null,null,{"$f":"ROUND((O35+O41+O47)*0.09, 0)","v":0}]
[null,null,"4-b   OTHER FRINGE BENEFITS (Other retirement systems, health insurance, FICA)"]
[]
[null,5,"Contractual Services ",null,null,null,null,"Rate ($)","Hour/Day"]
[null,null,null,"Consultants"]
[null,null,null,"Specialists"]
[null,null,null,"Instructors"]
[null,null,null,"Speakers"]
[null,null,null,"Substitutes"]
[null,null,null,"Supplemental Services - Contracted Provider"]
[null,null,null,"Other"]
[]
[null,6,"Supplies and Materials ",null,null,null,null,null,null,null,"Amount"]
[null,null,"Textbooks and Instructional Materials"]
[null,null,"Instructional Technology including Software"]
[null,null,"Non-instructional Supplies"]
[]
[null,7,"Travel:  Mileage, conference registration, hotel and meals"]
[null,null,"Supervisory Staff"]
[null,null,"Instructional Staff"]
[null,null,"Other"]
[]
[null,8,"Other Costs "]
[null,null,null,"Advertising"]
[null,null,null,"Maintenance/Repairs"]
[null,null,null,"Rental of Space"]
[null,null,null,"Rental of Equipment"]
[null,null,null,"Transportation of Students"]
[null,null,null,"Telephone/Utilities"]
[null,null,null,"Memberships/Subscriptions"]
[null,null,null,"Printing/Reproduction"]
[]
[null,9,"INDIRECT COSTS - to be entered on budget pages"]
[]
[null,10,"EQUIPMENT:"]
[null,null,"Instructional Equipment"]
[null,null,"Non-instructional Equipment"]

{"sheet":"Investment 10","index":10,"n_rows":85,"n_cols":15,"rows_kept":85,"cut":false,"hidden":true,"merged":[[17,1,17,11],[18,1,18,11],[19,1,19,11],[20,1,20,11],[0,0,0,11],[4,1,4,11],[15,1,15,11],[16,1,16,11],[11,1,11,11],[12,1,12,11],[1,0,1,11],[5,0,5,11],[2,0,2,11],[8,1,8,3],[38,2,38,4],[25,1,25,11],[26,1,26,11],[27,1,27,11],[28,1,28,11],[13,1,13,11],[14,1,14,11],[9,1,9,11],[6,1,6,11],[7,1,7,11],[10,1,10,11],[8,4,8,10],[86,4,86,7],[29,1,29,4],[41,2,41,3],[42,2,42,4],[43,2,43,4],[44,2,44,4],[47,2,47,9],[45,2,45,4],[48,2,48,8],[77,3,77,5],[39,2,39,4],[83,2,83,4],[84,2,84,4],[30,2,30,4],[31,2,31,4],[32,2,32,4],[33,2,33,4],[35,2,35,5],[36,2,36,4],[37,2,37,4],[68,2,68,4],[78,3,78,4],[62,2,62,5],[63,2,63,5],[66,2,66,4],[67,2,67,4],[61,2,61,5],[21,1,21,11],[22,1,22,11],[23,1,23,11],[24,1,24,11],[82,2,82,5],[72,3,72,5],[75,3,75,5],[80,2,80,6],[74,3,74,4],[73,3,73,4],[76,3,76,4]]}
["Name of Grant Program: The American Recovery and Reinvestment Act: Saving and Creating Jobs and Reforming Education (ARRA) - IDEA American Recovery and Reinvestment Act                                                                                                                            Fund Code:  760"]
["Investment "]
["ARRA Purpose:  The overall purposes of the ARRA federal grant programs are to fund activities that will advance ARRA’s short-term economic goals by investing quickly to save and create jobs, and to fund activities that support ARRA’s long-term economic goals by investing wisely, funding activities designed to strengthen education, drive reforms, and improve results for students.  \n \nARRA-IDEA Purpose:\nActivities funded through the ARRA – IDEA grant must be designed to help to ensure that students with disabilities have access to a free and appropriate education (FAPE) to meet each student’s unique needs and to prepare each student for further education, employment, and independent living.  ",null,null,null,null,null,null,null,null,null,null,null,1]
["\n "]
[null,{"$f":"VLOOKUP(M3,CatDataSht!A1:C5,3,FALSE)","v":0}]
["REQUIRED PROGRAM INFORMATION - NARRATIVE COMPONENT"]
[]
[]
[null,"Name of Activity: Identify new or continuation activity"]
[null,"For each initiative proposed, answer all of the following questions."]
["1)","Activity Description: (Project plan / Evaluation mechanisms)\n\n"]
[null,"a) If this is a new FY11 activity, identify and describe the proposed activity.  If the activity is a continuation from FY10 to FY11, provide a brief description of the activity."]
[]
[null,"b) If this is a new FY11 activity, identify the specific gaps or weaknesses that will be addressed through this activity.  (If the activity is a continuation from FY10 to FY11, please go to question c)."]
[]
[null,"c) For new or continuation activities, outline the steps for implementation, including proposed timeline."]
[]
[null,"d) For new or continuation activities, describe i) how the district will assess the implementation and impact of the activity; and ii) how the district will periodically use this information to guide decisions regarding this activity."]
[]
["2)","Integration/Alignment: (Alignment with district strategic plan / Leveraging district and regional resources) "]
[null,"a) For new FY11 activities, describe how the proposed activity is aligned with existing activities and improvement strategies within the district (e.g., the district strategic plan).  If this is a continuation activity, go to question b)."]
[]
[null,"b) For new or continuation activities, describe how the district plans to coordinate the funds for this activity with other ARRA or regular entitlement funds or through regional/collaborative approaches to service delivery. "]
[]
["3)","Lasting Benefits: (Building new capacity / Sustainability and benefits beyond the grant period)"]
[null,"a) For new or continuation activities, describe the anticipated long term benefits that will result from the proposed activity.  Provide information on how the activity will:\n     • improve results for students with disabilities; \n     • increase teacher competencies; and/or \n     • result in systems change beyond the grant period.  \n"]
[]
[null,"b) For new or continuation activities, describe how the activity, or its benefits, will be sustained beyond the grant period.  "]
[]
["ll.","ALLOCATION OF FUNDS",null,null,null,null,null,"# of staff","FTE","MTRS","Amount"]
[null,1,"Administrators:"]
[null,null,"Supervisor/Director",null,null,null,null,null,null,null,null,null,null,false,{"$f":"IF(N32,K32,0)","v":0}]
[null,null,"Project Coordinator",null,null,null,null,null,null,null,null,null,null,false,{"$f":"IF(N33,K33,0)","v":0}]
[null,null,"Stipends",null,null,null,null,null,null,null,null,null,null,false,{"$f":"IF(N34,K34,0)","v":0}]
[null,null,null,null,null,null,null,null,null,null,null,null,null,null,{"$f":"SUM(O32:O34)","v":0}]
[null,2,"Instructional/Professional Staff:"]
[null,null,null,null,null,null,null,null,null,null,null,null,null,false,{"$f":"IF(N37,K37,0)","v":0}]
[null,null,null,null,null,null,null,null,null,null,null,null,null,false,{"$f":"IF(N38,K38,0)","v":0}]
[null,null,null,null,null,null,null,null,null,null,null,null,null,false,{"$f":"IF(N39,K39,0)","v":0}]
[null,null,"stipends",null,null,null,null,null,null,null,null,null,null,false,{"$f":"IF(N40,K40,0)","v":0}]
[null,null,null,null,null,null,null,null,null,null,null,null,null,null,{"$f":"SUM(O37:O40)","v":0}]
[null,3,"Support Staff"]
[null,null,"Aides/Paraprofessionals",null,null,null,null,null,null,null,null,null,null,false,{"$f":"IF(N43,K43,0)","v":0}]
[null,null,"Secretary/Bookkeeper",null,null,null,null,null,null,null,null,null,null,false,{"$f":"IF(N44,K44,0)","v":0}]
[null,null,"Other",null,null,null,null,null,null,null,null,null,null,false,{"$f":"IF(N45,K45,0)","v":0}]
[null,null,"Stipends",null,null,null,null,null,null,null,null,null,null,false,{"$f":"IF(N46,K46,0)","v":0}]
[null,null,null,null,null,null,null,null,null,null,null,null,null,null,{"$f":"SUM(O43:O46)","v":0}]
[null,4,"Fringe Benefits:  Other Fringe Benefits to be completed on budget pages"]
[null,null,"4-a   MTRS ",null,null,null,null,null,null,null,{"$f":"ROUND((O35+O41+O47)*0.09, 0)","v":0}]
[null,null,"4-b   OTHER FRINGE BENEFITS (Other retirement systems, health insurance, FICA)"]
[]
[null,5,"Contractual Services ",null,null,null,null,"Rate ($)","Hour/Day"]
[null,null,null,"Consultants"]
[null,null,null,"Specialists"]
[null,null,null,"Instructors"]
[null,null,null,"Speakers"]
[null,null,null,"Substitutes"]
[null,null,null,"Supplemental Services - Contracted Provider"]
[null,null,null,"Other"]
[]
[null,6,"Supplies and Materials ",null,null,null,null,null,null,null,"Amount"]
[null,null,"Textbooks and Instructional Materials"]
[null,null,"Instructional Technology including Software"]
[null,null,"Non-instructional Supplies"]
[]
[null,7,"Travel:  Mileage, conference registration, hotel and meals"]
[null,null,"Supervisory Staff"]
[null,null,"Instructional Staff"]
[null,null,"Other"]
[]
[null,8,"Other Costs "]
[null,null,null,"Advertising"]
[null,null,null,"Maintenance/Repairs"]
[null,null,null,"Rental of Space"]
[null,null,null,"Rental of Equipment"]
[null,null,null,"Transportation of Students"]
[null,null,null,"Telephone/Utilities"]
[null,null,null,"Memberships/Subscriptions"]
[null,null,null,"Printing/Reproduction"]
[]
[null,9,"INDIRECT COSTS - to be entered on budget pages"]
[]
[null,10,"EQUIPMENT:"]
[null,null,"Instructional Equipment"]
[null,null,"Non-instructional Equipment"]

{"sheet":"Investment 11","index":11,"n_rows":85,"n_cols":15,"rows_kept":85,"cut":false,"hidden":true,"merged":[[33,2,33,4],[35,2,35,5],[36,2,36,4],[68,2,68,4],[66,2,66,4],[67,2,67,4],[48,2,48,8],[42,2,42,4],[43,2,43,4],[29,1,29,4],[82,2,82,5],[72,3,72,5],[75,3,75,5],[80,2,80,6],[74,3,74,4],[73,3,73,4],[76,3,76,4],[77,3,77,5],[41,2,41,3],[30,2,30,4],[31,2,31,4],[37,2,37,4],[38,2,38,4],[39,2,39,4],[32,2,32,4],[86,4,86,7],[44,2,44,4],[47,2,47,9],[45,2,45,4],[78,3,78,4],[62,2,62,5],[63,2,63,5],[83,2,83,4],[84,2,84,4],[61,2,61,5],[28,1,28,11],[19,1,19,11],[0,0,0,11],[4,1,4,11],[7,1,7,11],[8,1,8,3],[1,0,1,11],[5,0,5,11],[10,1,10,11],[11,1,11,11],[12,1,12,11],[13,1,13,11],[14,1,14,11],[15,1,15,11],[27,1,27,11],[20,1,20,11],[21,1,21,11],[22,1,22,11],[23,1,23,11],[24,1,24,11],[25,1,25,11],[26,1,26,11],[18,1,18,11],[2,0,2,11],[6,1,6,11],[8,4,8,10],[9,1,9,11],[16,1,16,11],[17,1,17,11]]}
["Name of Grant Program: The American Recovery and Reinvestment Act: Saving and Creating Jobs and Reforming Education (ARRA) - IDEA American Recovery and Reinvestment Act                                                                                                                            Fund Code:  760"]
["Investment "]
["ARRA Purpose:  The overall purposes of the ARRA federal grant programs are to fund activities that will advance ARRA’s short-term economic goals by investing quickly to save and create jobs, and to fund activities that support ARRA’s long-term economic goals by investing wisely, funding activities designed to strengthen education, drive reforms, and improve results for students.  \n \nARRA-IDEA Purpose:\nActivities funded through the ARRA – IDEA grant must be designed to help to ensure that students with disabilities have access to a free and appropriate education (FAPE) to meet each student’s unique needs and to prepare each student for further education, employment, and independent living.  ",null,null,null,null,null,null,null,null,null,null,null,1]
["\n "]
[null,{"$f":"VLOOKUP(M3,CatDataSht!A1:C5,3,FALSE)","v":0}]
["REQUIRED PROGRAM INFORMATION - NARRATIVE COMPONENT"]
[]
[]
[null,"Name of Activity: Identify new or continuation activity"]
[null,"For each initiative proposed, answer all of the following questions."]
["1)","Activity Description: (Project plan / Evaluation mechanisms)\n\n"]
[null,"a) If this is a new FY11 activity, identify and describe the proposed activity.  If the activity is a continuation from FY10 to FY11, provide a brief description of the activity."]
[]
[null,"b) If this is a new FY11 activity, identify the specific gaps or weaknesses that will be addressed through this activity.  (If the activity is a continuation from FY10 to FY11, please go to question c)."]
[]
[null,"c) For new or continuation activities, outline the steps for implementation, including proposed timeline."]
[]
[null,"d) For new or continuation activities, describe i) how the district will assess the implementation and impact of the activity; and ii) how the district will periodically use this information to guide decisions regarding this activity."]
[]
["2)","Integration/Alignment: (Alignment with district strategic plan / Leveraging district and regional resources) "]
[null,"a) For new FY11 activities, describe how the proposed activity is aligned with existing activities and improvement strategies within the district (e.g., the district strategic plan).  If this is a continuation activity, go to question b)."]
[]
[null,"b) For new or continuation activities, describe how the district plans to coordinate the funds for this activity with other ARRA or regular entitlement funds or through regional/collaborative approaches to service delivery. "]
[]
["3)","Lasting Benefits: (Building new capacity / Sustainability and benefits beyond the grant period)"]
[null,"a) For new or continuation activities, describe the anticipated long term benefits that will result from the proposed activity.  Provide information on how the activity will:\n     • improve results for students with disabilities; \n     • increase teacher competencies; and/or \n     • result in systems change beyond the grant period.  \n"]
[]
[null,"b) For new or continuation activities, describe how the activity, or its benefits, will be sustained beyond the grant period.  "]
[]
["ll.","ALLOCATION OF FUNDS",null,null,null,null,null,"# of staff","FTE","MTRS","Amount"]
[null,1,"Administrators:"]
[null,null,"Supervisor/Director",null,null,null,null,null,null,null,null,null,null,false,{"$f":"IF(N32,K32,0)","v":0}]
[null,null,"Project Coordinator",null,null,null,null,null,null,null,null,null,null,false,{"$f":"IF(N33,K33,0)","v":0}]
[null,null,"Stipends",null,null,null,null,null,null,null,null,null,null,false,{"$f":"IF(N34,K34,0)","v":0}]
[null,null,null,null,null,null,null,null,null,null,null,null,null,null,{"$f":"SUM(O32:O34)","v":0}]
[null,2,"Instructional/Professional Staff:"]
[null,null,null,null,null,null,null,null,null,null,null,null,null,false,{"$f":"IF(N37,K37,0)","v":0}]
[null,null,null,null,null,null,null,null,null,null,null,null,null,false,{"$f":"IF(N38,K38,0)","v":0}]
[null,null,null,null,null,null,null,null,null,null,null,null,null,false,{"$f":"IF(N39,K39,0)","v":0}]
[null,null,"stipends",null,null,null,null,null,null,null,null,null,null,false,{"$f":"IF(N40,K40,0)","v":0}]
[null,null,null,null,null,null,null,null,null,null,null,null,null,null,{"$f":"SUM(O37:O40)","v":0}]
[null,3,"Support Staff"]
[null,null,"Aides/Paraprofessionals",null,null,null,null,null,null,null,null,null,null,false,{"$f":"IF(N43,K43,0)","v":0}]
[null,null,"Secretary/Bookkeeper",null,null,null,null,null,null,null,null,null,null,false,{"$f":"IF(N44,K44,0)","v":0}]
[null,null,"Other",null,null,null,null,null,null,null,null,null,null,false,{"$f":"IF(N45,K45,0)","v":0}]
[null,null,"Stipends",null,null,null,null,null,null,null,null,null,null,false,{"$f":"IF(N46,K46,0)","v":0}]
[null,null,null,null,null,null,null,null,null,null,null,null,null,null,{"$f":"SUM(O43:O46)","v":0}]
[null,4,"Fringe Benefits:  Other Fringe Benefits to be completed on budget pages"]
[null,null,"4-a   MTRS ",null,null,null,null,null,null,null,{"$f":"ROUND((O35+O41+O47)*0.09, 0)","v":0}]
[null,null,"4-b   OTHER FRINGE BENEFITS (Other retirement systems, health insurance, FICA)"]
[]
[null,5,"Contractual Services ",null,null,null,null,"Rate ($)","Hour/Day"]
[null,null,null,"Consultants"]
[null,null,null,"Specialists"]
[null,null,null,"Instructors"]
[null,null,null,"Speakers"]
[null,null,null,"Substitutes"]
[null,null,null,"Supplemental Services - Contracted Provider"]
[null,null,null,"Other"]
[]
[null,6,"Supplies and Materials ",null,null,null,null,null,null,null,"Amount"]
[null,null,"Textbooks and Instructional Materials"]
[null,null,"Instructional Technology including Software"]
[null,null,"Non-instructional Supplies"]
[]
[null,7,"Travel:  Mileage, conference registration, hotel and meals"]
[null,null,"Supervisory Staff"]
[null,null,"Instructional Staff"]
[null,null,"Other"]
[]
[null,8,"Other Costs "]
[null,null,null,"Advertising"]
[null,null,null,"Maintenance/Repairs"]
[null,null,null,"Rental of Space"]
[null,null,null,"Rental of Equipment"]
[null,null,null,"Transportation of Students"]
[null,null,null,"Telephone/Utilities"]
[null,null,null,"Memberships/Subscriptions"]
[null,null,null,"Printing/Reproduction"]
[]
[null,9,"INDIRECT COSTS - to be entered on budget pages"]
[]
[null,10,"EQUIPMENT:"]
[null,null,"Instructional Equipment"]
[null,null,"Non-instructional Equipment"]

{"sheet":"Investment 12","index":12,"n_rows":85,"n_cols":15,"rows_kept":85,"cut":false,"hidden":true,"merged":[[17,1,17,11],[18,1,18,11],[19,1,19,11],[20,1,20,11],[0,0,0,11],[4,1,4,11],[15,1,15,11],[16,1,16,11],[11,1,11,11],[12,1,12,11],[1,0,1,11],[5,0,5,11],[2,0,2,11],[8,1,8,3],[38,2,38,4],[25,1,25,11],[26,1,26,11],[27,1,27,11],[28,1,28,11],[13,1,13,11],[14,1,14,11],[9,1,9,11],[6,1,6,11],[7,1,7,11],[10,1,10,11],[8,4,8,10],[86,4,86,7],[29,1,29,4],[41,2,41,3],[42,2,42,4],[43,2,43,4],[44,2,44,4],[47,2,47,9],[45,2,45,4],[48,2,48,8],[77,3,77,5],[39,2,39,4],[83,2,83,4],[84,2,84,4],[30,2,30,4],[31,2,31,4],[32,2,32,4],[33,2,33,4],[35,2,35,5],[36,2,36,4],[37,2,37,4],[68,2,68,4],[78,3,78,4],[62,2,62,5],[63,2,63,5],[66,2,66,4],[67,2,67,4],[61,2,61,5],[21,1,21,11],[22,1,22,11],[23,1,23,11],[24,1,24,11],[82,2,82,5],[72,3,72,5],[75,3,75,5],[80,2,80,6],[74,3,74,4],[73,3,73,4],[76,3,76,4]]}
["Name of Grant Program: The American Recovery and Reinvestment Act: Saving and Creating Jobs and Reforming Education (ARRA) - IDEA American Recovery and Reinvestment Act                                                                                                                            Fund Code:  760"]
["Investment "]
["ARRA Purpose:  The overall purposes of the ARRA federal grant programs are to fund activities that will advance ARRA’s short-term economic goals by investing quickly to save and create jobs, and to fund activities that support ARRA’s long-term economic goals by investing wisely, funding activities designed to strengthen education, drive reforms, and improve results for students.  \n \nARRA-IDEA Purpose:\nActivities funded through the ARRA – IDEA grant must be designed to help to ensure that students with disabilities have access to a free and appropriate education (FAPE) to meet each student’s unique needs and to prepare each student for further education, employment, and independent living.  ",null,null,null,null,null,null,null,null,null,null,null,1]
["\n "]
[null,{"$f":"VLOOKUP(M3,CatDataSht!A1:C5,3,FALSE)","v":0}]
["REQUIRED PROGRAM INFORMATION - NARRATIVE COMPONENT"]
[]
[]
[null,"Name of Activity: Identify new or continuation activity"]
[null,"For each initiative proposed, answer all of the following questions."]
["1)","Activity Description: (Project plan / Evaluation mechanisms)\n\n"]
[null,"a) If this is a new FY11 activity, identify and describe the proposed activity.  If the activity is a continuation from FY10 to FY11, provide a brief description of the activity."]
[]
[null,"b) If this is a new FY11 activity, identify the specific gaps or weaknesses that will be addressed through this activity.  (If the activity is a continuation from FY10 to FY11, please go to question c)."]
[]
[null,"c) For new or continuation activities, outline the steps for implementation, including proposed timeline."]
[]
[null,"d) For new or continuation activities, describe i) how the district will assess the implementation and impact of the activity; and ii) how the district will periodically use this information to guide decisions regarding this activity."]
[]
["2)","Integration/Alignment: (Alignment with district strategic plan / Leveraging district and regional resources) "]
[null,"a) For new FY11 activities, describe how the proposed activity is aligned with existing activities and improvement strategies within the district (e.g., the district strategic plan).  If this is a continuation activity, go to question b)."]
[]
[null,"b) For new or continuation activities, describe how the district plans to coordinate the funds for this activity with other ARRA or regular entitlement funds or through regional/collaborative approaches to service delivery. "]
[]
["3)","Lasting Benefits: (Building new capacity / Sustainability and benefits beyond the grant period)"]
[null,"a) For new or continuation activities, describe the anticipated long term benefits that will result from the proposed activity.  Provide information on how the activity will:\n     • improve results for students with disabilities; \n     • increase teacher competencies; and/or \n     • result in systems change beyond the grant period.  \n"]
[]
[null,"b) For new or continuation activities, describe how the activity, or its benefits, will be sustained beyond the grant period.  "]
[]
["ll.","ALLOCATION OF FUNDS",null,null,null,null,null,"# of staff","FTE","MTRS","Amount"]
[null,1,"Administrators:"]
[null,null,"Supervisor/Director",null,null,null,null,null,null,null,null,null,null,false,{"$f":"IF(N32,K32,0)","v":0}]
[null,null,"Project Coordinator",null,null,null,null,null,null,null,null,null,null,false,{"$f":"IF(N33,K33,0)","v":0}]
[null,null,"Stipends",null,null,null,null,null,null,null,null,null,null,false,{"$f":"IF(N34,K34,0)","v":0}]
[null,null,null,null,null,null,null,null,null,null,null,null,null,null,{"$f":"SUM(O32:O34)","v":0}]
[null,2,"Instructional/Professional Staff:"]
[null,null,null,null,null,null,null,null,null,null,null,null,null,false,{"$f":"IF(N37,K37,0)","v":0}]
[null,null,null,null,null,null,null,null,null,null,null,null,null,false,{"$f":"IF(N38,K38,0)","v":0}]
[null,null,null,null,null,null,null,null,null,null,null,null,null,false,{"$f":"IF(N39,K39,0)","v":0}]
[null,null,"stipends",null,null,null,null,null,null,null,null,null,null,false,{"$f":"IF(N40,K40,0)","v":0}]
[null,null,null,null,null,null,null,null,null,null,null,null,null,null,{"$f":"SUM(O37:O40)","v":0}]
[null,3,"Support Staff"]
[null,null,"Aides/Paraprofessionals",null,null,null,null,null,null,null,null,null,null,false,{"$f":"IF(N43,K43,0)","v":0}]
[null,null,"Secretary/Bookkeeper",null,null,null,null,null,null,null,null,null,null,false,{"$f":"IF(N44,K44,0)","v":0}]
[null,null,"Other",null,null,null,null,null,null,null,null,null,null,false,{"$f":"IF(N45,K45,0)","v":0}]
[null,null,"Stipends",null,null,null,null,null,null,null,null,null,null,false,{"$f":"IF(N46,K46,0)","v":0}]
[null,null,null,null,null,null,null,null,null,null,null,null,null,null,{"$f":"SUM(O43:O46)","v":0}]
[null,4,"Fringe Benefits:  Other Fringe Benefits to be completed on budget pages"]
[null,null,"4-a   MTRS ",null,null,null,null,null,null,null,{"$f":"ROUND((O35+O41+O47)*0.09, 0)","v":0}]
[null,null,"4-b   OTHER FRINGE BENEFITS (Other retirement systems, health insurance, FICA)"]
[]
[null,5,"Contractual Services ",null,null,null,null,"Rate ($)","Hour/Day"]
[null,null,null,"Consultants"]
[null,null,null,"Specialists"]
[null,null,null,"Instructors"]
[null,null,null,"Speakers"]
[null,null,null,"Substitutes"]
[null,null,null,"Supplemental Services - Contracted Provider"]
[null,null,null,"Other"]
[]
[null,6,"Supplies and Materials ",null,null,null,null,null,null,null,"Amount"]
[null,null,"Textbooks and Instructional Materials"]
[null,null,"Instructional Technology including Software"]
[null,null,"Non-instructional Supplies"]
[]
[null,7,"Travel:  Mileage, conference registration, hotel and meals"]
[null,null,"Supervisory Staff"]
[null,null,"Instructional Staff"]
[null,null,"Other"]
[]
[null,8,"Other Costs "]
[null,null,null,"Advertising"]
[null,null,null,"Maintenance/Repairs"]
[null,null,null,"Rental of Space"]
[null,null,null,"Rental of Equipment"]
[null,null,null,"Transportation of Students"]
[null,null,null,"Telephone/Utilities"]
[null,null,null,"Memberships/Subscriptions"]
[null,null,null,"Printing/Reproduction"]
[]
[null,9,"INDIRECT COSTS - to be entered on budget pages"]
[]
[null,10,"EQUIPMENT:"]
[null,null,"Instructional Equipment"]
[null,null,"Non-instructional Equipment"]

{"sheet":"Indirect Cost Calculator","index":13,"n_rows":31,"n_cols":4,"rows_kept":31,"cut":false,"hidden":false,"merged":[[3,1,3,3],[4,1,4,3],[5,1,5,3],[25,1,25,3],[30,1,30,3],[26,1,26,3],[27,1,27,3],[28,1,28,3],[29,1,29,3]]}
[null,"Indirect Cost Calculation Worksheet"]
[]
[]
[null,"The following worksheet will automatically calculate the amount of funds that can be used by a school district for indirect costs."]
[null,"You will need to insert your school district's approved allowable rate and total funds requested in the yellow boxes. "]
[null,"You will need to input the rate in either percentage (A) or decimal form (B).  The \"amount that can be used for indirect\" is the maximum amount that your school districts can put in for indirect costs in line item 9. This worksheet assumes no capital expenditures.  See other important notes below."]
[null,"Indirect Cost Calculation (A)",null,"Input Your"]
[null,"Note: if percentage format used",null,"Grant Information"]
[null,null,"Example","Below"]
[null,"Total Funds Requested",100000]
[null,"Indirect Cost Percentage: If percentage used (2.18%)",2.18E-2]
[null,"Total Funds/(1+Percentage)",{"$f":"+C10/(1+C11)","v":97866.510080250533},{"$f":"+D10/(1+D11)","v":0}]
[null,"Maximum Amount that can be used for Indirect:",{"$f":"+C10-C12","v":2133.4899197494669},{"$f":"+D10-D12","v":0}]
[null," "]
[null," "]
[null,"Indirect Cost Calculation (B)",null,"Input Your"]
[null,"Note: if decimal format used",null,"Grant Information"]
[null,null,"Example","Below"]
[null,"Total Funds Requested",100000]
[null,"Indirect Cost Percentage: If decimals used  (.0218)",2.18E-2]
[null,"Total Funds/(1+Percentage)",{"$f":"+C19/(1+C20)","v":97866.510080250533},{"$f":"+D19/(1+D20)","v":0}]
[null,"Maximum Amount that can be used for Indirect:",{"$f":"+C19-C21","v":2133.4899197494669},{"$f":"+D19-D21","v":0}]
[]
[]
[]
[null,"Important Notes regarding Indirect Costs:"]
[null,"For all school districts in Massachusetts, costs must be consistent with the rate established by the Department's Office of School Finance. For other than school systems, applicant agencies must comply with provisions of CFR 34 S.76.561. (Please note that indirect costs are not allowable under certain grant programs.  If you have any questions regarding this issue, contact the appropriate representative of the Department.)"]
[null,"Districts are allowed to take less than the maximum, but not more than the maximum allowable for indirect costs."]
[null,"In calculating the indirect cost allowable for a particular grant, note that indirect costs cannot be charged on either capital expenditures or on indirect costs themselves. To arrive at the allowable amount one cannot simply multiply a total entitlement by the indirect rate."]
[null,"The decision to recover indirect costs using these established rates is a local option. The rates are developed for school districts as the maximum allowable rate for a given fiscal year."]
[null,"If indirect costs are recovered, they shall be returned to the general fund of the city or town in accordance with G.L. Chapter 44, Section 53. In the case of regional schools, indirect costs shall be returned to the regional school general fund."]

{"sheet":"Analysis","index":14,"n_rows":193,"n_cols":6,"rows_kept":193,"cut":false,"hidden":true,"merged":[[4,2,5,2],[16,2,17,2],[28,2,29,2],[64,2,65,2],[88,2,89,2],[76,2,77,2],[100,2,101,2],[52,2,53,2],[172,2,173,2],[184,2,185,2],[160,2,161,2],[112,2,113,2],[124,2,125,2],[136,2,137,2],[148,2,149,2]]}
["Fund CODE","system","Line Item","Category","Activity","Amount"]
[760,{"$f":"#REF!","v":{"$error":"#REF!"}},"ADMINISTRATORS","Recovery 1",null,{"$f":"#REF!","v":{"$error":"#REF!"}}]
[760,{"$f":"#REF!","v":{"$error":"#REF!"}},"INSTRUCTIONAL/PROF. STAFF","Recovery 1",null,{"$f":"#REF!","v":{"$error":"#REF!"}}]
[760,{"$f":"#REF!","v":{"$error":"#REF!"}},"SUPPORT STAFF","Recovery 1",null,{"$f":"#REF!","v":{"$error":"#REF!"}}]
[760,{"$f":"#REF!","v":{"$error":"#REF!"}},"FRINGE BENEFITS","Recovery 1",null,{"$f":"#REF!","v":{"$error":"#REF!"}}]
[760,{"$f":"#REF!","v":{"$error":"#REF!"}},null,"Recovery 1",null,{"$f":"#REF!","v":{"$error":"#REF!"}}]
[760,{"$f":"#REF!","v":{"$error":"#REF!"}},"CONTRACTUAL SERVICES","Recovery 1",null,{"$f":"#REF!","v":{"$error":"#REF!"}}]
[760,{"$f":"#REF!","v":{"$error":"#REF!"}},"SUPPLIES AND MATERIALS","Recovery 1",null,{"$f":"#REF!","v":{"$error":"#REF!"}}]
[760,{"$f":"#REF!","v":{"$error":"#REF!"}},"TRAVEL","Recovery 1",null,{"$f":"#REF!","v":{"$error":"#REF!"}}]
[760,{"$f":"#REF!","v":{"$error":"#REF!"}},"OTHER COSTS","Recovery 1",null,{"$f":"#REF!","v":{"$error":"#REF!"}}]
[760,{"$f":"#REF!","v":{"$error":"#REF!"}},"INDIRECT COSTS","Recovery 1"]
[760,{"$f":"#REF!","v":{"$error":"#REF!"}},"EQUIPMENT","Recovery 1",null,{"$f":"#REF!","v":{"$error":"#REF!"}}]
[760,{"$f":"#REF!","v":{"$error":"#REF!"}},"Total Funds Requested","Recovery 1",null,{"$f":"#REF!","v":{"$error":"#REF!"}}]
[760,{"$f":"#REF!","v":{"$error":"#REF!"}},"ADMINISTRATORS","Recovery 2",null,{"$f":"#REF!","v":{"$error":"#REF!"}}]
[760,{"$f":"#REF!","v":{"$error":"#REF!"}},"INSTRUCTIONAL/PROF. STAFF","Recovery 2",null,{"$f":"#REF!","v":{"$error":"#REF!"}}]
[760,{"$f":"#REF!","v":{"$error":"#REF!"}},"SUPPORT STAFF","Recovery 2",null,{"$f":"#REF!","v":{"$error":"#REF!"}}]
[760,{"$f":"#REF!","v":{"$error":"#REF!"}},"FRINGE BENEFITS","Recovery 2",null,{"$f":"#REF!","v":{"$error":"#REF!"}}]
[760,{"$f":"#REF!","v":{"$error":"#REF!"}},null,"Recovery 2",null,{"$f":"#REF!","v":{"$error":"#REF!"}}]
[760,{"$f":"#REF!","v":{"$error":"#REF!"}},"CONTRACTUAL SERVICES","Recovery 2",null,{"$f":"#REF!","v":{"$error":"#REF!"}}]
[760,{"$f":"#REF!","v":{"$error":"#REF!"}},"SUPPLIES AND MATERIALS","Recovery 2",null,{"$f":"#REF!","v":{"$error":"#REF!"}}]
[760,{"$f":"#REF!","v":{"$error":"#REF!"}},"TRAVEL","Recovery 2",null,{"$f":"#REF!","v":{"$error":"#REF!"}}]
[760,{"$f":"#REF!","v":{"$error":"#REF!"}},"OTHER COSTS","Recovery 2",null,{"$f":"#REF!","v":{"$error":"#REF!"}}]
[760,{"$f":"#REF!","v":{"$error":"#REF!"}},"INDIRECT COSTS","Recovery 2"]
[760,{"$f":"#REF!","v":{"$error":"#REF!"}},"EQUIPMENT","Recovery 2",null,{"$f":"#REF!","v":{"$error":"#REF!"}}]
[760,{"$f":"#REF!","v":{"$error":"#REF!"}},"Total Funds Requested","Recovery 2",null,{"$f":"#REF!","v":{"$error":"#REF!"}}]
[760,{"$f":"#REF!","v":{"$error":"#REF!"}},"ADMINISTRATORS","Recovery 3",null,{"$f":"#REF!","v":{"$error":"#REF!"}}]
[760,{"$f":"#REF!","v":{"$error":"#REF!"}},"INSTRUCTIONAL/PROF. STAFF","Recovery 3",null,{"$f":"#REF!","v":{"$error":"#REF!"}}]
[760,{"$f":"#REF!","v":{"$error":"#REF!"}},"SUPPORT STAFF","Recovery 3",null,{"$f":"#REF!","v":{"$error":"#REF!"}}]
[760,{"$f":"#REF!","v":{"$error":"#REF!"}},"FRINGE BENEFITS","Recovery 3",null,{"$f":"#REF!","v":{"$error":"#REF!"}}]
[760,{"$f":"#REF!","v":{"$error":"#REF!"}},null,"Recovery 3",null,{"$f":"#REF!","v":{"$error":"#REF!"}}]
[760,{"$f":"#REF!","v":{"$error":"#REF!"}},"CONTRACTUAL SERVICES","Recovery 3",null,{"$f":"#REF!","v":{"$error":"#REF!"}}]
[760,{"$f":"#REF!","v":{"$error":"#REF!"}},"SUPPLIES AND MATERIALS","Recovery 3",null,{"$f":"#REF!","v":{"$error":"#REF!"}}]
[760,{"$f":"#REF!","v":{"$error":"#REF!"}},"TRAVEL","Recovery 3",null,{"$f":"#REF!","v":{"$error":"#REF!"}}]
[760,{"$f":"#REF!","v":{"$error":"#REF!"}},"OTHER COSTS","Recovery 3",null,{"$f":"#REF!","v":{"$error":"#REF!"}}]
[760,{"$f":"#REF!","v":{"$error":"#REF!"}},"INDIRECT COSTS","Recovery 3"]
[760,{"$f":"#REF!","v":{"$error":"#REF!"}},"EQUIPMENT","Recovery 3",null,{"$f":"#REF!","v":{"$error":"#REF!"}}]
[760,{"$f":"#REF!","v":{"$error":"#REF!"}},"Total Funds Requested","Recovery 3",null,{"$f":"#REF!","v":{"$error":"#REF!"}}]
[760,{"$f":"#REF!","v":{"$error":"#REF!"}},"ADMINISTRATORS",{"$f":"VLOOKUP(#REF!,CatDataSht!$A$1:$C$5,2,FALSE)","v":{"$error":"#REF!"}},{"$f":"#REF!","v":{"$error":"#REF!"}},{"$f":"#REF!","v":{"$error":"#REF!"}}]
[760,{"$f":"#REF!","v":{"$error":"#REF!"}},"INSTRUCTIONAL/PROF. STAFF",{"$f":"VLOOKUP(#REF!,CatDataSht!$A$1:$C$5,2,FALSE)","v":{"$error":"#REF!"}},{"$f":"#REF!","v":{"$error":"#REF!"}},{"$f":"#REF!","v":{"$error":"#REF!"}}]
[760,{"$f":"#REF!","v":{"$error":"#REF!"}},"SUPPORT STAFF",{"$f":"VLOOKUP(#REF!,CatDataSht!$A$1:$C$5,2,FALSE)","v":{"$error":"#REF!"}},{"$f":"#REF!","v":{"$error":"#REF!"}},{"$f":"#REF!","v":{"$error":"#REF!"}}]
[760,{"$f":"#REF!","v":{"$error":"#REF!"}},"FRINGE BENEFITS",{"$f":"VLOOKUP(#REF!,CatDataSht!$A$1:$C$5,2,FALSE)","v":{"$error":"#REF!"}},{"$f":"#REF!","v":{"$error":"#REF!"}},{"$f":"#REF!","v":{"$error":"#REF!"}}]
[760,{"$f":"#REF!","v":{"$error":"#REF!"}},"OTHER FRINGE BENEFITS",{"$f":"VLOOKUP(#REF!,CatDataSht!$A$1:$C$5,2,FALSE)","v":{"$error":"#REF!"}},{"$f":"#REF!","v":{"$error":"#REF!"}},{"$f":"#REF!","v":{"$error":"#REF!"}}]
[760,{"$f":"#REF!","v":{"$error":"#REF!"}},"CONTRACTUAL SERVICES",{"$f":"VLOOKUP(#REF!,CatDataSht!$A$1:$C$5,2,FALSE)","v":{"$error":"#REF!"}},{"$f":"#REF!","v":{"$error":"#REF!"}},{"$f":"#REF!","v":{"$error":"#REF!"}}]
[760,{"$f":"#REF!","v":{"$error":"#REF!"}},"SUPPLIES AND MATERIALS",{"$f":"VLOOKUP(#REF!,CatDataSht!$A$1:$C$5,2,FALSE)","v":{"$error":"#REF!"}},{"$f":"#REF!","v":{"$error":"#REF!"}},{"$f":"#REF!","v":{"$error":"#REF!"}}]
[760,{"$f":"#REF!","v":{"$error":"#REF!"}},"TRAVEL",{"$f":"VLOOKUP(#REF!,CatDataSht!$A$1:$C$5,2,FALSE)","v":{"$error":"#REF!"}},{"$f":"#REF!","v":{"$error":"#REF!"}},{"$f":"#REF!","v":{"$error":"#REF!"}}]
[760,{"$f":"#REF!","v":{"$error":"#REF!"}},"OTHER COSTS",{"$f":"VLOOKUP(#REF!,CatDataSht!$A$1:$C$5,2,FALSE)","v":{"$error":"#REF!"}},{"$f":"#REF!","v":{"$error":"#REF!"}},{"$f":"#REF!","v":{"$error":"#REF!"}}]
[760,{"$f":"#REF!","v":{"$error":"#REF!"}},"INDIRECT COSTS",{"$f":"VLOOKUP(#REF!,CatDataSht!$A$1:$C$5,2,FALSE)","v":{"$error":"#REF!"}},{"$f":"#REF!","v":{"$error":"#REF!"}}]
[760,{"$f":"#REF!","v":{"$error":"#REF!"}},"EQUIPMENT",{"$f":"VLOOKUP(#REF!,CatDataSht!$A$1:$C$5,2,FALSE)","v":{"$error":"#REF!"}},{"$f":"#REF!","v":{"$error":"#REF!"}},{"$f":"#REF!","v":{"$error":"#REF!"}}]
[760,{"$f":"#REF!","v":{"$error":"#REF!"}},"Total Funds Requested",{"$f":"VLOOKUP(#REF!,CatDataSht!$A$1:$C$5,2,FALSE)","v":{"$error":"#REF!"}},{"$f":"#REF!","v":{"$error":"#REF!"}},{"$f":"#REF!","v":{"$error":"#REF!"}}]
[760,{"$f":"#REF!","v":{"$error":"#REF!"}},"ADMINISTRATORS",{"$f":"VLOOKUP('Investment 2'!$M$3,CatDataSht!$A$1:$C$5,2,FALSE)","v":"Select a Category"},{"$f":"#REF!","v":{"$error":"#REF!"}},{"$f":"#REF!","v":{"$error":"#REF!"}}]
[760,{"$f":"#REF!","v":{"$error":"#REF!"}},"INSTRUCTIONAL/PROF. STAFF",{"$f":"VLOOKUP('Investment 2'!$M$3,CatDataSht!$A$1:$C$5,2,FALSE)","v":"Select a Category"},{"$f":"#REF!","v":{"$error":"#REF!"}},{"$f":"#REF!","v":{"$error":"#REF!"}}]
[760,{"$f":"#REF!","v":{"$error":"#REF!"}},"SUPPORT STAFF",{"$f":"VLOOKUP('Investment 2'!$M$3,CatDataSht!$A$1:$C$5,2,FALSE)","v":"Select a Category"},{"$f":"#REF!","v":{"$error":"#REF!"}},{"$f":"#REF!","v":{"$error":"#REF!"}}]
[760,{"$f":"#REF!","v":{"$error":"#REF!"}},"FRINGE BENEFITS",{"$f":"VLOOKUP('Investment 2'!$M$3,CatDataSht!$A$1:$C$5,2,FALSE)","v":"Select a Category"},{"$f":"#REF!","v":{"$error":"#REF!"}},{"$f":"#REF!","v":{"$error":"#REF!"}}]
[760,{"$f":"#REF!","v":{"$error":"#REF!"}},null,{"$f":"VLOOKUP('Investment 2'!$M$3,CatDataSht!$A$1:$C$5,2,FALSE)","v":"Select a Category"},{"$f":"#REF!","v":{"$error":"#REF!"}},{"$f":"#REF!","v":{"$error":"#REF!"}}]
[760,{"$f":"#REF!","v":{"$error":"#REF!"}},"CONTRACTUAL SERVICES",{"$f":"VLOOKUP('Investment 2'!$M$3,CatDataSht!$A$1:$C$5,2,FALSE)","v":"Select a Category"},{"$f":"#REF!","v":{"$error":"#REF!"}},{"$f":"#REF!","v":{"$error":"#REF!"}}]
[760,{"$f":"#REF!","v":{"$error":"#REF!"}},"SUPPLIES AND MATERIALS",{"$f":"VLOOKUP('Investment 2'!$M$3,CatDataSht!$A$1:$C$5,2,FALSE)","v":"Select a Category"},{"$f":"#REF!","v":{"$error":"#REF!"}},{"$f":"#REF!","v":{"$error":"#REF!"}}]
[760,{"$f":"#REF!","v":{"$error":"#REF!"}},"TRAVEL",{"$f":"VLOOKUP('Investment 2'!$M$3,CatDataSht!$A$1:$C$5,2,FALSE)","v":"Select a Category"},{"$f":"#REF!","v":{"$error":"#REF!"}},{"$f":"#REF!","v":{"$error":"#REF!"}}]
[760,{"$f":"#REF!","v":{"$error":"#REF!"}},"OTHER COSTS",{"$f":"VLOOKUP('Investment 2'!$M$3,CatDataSht!$A$1:$C$5,2,FALSE)","v":"Select a Category"},{"$f":"#REF!","v":{"$error":"#REF!"}},{"$f":"#REF!","v":{"$error":"#REF!"}}]
[760,{"$f":"#REF!","v":{"$error":"#REF!"}},"INDIRECT COSTS",{"$f":"VLOOKUP('Investment 2'!$M$3,CatDataSht!$A$1:$C$5,2,FALSE)","v":"Select a Category"},{"$f":"#REF!","v":{"$error":"#REF!"}}]
[760,{"$f":"#REF!","v":{"$error":"#REF!"}},"EQUIPMENT",{"$f":"VLOOKUP('Investment 2'!$M$3,CatDataSht!$A$1:$C$5,2,FALSE)","v":"Select a Category"},{"$f":"#REF!","v":{"$error":"#REF!"}},{"$f":"#REF!","v":{"$error":"#REF!"}}]
[760,{"$f":"#REF!","v":{"$error":"#REF!"}},"Total Funds Requested",{"$f":"VLOOKUP('Investment 2'!$M$3,CatDataSht!$A$1:$C$5,2,FALSE)","v":"Select a Category"},{"$f":"#REF!","v":{"$error":"#REF!"}},{"$f":"#REF!","v":{"$error":"#REF!"}}]
[760,{"$f":"#REF!","v":{"$error":"#REF!"}},"ADMINISTRATORS",{"$f":"VLOOKUP('Investment 3'!$M$3,CatDataSht!$A$1:$C$5,2,FALSE)","v":"Select a Category"},{"$f":"#REF!","v":{"$error":"#REF!"}},{"$f":"#REF!","v":{"$error":"#REF!"}}]
[760,{"$f":"#REF!","v":{"$error":"#REF!"}},"INSTRUCTIONAL/PROF. STAFF",{"$f":"VLOOKUP('Investment 3'!$M$3,CatDataSht!$A$1:$C$5,2,FALSE)","v":"Select a Category"},{"$f":"#REF!","v":{"$error":"#REF!"}},{"$f":"#REF!","v":{"$error":"#REF!"}}]
[760,{"$f":"#REF!","v":{"$error":"#REF!"}},"SUPPORT STAFF",{"$f":"VLOOKUP('Investment 3'!$M$3,CatDataSht!$A$1:$C$5,2,FALSE)","v":"Select a Category"},{"$f":"#REF!","v":{"$error":"#REF!"}},{"$f":"#REF!","v":{"$error":"#REF!"}}]
[760,{"$f":"#REF!","v":{"$error":"#REF!"}},"FRINGE BENEFITS",{"$f":"VLOOKUP('Investment 3'!$M$3,CatDataSht!$A$1:$C$5,2,FALSE)","v":"Select a Category"},{"$f":"#REF!","v":{"$error":"#REF!"}},{"$f":"#REF!","v":{"$error":"#REF!"}}]
[760,{"$f":"#REF!","v":{"$error":"#REF!"}},null,{"$f":"VLOOKUP('Investment 3'!$M$3,CatDataSht!$A$1:$C$5,2,FALSE)","v":"Select a Category"},{"$f":"#REF!","v":{"$error":"#REF!"}},{"$f":"#REF!","v":{"$error":"#REF!"}}]
[760,{"$f":"#REF!","v":{"$error":"#REF!"}},"CONTRACTUAL SERVICES",{"$f":"VLOOKUP('Investment 3'!$M$3,CatDataSht!$A$1:$C$5,2,FALSE)","v":"Select a Category"},{"$f":"#REF!","v":{"$error":"#REF!"}},{"$f":"#REF!","v":{"$error":"#REF!"}}]
[760,{"$f":"#REF!","v":{"$error":"#REF!"}},"SUPPLIES AND MATERIALS",{"$f":"VLOOKUP('Investment 3'!$M$3,CatDataSht!$A$1:$C$5,2,FALSE)","v":"Select a Category"},{"$f":"#REF!","v":{"$error":"#REF!"}},{"$f":"#REF!","v":{"$error":"#REF!"}}]
[760,{"$f":"#REF!","v":{"$error":"#REF!"}},"TRAVEL",{"$f":"VLOOKUP('Investment 3'!$M$3,CatDataSht!$A$1:$C$5,2,FALSE)","v":"Select a Category"},{"$f":"#REF!","v":{"$error":"#REF!"}},{"$f":"#REF!","v":{"$error":"#REF!"}}]
[760,{"$f":"#REF!","v":{"$error":"#REF!"}},"OTHER COSTS",{"$f":"VLOOKUP('Investment 3'!$M$3,CatDataSht!$A$1:$C$5,2,FALSE)","v":"Select a Category"},{"$f":"#REF!","v":{"$error":"#REF!"}},{"$f":"#REF!","v":{"$error":"#REF!"}}]
[760,{"$f":"#REF!","v":{"$error":"#REF!"}},"INDIRECT COSTS",{"$f":"VLOOKUP('Investment 3'!$M$3,CatDataSht!$A$1:$C$5,2,FALSE)","v":"Select a Category"},{"$f":"#REF!","v":{"$error":"#REF!"}}]
[760,{"$f":"#REF!","v":{"$error":"#REF!"}},"EQUIPMENT",{"$f":"VLOOKUP('Investment 3'!$M$3,CatDataSht!$A$1:$C$5,2,FALSE)","v":"Select a Category"},{"$f":"#REF!","v":{"$error":"#REF!"}},{"$f":"#REF!","v":{"$error":"#REF!"}}]
[760,{"$f":"#REF!","v":{"$error":"#REF!"}},"Total Funds Requested",{"$f":"VLOOKUP('Investment 3'!$M$3,CatDataSht!$A$1:$C$5,2,FALSE)","v":"Select a Category"},{"$f":"#REF!","v":{"$error":"#REF!"}},{"$f":"#REF!","v":{"$error":"#REF!"}}]
[760,{"$f":"#REF!","v":{"$error":"#REF!"}},"ADMINISTRATORS",{"$f":"VLOOKUP('Investment 4'!$M$3,CatDataSht!$A$1:$C$5,2,FALSE)","v":"Select a Category"},{"$f":"#REF!","v":{"$error":"#REF!"}},{"$f":"#REF!","v":{"$error":"#REF!"}}]
[760,{"$f":"#REF!","v":{"$error":"#REF!"}},"INSTRUCTIONAL/PROF. STAFF",{"$f":"VLOOKUP('Investment 4'!$M$3,CatDataSht!$A$1:$C$5,2,FALSE)","v":"Select a Category"},{"$f":"#REF!","v":{"$error":"#REF!"}},{"$f":"#REF!","v":{"$error":"#REF!"}}]
[760,{"$f":"#REF!","v":{"$error":"#REF!"}},"SUPPORT STAFF",{"$f":"VLOOKUP('Investment 4'!$M$3,CatDataSht!$A$1:$C$5,2,FALSE)","v":"Select a Category"},{"$f":"#REF!","v":{"$error":"#REF!"}},{"$f":"#REF!","v":{"$error":"#REF!"}}]
[760,{"$f":"#REF!","v":{"$error":"#REF!"}},"FRINGE BENEFITS",{"$f":"VLOOKUP('Investment 4'!$M$3,CatDataSht!$A$1:$C$5,2,FALSE)","v":"Select a Category"},{"$f":"#REF!","v":{"$error":"#REF!"}},{"$f":"#REF!","v":{"$error":"#REF!"}}]
[760,{"$f":"#REF!","v":{"$error":"#REF!"}},null,{"$f":"VLOOKUP('Investment 4'!$M$3,CatDataSht!$A$1:$C$5,2,FALSE)","v":"Select a Category"},{"$f":"#REF!","v":{"$error":"#REF!"}},{"$f":"#REF!","v":{"$error":"#REF!"}}]
[760,{"$f":"#REF!","v":{"$error":"#REF!"}},"CONTRACTUAL SERVICES",{"$f":"VLOOKUP('Investment 4'!$M$3,CatDataSht!$A$1:$C$5,2,FALSE)","v":"Select a Category"},{"$f":"#REF!","v":{"$error":"#REF!"}},{"$f":"#REF!","v":{"$error":"#REF!"}}]
[760,{"$f":"#REF!","v":{"$error":"#REF!"}},"SUPPLIES AND MATERIALS",{"$f":"VLOOKUP('Investment 4'!$M$3,CatDataSht!$A$1:$C$5,2,FALSE)","v":"Select a Category"},{"$f":"#REF!","v":{"$error":"#REF!"}},{"$f":"#REF!","v":{"$error":"#REF!"}}]
[760,{"$f":"#REF!","v":{"$error":"#REF!"}},"TRAVEL",{"$f":"VLOOKUP('Investment 4'!$M$3,CatDataSht!$A$1:$C$5,2,FALSE)","v":"Select a Category"},{"$f":"#REF!","v":{"$error":"#REF!"}},{"$f":"#REF!","v":{"$error":"#REF!"}}]
[760,{"$f":"#REF!","v":{"$error":"#REF!"}},"OTHER COSTS",{"$f":"VLOOKUP('Investment 4'!$M$3,CatDataSht!$A$1:$C$5,2,FALSE)","v":"Select a Category"},{"$f":"#REF!","v":{"$error":"#REF!"}},{"$f":"#REF!","v":{"$error":"#REF!"}}]
[760,{"$f":"#REF!","v":{"$error":"#REF!"}},"INDIRECT COSTS",{"$f":"VLOOKUP('Investment 4'!$M$3,CatDataSht!$A$1:$C$5,2,FALSE)","v":"Select a Category"},{"$f":"#REF!","v":{"$error":"#REF!"}}]
[760,{"$f":"#REF!","v":{"$error":"#REF!"}},"EQUIPMENT",{"$f":"VLOOKUP('Investment 4'!$M$3,CatDataSht!$A$1:$C$5,2,FALSE)","v":"Select a Category"},{"$f":"#REF!","v":{"$error":"#REF!"}},{"$f":"#REF!","v":{"$error":"#REF!"}}]
[760,{"$f":"#REF!","v":{"$error":"#REF!"}},"Total Funds Requested",{"$f":"VLOOKUP('Investment 4'!$M$3,CatDataSht!$A$1:$C$5,2,FALSE)","v":"Select a Category"},{"$f":"#REF!","v":{"$error":"#REF!"}},{"$f":"#REF!","v":{"$error":"#REF!"}}]
[760,{"$f":"#REF!","v":{"$error":"#REF!"}},"ADMINISTRATORS",{"$f":"VLOOKUP('Investment 5'!$M$3,CatDataSht!$A$1:$C$5,2,FALSE)","v":"Select a Category"},{"$f":"#REF!","v":{"$error":"#REF!"}},{"$f":"#REF!","v":{"$error":"#REF!"}}]
[760,{"$f":"#REF!","v":{"$error":"#REF!"}},"INSTRUCTIONAL/PROF. STAFF",{"$f":"VLOOKUP('Investment 5'!$M$3,CatDataSht!$A$1:$C$5,2,FALSE)","v":"Select a Category"},{"$f":"#REF!","v":{"$error":"#REF!"}},{"$f":"#REF!","v":{"$error":"#REF!"}}]
[760,{"$f":"#REF!","v":{"$error":"#REF!"}},"SUPPORT STAFF",{"$f":"VLOOKUP('Investment 5'!$M$3,CatDataSht!$A$1:$C$5,2,FALSE)","v":"Select a Category"},{"$f":"#REF!","v":{"$error":"#REF!"}},{"$f":"#REF!","v":{"$error":"#REF!"}}]
[760,{"$f":"#REF!","v":{"$error":"#REF!"}},"FRINGE BENEFITS",{"$f":"VLOOKUP('Investment 5'!$M$3,CatDataSht!$A$1:$C$5,2,FALSE)","v":"Select a Category"},{"$f":"#REF!","v":{"$error":"#REF!"}},{"$f":"#REF!","v":{"$error":"#REF!"}}]
[760,{"$f":"#REF!","v":{"$error":"#REF!"}},null,{"$f":"VLOOKUP('Investment 5'!$M$3,CatDataSht!$A$1:$C$5,2,FALSE)","v":"Select a Category"},{"$f":"#REF!","v":{"$error":"#REF!"}},{"$f":"#REF!","v":{"$error":"#REF!"}}]
[760,{"$f":"#REF!","v":{"$error":"#REF!"}},"CONTRACTUAL SERVICES",{"$f":"VLOOKUP('Investment 5'!$M$3,CatDataSht!$A$1:$C$5,2,FALSE)","v":"Select a Category"},{"$f":"#REF!","v":{"$error":"#REF!"}},{"$f":"#REF!","v":{"$error":"#REF!"}}]
[760,{"$f":"#REF!","v":{"$error":"#REF!"}},"SUPPLIES AND MATERIALS",{"$f":"VLOOKUP('Investment 5'!$M$3,CatDataSht!$A$1:$C$5,2,FALSE)","v":"Select a Category"},{"$f":"#REF!","v":{"$error":"#REF!"}},{"$f":"#REF!","v":{"$error":"#REF!"}}]
[760,{"$f":"#REF!","v":{"$error":"#REF!"}},"TRAVEL",{"$f":"VLOOKUP('Investment 5'!$M$3,CatDataSht!$A$1:$C$5,2,FALSE)","v":"Select a Category"},{"$f":"#REF!","v":{"$error":"#REF!"}},{"$f":"#REF!","v":{"$error":"#REF!"}}]
[760,{"$f":"#REF!","v":{"$error":"#REF!"}},"OTHER COSTS",{"$f":"VLOOKUP('Investment 5'!$M$3,CatDataSht!$A$1:$C$5,2,FALSE)","v":"Select a Category"},{"$f":"#REF!","v":{"$error":"#REF!"}},{"$f":"#REF!","v":{"$error":"#REF!"}}]
[760,{"$f":"#REF!","v":{"$error":"#REF!"}},"INDIRECT COSTS",{"$f":"VLOOKUP('Investment 5'!$M$3,CatDataSht!$A$1:$C$5,2,FALSE)","v":"Select a Category"},{"$f":"#REF!","v":{"$error":"#REF!"}}]
[760,{"$f":"#REF!","v":{"$error":"#REF!"}},"EQUIPMENT",{"$f":"VLOOKUP('Investment 5'!$M$3,CatDataSht!$A$1:$C$5,2,FALSE)","v":"Select a Category"},{"$f":"#REF!","v":{"$error":"#REF!"}},{"$f":"#REF!","v":{"$error":"#REF!"}}]
[760,{"$f":"#REF!","v":{"$error":"#REF!"}},"Total Funds Requested",{"$f":"VLOOKUP('Investment 5'!$M$3,CatDataSht!$A$1:$C$5,2,FALSE)","v":"Select a Category"},{"$f":"#REF!","v":{"$error":"#REF!"}},{"$f":"#REF!","v":{"$error":"#REF!"}}]
[760,{"$f":"#REF!","v":{"$error":"#REF!"}},"ADMINISTRATORS",{"$f":"VLOOKUP('Investment 6'!$M$3,CatDataSht!$A$1:$C$5,2,FALSE)","v":"Select a Category"},{"$f":"#REF!","v":{"$error":"#REF!"}},{"$f":"#REF!","v":{"$error":"#REF!"}}]
[760,{"$f":"#REF!","v":{"$error":"#REF!"}},"INSTRUCTIONAL/PROF. STAFF",{"$f":"VLOOKUP('Investment 6'!$M$3,CatDataSht!$A$1:$C$5,2,FALSE)","v":"Select a Category"},{"$f":"#REF!","v":{"$error":"#REF!"}},{"$f":"#REF!","v":{"$error":"#REF!"}}]
[760,{"$f":"#REF!","v":{"$error":"#REF!"}},"SUPPORT STAFF",{"$f":"VLOOKUP('Investment 6'!$M$3,CatDataSht!$A$1:$C$5,2,FALSE)","v":"Select a Category"},{"$f":"#REF!","v":{"$error":"#REF!"}},{"$f":"#REF!","v":{"$error":"#REF!"}}]
[760,{"$f":"#REF!","v":{"$error":"#REF!"}},"FRINGE BENEFITS",{"$f":"VLOOKUP('Investment 6'!$M$3,CatDataSht!$A$1:$C$5,2,FALSE)","v":"Select a Category"},{"$f":"#REF!","v":{"$error":"#REF!"}},{"$f":"#REF!","v":{"$error":"#REF!"}}]
[760,{"$f":"#REF!","v":{"$error":"#REF!"}},null,{"$f":"VLOOKUP('Investment 6'!$M$3,CatDataSht!$A$1:$C$5,2,FALSE)","v":"Select a Category"},{"$f":"#REF!","v":{"$error":"#REF!"}},{"$f":"#REF!","v":{"$error":"#REF!"}}]
[760,{"$f":"#REF!","v":{"$error":"#REF!"}},"CONTRACTUAL SERVICES",{"$f":"VLOOKUP('Investment 6'!$M$3,CatDataSht!$A$1:$C$5,2,FALSE)","v":"Select a Category"},{"$f":"#REF!","v":{"$error":"#REF!"}},{"$f":"#REF!","v":{"$error":"#REF!"}}]
[760,{"$f":"#REF!","v":{"$error":"#REF!"}},"SUPPLIES AND MATERIALS",{"$f":"VLOOKUP('Investment 6'!$M$3,CatDataSht!$A$1:$C$5,2,FALSE)","v":"Select a Category"},{"$f":"#REF!","v":{"$error":"#REF!"}},{"$f":"#REF!","v":{"$error":"#REF!"}}]
[760,{"$f":"#REF!","v":{"$error":"#REF!"}},"TRAVEL",{"$f":"VLOOKUP('Investment 6'!$M$3,CatDataSht!$A$1:$C$5,2,FALSE)","v":"Select a Category"},{"$f":"#REF!","v":{"$error":"#REF!"}},{"$f":"#REF!","v":{"$error":"#REF!"}}]
[760,{"$f":"#REF!","v":{"$error":"#REF!"}},"OTHER COSTS",{"$f":"VLOOKUP('Investment 6'!$M$3,CatDataSht!$A$1:$C$5,2,FALSE)","v":"Select a Category"},{"$f":"#REF!","v":{"$error":"#REF!"}},{"$f":"#REF!","v":{"$error":"#REF!"}}]
[760,{"$f":"#REF!","v":{"$error":"#REF!"}},"INDIRECT COSTS",{"$f":"VLOOKUP('Investment 6'!$M$3,CatDataSht!$A$1:$C$5,2,FALSE)","v":"Select a Category"},{"$f":"#REF!","v":{"$error":"#REF!"}}]
[760,{"$f":"#REF!","v":{"$error":"#REF!"}},"EQUIPMENT",{"$f":"VLOOKUP('Investment 6'!$M$3,CatDataSht!$A$1:$C$5,2,FALSE)","v":"Select a Category"},{"$f":"#REF!","v":{"$error":"#REF!"}},{"$f":"#REF!","v":{"$error":"#REF!"}}]
[760,{"$f":"#REF!","v":{"$error":"#REF!"}},"Total Funds Requested",{"$f":"VLOOKUP('Investment 6'!$M$3,CatDataSht!$A$1:$C$5,2,FALSE)","v":"Select a Category"},{"$f":"#REF!","v":{"$error":"#REF!"}},{"$f":"#REF!","v":{"$error":"#REF!"}}]
[760,{"$f":"#REF!","v":{"$error":"#REF!"}},"ADMINISTRATORS",{"$f":"VLOOKUP('Investment 7'!$M$3,CatDataSht!$A$1:$C$5,2,FALSE)","v":"Select a Category"},{"$f":"#REF!","v":{"$error":"#REF!"}},{"$f":"#REF!","v":{"$error":"#REF!"}}]
[760,{"$f":"#REF!","v":{"$error":"#REF!"}},"INSTRUCTIONAL/PROF. STAFF",{"$f":"VLOOKUP('Investment 7'!$M$3,CatDataSht!$A$1:$C$5,2,FALSE)","v":"Select a Category"},{"$f":"#REF!","v":{"$error":"#REF!"}},{"$f":"#REF!","v":{"$error":"#REF!"}}]
[760,{"$f":"#REF!","v":{"$error":"#REF!"}},"SUPPORT STAFF",{"$f":"VLOOKUP('Investment 7'!$M$3,CatDataSht!$A$1:$C$5,2,FALSE)","v":"Select a Category"},{"$f":"#REF!","v":{"$error":"#REF!"}},{"$f":"#REF!","v":{"$error":"#REF!"}}]
[760,{"$f":"#REF!","v":{"$error":"#REF!"}},"FRINGE BENEFITS",{"$f":"VLOOKUP('Investment 7'!$M$3,CatDataSht!$A$1:$C$5,2,FALSE)","v":"Select a Category"},{"$f":"#REF!","v":{"$error":"#REF!"}},{"$f":"#REF!","v":{"$error":"#REF!"}}]
[760,{"$f":"#REF!","v":{"$error":"#REF!"}},null,{"$f":"VLOOKUP('Investment 7'!$M$3,CatDataSht!$A$1:$C$5,2,FALSE)","v":"Select a Category"},{"$f":"#REF!","v":{"$error":"#REF!"}},{"$f":"#REF!","v":{"$error":"#REF!"}}]
[760,{"$f":"#REF!","v":{"$error":"#REF!"}},"CONTRACTUAL SERVICES",{"$f":"VLOOKUP('Investment 7'!$M$3,CatDataSht!$A$1:$C$5,2,FALSE)","v":"Select a Category"},{"$f":"#REF!","v":{"$error":"#REF!"}},{"$f":"#REF!","v":{"$error":"#REF!"}}]
[760,{"$f":"#REF!","v":{"$error":"#REF!"}},"SUPPLIES AND MATERIALS",{"$f":"VLOOKUP('Investment 7'!$M$3,CatDataSht!$A$1:$C$5,2,FALSE)","v":"Select a Category"},{"$f":"#REF!","v":{"$error":"#REF!"}},{"$f":"#REF!","v":{"$error":"#REF!"}}]
[760,{"$f":"#REF!","v":{"$error":"#REF!"}},"TRAVEL",{"$f":"VLOOKUP('Investment 7'!$M$3,CatDataSht!$A$1:$C$5,2,FALSE)","v":"Select a Category"},{"$f":"#REF!","v":{"$error":"#REF!"}},{"$f":"#REF!","v":{"$error":"#REF!"}}]
[760,{"$f":"#REF!","v":{"$error":"#REF!"}},"OTHER COSTS",{"$f":"VLOOKUP('Investment 7'!$M$3,CatDataSht!$A$1:$C$5,2,FALSE)","v":"Select a Category"},{"$f":"#REF!","v":{"$error":"#REF!"}},{"$f":"#REF!","v":{"$error":"#REF!"}}]
[760,{"$f":"#REF!","v":{"$error":"#REF!"}},"INDIRECT COSTS",{"$f":"VLOOKUP('Investment 7'!$M$3,CatDataSht!$A$1:$C$5,2,FALSE)","v":"Select a Category"},{"$f":"#REF!","v":{"$error":"#REF!"}}]
[760,{"$f":"#REF!","v":{"$error":"#REF!"}},"EQUIPMENT",{"$f":"VLOOKUP('Investment 7'!$M$3,CatDataSht!$A$1:$C$5,2,FALSE)","v":"Select a Category"},{"$f":"#REF!","v":{"$error":"#REF!"}},{"$f":"#REF!","v":{"$error":"#REF!"}}]
[760,{"$f":"#REF!","v":{"$error":"#REF!"}},"Total Funds Requested",{"$f":"VLOOKUP('Investment 7'!$M$3,CatDataSht!$A$1:$C$5,2,FALSE)","v":"Select a Category"},{"$f":"#REF!","v":{"$error":"#REF!"}},{"$f":"#REF!","v":{"$error":"#REF!"}}]
[760,{"$f":"#REF!","v":{"$error":"#REF!"}},"ADMINISTRATORS",{"$f":"VLOOKUP('Investment 8'!$M$3,CatDataSht!$A$1:$C$5,2,FALSE)","v":"Select a Category"},{"$f":"#REF!","v":{"$error":"#REF!"}},{"$f":"#REF!","v":{"$error":"#REF!"}}]
[760,{"$f":"#REF!","v":{"$error":"#REF!"}},"INSTRUCTIONAL/PROF. STAFF",{"$f":"VLOOKUP('Investment 8'!$M$3,CatDataSht!$A$1:$C$5,2,FALSE)","v":"Select a Category"},{"$f":"#REF!","v":{"$error":"#REF!"}},{"$f":"#REF!","v":{"$error":"#REF!"}}]
[760,{"$f":"#REF!","v":{"$error":"#REF!"}},"SUPPORT STAFF",{"$f":"VLOOKUP('Investment 8'!$M$3,CatDataSht!$A$1:$C$5,2,FALSE)","v":"Select a Category"},{"$f":"#REF!","v":{"$error":"#REF!"}},{"$f":"#REF!","v":{"$error":"#REF!"}}]
[760,{"$f":"#REF!","v":{"$error":"#REF!"}},"FRINGE BENEFITS",{"$f":"VLOOKUP('Investment 8'!$M$3,CatDataSht!$A$1:$C$5,2,FALSE)","v":"Select a Category"},{"$f":"#REF!","v":{"$error":"#REF!"}},{"$f":"#REF!","v":{"$error":"#REF!"}}]
[760,{"$f":"#REF!","v":{"$error":"#REF!"}},null,{"$f":"VLOOKUP('Investment 8'!$M$3,CatDataSht!$A$1:$C$5,2,FALSE)","v":"Select a Category"},{"$f":"#REF!","v":{"$error":"#REF!"}},{"$f":"#REF!","v":{"$error":"#REF!"}}]
[760,{"$f":"#REF!","v":{"$error":"#REF!"}},"CONTRACTUAL SERVICES",{"$f":"VLOOKUP('Investment 8'!$M$3,CatDataSht!$A$1:$C$5,2,FALSE)","v":"Select a Category"},{"$f":"#REF!","v":{"$error":"#REF!"}},{"$f":"#REF!","v":{"$error":"#REF!"}}]
[760,{"$f":"#REF!","v":{"$error":"#REF!"}},"SUPPLIES AND MATERIALS",{"$f":"VLOOKUP('Investment 8'!$M$3,CatDataSht!$A$1:$C$5,2,FALSE)","v":"Select a Category"},{"$f":"#REF!","v":{"$error":"#REF!"}},{"$f":"#REF!","v":{"$error":"#REF!"}}]
[760,{"$f":"#REF!","v":{"$error":"#REF!"}},"TRAVEL",{"$f":"VLOOKUP('Investment 8'!$M$3,CatDataSht!$A$1:$C$5,2,FALSE)","v":"Select a Category"},{"$f":"#REF!","v":{"$error":"#REF!"}},{"$f":"#REF!","v":{"$error":"#REF!"}}]
[760,{"$f":"#REF!","v":{"$error":"#REF!"}},"OTHER COSTS",{"$f":"VLOOKUP('Investment 8'!$M$3,CatDataSht!$A$1:$C$5,2,FALSE)","v":"Select a Category"},{"$f":"#REF!","v":{"$error":"#REF!"}},{"$f":"#REF!","v":{"$error":"#REF!"}}]
[760,{"$f":"#REF!","v":{"$error":"#REF!"}},"INDIRECT COSTS",{"$f":"VLOOKUP('Investment 8'!$M$3,CatDataSht!$A$1:$C$5,2,FALSE)","v":"Select a Category"},{"$f":"#REF!","v":{"$error":"#REF!"}}]
[760,{"$f":"#REF!","v":{"$error":"#REF!"}},"EQUIPMENT",{"$f":"VLOOKUP('Investment 8'!$M$3,CatDataSht!$A$1:$C$5,2,FALSE)","v":"Select a Category"},{"$f":"#REF!","v":{"$error":"#REF!"}},{"$f":"#REF!","v":{"$error":"#REF!"}}]
[760,{"$f":"#REF!","v":{"$error":"#REF!"}},"Total Funds Requested",{"$f":"VLOOKUP('Investment 8'!$M$3,CatDataSht!$A$1:$C$5,2,FALSE)","v":"Select a Category"},{"$f":"#REF!","v":{"$error":"#REF!"}},{"$f":"#REF!","v":{"$error":"#REF!"}}]
[760,{"$f":"#REF!","v":{"$error":"#REF!"}},"ADMINISTRATORS",{"$f":"VLOOKUP('Investment 9'!$M$3,CatDataSht!$A$1:$C$5,2,FALSE)","v":"Select a Category"},{"$f":"#REF!","v":{"$error":"#REF!"}},{"$f":"#REF!","v":{"$error":"#REF!"}}]
[760,{"$f":"#REF!","v":{"$error":"#REF!"}},"INSTRUCTIONAL/PROF. STAFF",{"$f":"VLOOKUP('Investment 9'!$M$3,CatDataSht!$A$1:$C$5,2,FALSE)","v":"Select a Category"},{"$f":"#REF!","v":{"$error":"#REF!"}},{"$f":"#REF!","v":{"$error":"#REF!"}}]
[760,{"$f":"#REF!","v":{"$error":"#REF!"}},"SUPPORT STAFF",{"$f":"VLOOKUP('Investment 9'!$M$3,CatDataSht!$A$1:$C$5,2,FALSE)","v":"Select a Category"},{"$f":"#REF!","v":{"$error":"#REF!"}},{"$f":"#REF!","v":{"$error":"#REF!"}}]
[760,{"$f":"#REF!","v":{"$error":"#REF!"}},"FRINGE BENEFITS",{"$f":"VLOOKUP('Investment 9'!$M$3,CatDataSht!$A$1:$C$5,2,FALSE)","v":"Select a Category"},{"$f":"#REF!","v":{"$error":"#REF!"}},{"$f":"#REF!","v":{"$error":"#REF!"}}]
[760,{"$f":"#REF!","v":{"$error":"#REF!"}},null,{"$f":"VLOOKUP('Investment 9'!$M$3,CatDataSht!$A$1:$C$5,2,FALSE)","v":"Select a Category"},{"$f":"#REF!","v":{"$error":"#REF!"}},{"$f":"#REF!","v":{"$error":"#REF!"}}]
[760,{"$f":"#REF!","v":{"$error":"#REF!"}},"CONTRACTUAL SERVICES",{"$f":"VLOOKUP('Investment 9'!$M$3,CatDataSht!$A$1:$C$5,2,FALSE)","v":"Select a Category"},{"$f":"#REF!","v":{"$error":"#REF!"}},{"$f":"#REF!","v":{"$error":"#REF!"}}]
[760,{"$f":"#REF!","v":{"$error":"#REF!"}},"SUPPLIES AND MATERIALS",{"$f":"VLOOKUP('Investment 9'!$M$3,CatDataSht!$A$1:$C$5,2,FALSE)","v":"Select a Category"},{"$f":"#REF!","v":{"$error":"#REF!"}},{"$f":"#REF!","v":{"$error":"#REF!"}}]
[760,{"$f":"#REF!","v":{"$error":"#REF!"}},"TRAVEL",{"$f":"VLOOKUP('Investment 9'!$M$3,CatDataSht!$A$1:$C$5,2,FALSE)","v":"Select a Category"},{"$f":"#REF!","v":{"$error":"#REF!"}},{"$f":"#REF!","v":{"$error":"#REF!"}}]
[760,{"$f":"#REF!","v":{"$error":"#REF!"}},"OTHER COSTS",{"$f":"VLOOKUP('Investment 9'!$M$3,CatDataSht!$A$1:$C$5,2,FALSE)","v":"Select a Category"},{"$f":"#REF!","v":{"$error":"#REF!"}},{"$f":"#REF!","v":{"$error":"#REF!"}}]
[760,{"$f":"#REF!","v":{"$error":"#REF!"}},"INDIRECT COSTS",{"$f":"VLOOKUP('Investment 9'!$M$3,CatDataSht!$A$1:$C$5,2,FALSE)","v":"Select a Category"},{"$f":"#REF!","v":{"$error":"#REF!"}}]
[760,{"$f":"#REF!","v":{"$error":"#REF!"}},"EQUIPMENT",{"$f":"VLOOKUP('Investment 9'!$M$3,CatDataSht!$A$1:$C$5,2,FALSE)","v":"Select a Category"},{"$f":"#REF!","v":{"$error":"#REF!"}},{"$f":"#REF!","v":{"$error":"#REF!"}}]
[760,{"$f":"#REF!","v":{"$error":"#REF!"}},"Total Funds Requested",{"$f":"VLOOKUP('Investment 9'!$M$3,CatDataSht!$A$1:$C$5,2,FALSE)","v":"Select a Category"},{"$f":"#REF!","v":{"$error":"#REF!"}},{"$f":"#REF!","v":{"$error":"#REF!"}}]
[760,{"$f":"#REF!","v":{"$error":"#REF!"}},"ADMINISTRATORS",{"$f":"VLOOKUP('Investment 10'!$M$3,CatDataSht!$A$1:$C$5,2,FALSE)","v":"Select a Category"},{"$f":"#REF!","v":{"$error":"#REF!"}},{"$f":"#REF!","v":{"$error":"#REF!"}}]
[760,{"$f":"#REF!","v":{"$error":"#REF!"}},"INSTRUCTIONAL/PROF. STAFF",{"$f":"VLOOKUP('Investment 10'!$M$3,CatDataSht!$A$1:$C$5,2,FALSE)","v":"Select a Category"},{"$f":"#REF!","v":{"$error":"#REF!"}},{"$f":"#REF!","v":{"$error":"#REF!"}}]
[760,{"$f":"#REF!","v":{"$error":"#REF!"}},"SUPPORT STAFF",{"$f":"VLOOKUP('Investment 10'!$M$3,CatDataSht!$A$1:$C$5,2,FALSE)","v":"Select a Category"},{"$f":"#REF!","v":{"$error":"#REF!"}},{"$f":"#REF!","v":{"$error":"#REF!"}}]
[760,{"$f":"#REF!","v":{"$error":"#REF!"}},"FRINGE BENEFITS",{"$f":"VLOOKUP('Investment 10'!$M$3,CatDataSht!$A$1:$C$5,2,FALSE)","v":"Select a Category"},{"$f":"#REF!","v":{"$error":"#REF!"}},{"$f":"#REF!","v":{"$error":"#REF!"}}]
[760,{"$f":"#REF!","v":{"$error":"#REF!"}},null,{"$f":"VLOOKUP('Investment 10'!$M$3,CatDataSht!$A$1:$C$5,2,FALSE)","v":"Select a Category"},{"$f":"#REF!","v":{"$error":"#REF!"}},{"$f":"#REF!","v":{"$error":"#REF!"}}]
[760,{"$f":"#REF!","v":{"$error":"#REF!"}},"CONTRACTUAL SERVICES",{"$f":"VLOOKUP('Investment 10'!$M$3,CatDataSht!$A$1:$C$5,2,FALSE)","v":"Select a Category"},{"$f":"#REF!","v":{"$error":"#REF!"}},{"$f":"#REF!","v":{"$error":"#REF!"}}]
[760,{"$f":"#REF!","v":{"$error":"#REF!"}},"SUPPLIES AND MATERIALS",{"$f":"VLOOKUP('Investment 10'!$M$3,CatDataSht!$A$1:$C$5,2,FALSE)","v":"Select a Category"},{"$f":"#REF!","v":{"$error":"#REF!"}},{"$f":"#REF!","v":{"$error":"#REF!"}}]
[760,{"$f":"#REF!","v":{"$error":"#REF!"}},"TRAVEL",{"$f":"VLOOKUP('Investment 10'!$M$3,CatDataSht!$A$1:$C$5,2,FALSE)","v":"Select a Category"},{"$f":"#REF!","v":{"$error":"#REF!"}},{"$f":"#REF!","v":{"$error":"#REF!"}}]
[760,{"$f":"#REF!","v":{"$error":"#REF!"}},"OTHER COSTS",{"$f":"VLOOKUP('Investment 10'!$M$3,CatDataSht!$A$1:$C$5,2,FALSE)","v":"Select a Category"},{"$f":"#REF!","v":{"$error":"#REF!"}},{"$f":"#REF!","v":{"$error":"#REF!"}}]
[760,{"$f":"#REF!","v":{"$error":"#REF!"}},"INDIRECT COSTS",{"$f":"VLOOKUP('Investment 10'!$M$3,CatDataSht!$A$1:$C$5,2,FALSE)","v":"Select a Category"},{"$f":"#REF!","v":{"$error":"#REF!"}}]
[760,{"$f":"#REF!","v":{"$error":"#REF!"}},"EQUIPMENT",{"$f":"VLOOKUP('Investment 10'!$M$3,CatDataSht!$A$1:$C$5,2,FALSE)","v":"Select a Category"},{"$f":"#REF!","v":{"$error":"#REF!"}},{"$f":"#REF!","v":{"$error":"#REF!"}}]
[760,{"$f":"#REF!","v":{"$error":"#REF!"}},"Total Funds Requested",{"$f":"VLOOKUP('Investment 10'!$M$3,CatDataSht!$A$1:$C$5,2,FALSE)","v":"Select a Category"},{"$f":"#REF!","v":{"$error":"#REF!"}},{"$f":"#REF!","v":{"$error":"#REF!"}}]
[760,{"$f":"#REF!","v":{"$error":"#REF!"}},"ADMINISTRATORS",{"$f":"VLOOKUP('Investment 11'!$M$3,CatDataSht!$A$1:$C$5,2,FALSE)","v":"Select a Category"},{"$f":"#REF!","v":{"$error":"#REF!"}},{"$f":"#REF!","v":{"$error":"#REF!"}}]
[760,{"$f":"#REF!","v":{"$error":"#REF!"}},"INSTRUCTIONAL/PROF. STAFF",{"$f":"VLOOKUP('Investment 11'!$M$3,CatDataSht!$A$1:$C$5,2,FALSE)","v":"Select a Category"},{"$f":"#REF!","v":{"$error":"#REF!"}},{"$f":"#REF!","v":{"$error":"#REF!"}}]
[760,{"$f":"#REF!","v":{"$error":"#REF!"}},"SUPPORT STAFF",{"$f":"VLOOKUP('Investment 11'!$M$3,CatDataSht!$A$1:$C$5,2,FALSE)","v":"Select a Category"},{"$f":"#REF!","v":{"$error":"#REF!"}},{"$f":"#REF!","v":{"$error":"#REF!"}}]
[760,{"$f":"#REF!","v":{"$error":"#REF!"}},"FRINGE BENEFITS",{"$f":"VLOOKUP('Investment 11'!$M$3,CatDataSht!$A$1:$C$5,2,FALSE)","v":"Select a Category"},{"$f":"#REF!","v":{"$error":"#REF!"}},{"$f":"#REF!","v":{"$error":"#REF!"}}]
[760,{"$f":"#REF!","v":{"$error":"#REF!"}},null,{"$f":"VLOOKUP('Investment 11'!$M$3,CatDataSht!$A$1:$C$5,2,FALSE)","v":"Select a Category"},{"$f":"#REF!","v":{"$error":"#REF!"}},{"$f":"#REF!","v":{"$error":"#REF!"}}]
[760,{"$f":"#REF!","v":{"$error":"#REF!"}},"CONTRACTUAL SERVICES",{"$f":"VLOOKUP('Investment 11'!$M$3,CatDataSht!$A$1:$C$5,2,FALSE)","v":"Select a Category"},{"$f":"#REF!","v":{"$error":"#REF!"}},{"$f":"#REF!","v":{"$error":"#REF!"}}]
[760,{"$f":"#REF!","v":{"$error":"#REF!"}},"SUPPLIES AND MATERIALS",{"$f":"VLOOKUP('Investment 11'!$M$3,CatDataSht!$A$1:$C$5,2,FALSE)","v":"Select a Category"},{"$f":"#REF!","v":{"$error":"#REF!"}},{"$f":"#REF!","v":{"$error":"#REF!"}}]
[760,{"$f":"#REF!","v":{"$error":"#REF!"}},"TRAVEL",{"$f":"VLOOKUP('Investment 11'!$M$3,CatDataSht!$A$1:$C$5,2,FALSE)","v":"Select a Category"},{"$f":"#REF!","v":{"$error":"#REF!"}},{"$f":"#REF!","v":{"$error":"#REF!"}}]
[760,{"$f":"#REF!","v":{"$error":"#REF!"}},"OTHER COSTS",{"$f":"VLOOKUP('Investment 11'!$M$3,CatDataSht!$A$1:$C$5,2,FALSE)","v":"Select a Category"},{"$f":"#REF!","v":{"$error":"#REF!"}},{"$f":"#REF!","v":{"$error":"#REF!"}}]
[760,{"$f":"#REF!","v":{"$error":"#REF!"}},"INDIRECT COSTS",{"$f":"VLOOKUP('Investment 11'!$M$3,CatDataSht!$A$1:$C$5,2,FALSE)","v":"Select a Category"},{"$f":"#REF!","v":{"$error":"#REF!"}}]
[760,{"$f":"#REF!","v":{"$error":"#REF!"}},"EQUIPMENT",{"$f":"VLOOKUP('Investment 11'!$M$3,CatDataSht!$A$1:$C$5,2,FALSE)","v":"Select a Category"},{"$f":"#REF!","v":{"$error":"#REF!"}},{"$f":"#REF!","v":{"$error":"#REF!"}}]
[760,{"$f":"#REF!","v":{"$error":"#REF!"}},"Total Funds Requested",{"$f":"VLOOKUP('Investment 11'!$M$3,CatDataSht!$A$1:$C$5,2,FALSE)","v":"Select a Category"},{"$f":"#REF!","v":{"$error":"#REF!"}},{"$f":"#REF!","v":{"$error":"#REF!"}}]
[760,{"$f":"#REF!","v":{"$error":"#REF!"}},"ADMINISTRATORS",{"$f":"VLOOKUP('Investment 12'!$M$3,CatDataSht!$A$1:$C$5,2,FALSE)","v":"Select a Category"},{"$f":"#REF!","v":{"$error":"#REF!"}},{"$f":"#REF!","v":{"$error":"#REF!"}}]
[760,{"$f":"#REF!","v":{"$error":"#REF!"}},"INSTRUCTIONAL/PROF. STAFF",{"$f":"VLOOKUP('Investment 12'!$M$3,CatDataSht!$A$1:$C$5,2,FALSE)","v":"Select a Category"},{"$f":"#REF!","v":{"$error":"#REF!"}},{"$f":"#REF!","v":{"$error":"#REF!"}}]
[760,{"$f":"#REF!","v":{"$error":"#REF!"}},"SUPPORT STAFF",{"$f":"VLOOKUP('Investment 12'!$M$3,CatDataSht!$A$1:$C$5,2,FALSE)","v":"Select a Category"},{"$f":"#REF!","v":{"$error":"#REF!"}},{"$f":"#REF!","v":{"$error":"#REF!"}}]
[760,{"$f":"#REF!","v":{"$error":"#REF!"}},"FRINGE BENEFITS",{"$f":"VLOOKUP('Investment 12'!$M$3,CatDataSht!$A$1:$C$5,2,FALSE)","v":"Select a Category"},{"$f":"#REF!","v":{"$error":"#REF!"}},{"$f":"#REF!","v":{"$error":"#REF!"}}]
[760,{"$f":"#REF!","v":{"$error":"#REF!"}},null,{"$f":"VLOOKUP('Investment 12'!$M$3,CatDataSht!$A$1:$C$5,2,FALSE)","v":"Select a Category"},{"$f":"#REF!","v":{"$error":"#REF!"}},{"$f":"#REF!","v":{"$error":"#REF!"}}]
[760,{"$f":"#REF!","v":{"$error":"#REF!"}},"CONTRACTUAL SERVICES",{"$f":"VLOOKUP('Investment 12'!$M$3,CatDataSht!$A$1:$C$5,2,FALSE)","v":"Select a Category"},{"$f":"#REF!","v":{"$error":"#REF!"}},{"$f":"#REF!","v":{"$error":"#REF!"}}]
[760,{"$f":"#REF!","v":{"$error":"#REF!"}},"SUPPLIES AND MATERIALS",{"$f":"VLOOKUP('Investment 12'!$M$3,CatDataSht!$A$1:$C$5,2,FALSE)","v":"Select a Category"},{"$f":"#REF!","v":{"$error":"#REF!"}},{"$f":"#REF!","v":{"$error":"#REF!"}}]
[760,{"$f":"#REF!","v":{"$error":"#REF!"}},"TRAVEL",{"$f":"VLOOKUP('Investment 12'!$M$3,CatDataSht!$A$1:$C$5,2,FALSE)","v":"Select a Category"},{"$f":"#REF!","v":{"$error":"#REF!"}},{"$f":"#REF!","v":{"$error":"#REF!"}}]
[760,{"$f":"#REF!","v":{"$error":"#REF!"}},"OTHER COSTS",{"$f":"VLOOKUP('Investment 12'!$M$3,CatDataSht!$A$1:$C$5,2,FALSE)","v":"Select a Category"},{"$f":"#REF!","v":{"$error":"#REF!"}},{"$f":"#REF!","v":{"$error":"#REF!"}}]
[760,{"$f":"#REF!","v":{"$error":"#REF!"}},"INDIRECT COSTS",{"$f":"VLOOKUP('Investment 12'!$M$3,CatDataSht!$A$1:$C$5,2,FALSE)","v":"Select a Category"},{"$f":"#REF!","v":{"$error":"#REF!"}}]
[760,{"$f":"#REF!","v":{"$error":"#REF!"}},"EQUIPMENT",{"$f":"VLOOKUP('Investment 12'!$M$3,CatDataSht!$A$1:$C$5,2,FALSE)","v":"Select a Category"},{"$f":"#REF!","v":{"$error":"#REF!"}},{"$f":"#REF!","v":{"$error":"#REF!"}}]
[760,{"$f":"#REF!","v":{"$error":"#REF!"}},"Total Funds Requested",{"$f":"VLOOKUP('Investment 12'!$M$3,CatDataSht!$A$1:$C$5,2,FALSE)","v":"Select a Category"},{"$f":"#REF!","v":{"$error":"#REF!"}},{"$f":"#REF!","v":{"$error":"#REF!"}}]
[760,{"$f":"#REF!","v":{"$error":"#REF!"}},"ADMINISTRATORS","BUDGET PAGES",{"$f":"#REF!","v":{"$error":"#REF!"}},{"$f":"#REF!","v":{"$error":"#REF!"}}]
[760,{"$f":"#REF!","v":{"$error":"#REF!"}},"INSTRUCTIONAL/PROF. STAFF","BUDGET PAGES",{"$f":"#REF!","v":{"$error":"#REF!"}},{"$f":"#REF!","v":{"$error":"#REF!"}}]
[760,{"$f":"#REF!","v":{"$error":"#REF!"}},"SUPPORT STAFF","BUDGET PAGES",{"$f":"#REF!","v":{"$error":"#REF!"}},{"$f":"#REF!","v":{"$error":"#REF!"}}]
[760,{"$f":"#REF!","v":{"$error":"#REF!"}},"FRINGE BENEFITS","BUDGET PAGES",{"$f":"#REF!","v":{"$error":"#REF!"}},{"$f":"#REF!","v":{"$error":"#REF!"}}]
[760,{"$f":"#REF!","v":{"$error":"#REF!"}},null,"BUDGET PAGES",{"$f":"#REF!","v":{"$error":"#REF!"}},{"$f":"#REF!","v":{"$error":"#REF!"}}]
[760,{"$f":"#REF!","v":{"$error":"#REF!"}},"CONTRACTUAL SERVICES","BUDGET PAGES",{"$f":"#REF!","v":{"$error":"#REF!"}},{"$f":"#REF!","v":{"$error":"#REF!"}}]
[760,{"$f":"#REF!","v":{"$error":"#REF!"}},"SUPPLIES AND MATERIALS","BUDGET PAGES",{"$f":"#REF!","v":{"$error":"#REF!"}},{"$f":"#REF!","v":{"$error":"#REF!"}}]
[760,{"$f":"#REF!","v":{"$error":"#REF!"}},"TRAVEL","BUDGET PAGES",{"$f":"#REF!","v":{"$error":"#REF!"}},{"$f":"#REF!","v":{"$error":"#REF!"}}]
[760,{"$f":"#REF!","v":{"$error":"#REF!"}},"OTHER COSTS","BUDGET PAGES",{"$f":"#REF!","v":{"$error":"#REF!"}},{"$f":"#REF!","v":{"$error":"#REF!"}}]
[760,{"$f":"#REF!","v":{"$error":"#REF!"}},"INDIRECT COSTS","BUDGET PAGES",{"$f":"#REF!","v":{"$error":"#REF!"}},{"$f":"#REF!","v":{"$error":"#REF!"}}]
[760,{"$f":"#REF!","v":{"$error":"#REF!"}},"EQUIPMENT","BUDGET PAGES",{"$f":"#REF!","v":{"$error":"#REF!"}},{"$f":"#REF!","v":{"$error":"#REF!"}}]
[760,{"$f":"#REF!","v":{"$error":"#REF!"}},"Total Funds Requested","BUDGET PAGES",{"$f":"#REF!","v":{"$error":"#REF!"}},{"$f":"SUM(F182:F192)","v":{"$error":"#REF!"}}]

{"sheet":"CatDataSht","index":15,"n_rows":5,"n_cols":3,"rows_kept":5,"cut":false,"hidden":true,"merged":[]}
[1,"Select a Category"]
[2,"Educator Quality and Effectiveness","Activities funded under this priority will be designed to make improvements in educator effectiveness and in the equitable distribution of qualified teachers, para-educators, administrators, and other personnel working with students with disabilities and their families.   Districts should consider uses of funds under this priority that create lasting results without creating unsustainable recurring costs.\n         \nKey long-term goals under this priority include:\n• Increased number of fully licensed special educators;\n• Increased number of highly qualified special educators;\n• Increased numbers of special educators working in high need schools and districts;\n• Develop and expand partnerships with institutions of higher education and/or other organizations to design and implement licensure and/or other preparation programs for special educators;\n• Increased retention rates of special educators who remain in the field; and\n• Improved capacity of general educators working with students with disabilities. "]
[3,"Supporting Schools, Districts, and Students","Activities funded under this priority will be used to strengthen existing systems and to drive reforms that result in improved programs and results for student with disabilities and their families. All reform initiatives should be considered as a component of a standards-based reform strategy. Districts should consider uses of funds under this priority that create lasting results without creating unsustainable recurring costs.\n\nKey long-term goals under this priority include:\n• Increased numbers of schools and districts that have demonstrated substantial gains in achievement for students with disabilities;\n• Increased number of schools and districts that have demonstrated substantial gains in closing the achievement gap between general and special education students;\n• Develop and expand the capacity of schools and districts to serve students with disabilities in the least restrictive environment; \n• Improved district ability to maintain fully compliant special education programs;\n• Increased family involvement in their child’s education and in the life of the school; and \n• Increased partnerships with other districts to provide services to students with disabilities."]
[4,"Assessment and Data Systems","Activities funded under this priority will be used to improve implementation of high-quality assessments and data systems to determine eligibility, track progress and foster continuous improvement for students with disabilities.  Districts should consider uses of funds under this priority that create lasting results without creating unsustainable recurring costs.\n\nKey long-term goals under this priority include:\n• Improved capacity of school and district personnel to conduct high quality assessments that inform eligibility determination and the IEP process;\n• Improved district ability to maintain fully compliant special education programs;\n• Develop regional models for assessment and instruction;\n• Develop and expand the capacity to collect and use data to improve teaching and learning; and\n• Improved data collection systems to ensure valid and reliable data."]
[5,"College and Career Readiness","Activities funded under this priority will be used to increase the capacity of schools and districts to prepare greater numbers of students with disabilities for work and college success.  In order for students with disabilities to achieve positive post school outcomes schools need to help students and their families engage in meaningful transition planning activities and to prepare students for successful employment, education and community membership. Districts should consider uses of funds under this priority that create lasting results without creating unsustainable recurring costs.\n\nKey long-term goals under this priority include:\n• Increased capacity of schools and districts to effectively coordinate family, school and community resources to help students with disabilities meet transition goals;\n• Improved opportunities for students with disabilities to participate in meaningful career guidance and exploration activities;\n• Develop regional partnerships with agencies, institutions of higher education and local employers to provide meaningful transition related experiences for students with disabilities;\n• Implement with fidelity the state and federal transition related laws and regulations; and\n• Increased number of students with disabilities who are college-and-career ready upon graduation."]

{"sheet":"supt list 013006","index":16,"n_rows":427,"n_cols":11,"rows_kept":427,"cut":false,"hidden":true,"merged":[]}
[1,"FUNCTION","FIRST NAME","LAST NAME","ORGANIZATION NAME","ORGANIZATION CODE","ADDRESS LINE 1","ADDRESS LINE 2","CITY/TOWN","STATE","ZIP CODE"]
[2,"Charter School Leader","Kathleen","Greenwood","Abby Kelley Foster Charter Public (District)","04450000","10 New Bond Street",null,"Worcester","MA","01606"]
[3,"Superintendent","Peter","Schafer","Abington","00010000","1 Ralph Hamlin Lane",null,"Abington","MA","02351"]
[4,"Charter School Leader","Susan","Thompson","Academy Of the Pacific Rim Charter Public (District)","04120000","1 Westinghouse Plaza",null,"Hyde Park","MA","02136"]
[5,"Charter School Leader","Donna","Georges","Academy of Strategic Learning Charter (District)","04150000","9 Water Street",null,"Amesbury","MA","01913"]
[6,"Superintendent","William","Ryan","Acton","00020000","16 Charter Road",null,"Acton","MA","01720"]
[7,"Superintendent","William","Ryan","Acton-Boxborough","06000000","16 Charter Rd",null,"Acton","MA","01720"]
[8,"Superintendent","Stephen","Donovan","Acushnet","00030000","708 Middle Road","Suite 1","Acushnet","MA","02743"]
[9,"Superintendent","Alfred","Skrocki","Adams-Cheshire","06030000","125 Savoy Road",null,"Cheshire","MA","01225"]
[10,"Charter School Leader","Barbara","McGann","Advanced Math and Science Academy Charter (District)","04300000","201 Forest Street",null,"Marlborough","MA","01752"]
[11,"Superintendent","Mary","Czajkowski","Agawam","00050000","1305 Springfield St","Suite 1","Feeding Hills","MA","01030"]
[12,"Superintendent","Charles","Chaurette","Amesbury","00070000","10 Congress St.",null,"Amesbury","MA","01913"]
[13,"Superintendent","Maria","Geryk","Amherst","00080000","170 Chestnut Street",null,"Amherst","MA","01002"]
[14,"Superintendent","Maria","Geryk","Amherst-Pelham","06050000","170 Chestnut Street",null,"Amherst","MA","01002"]
[15,"Superintendent","Claudia","Bach","Andover","00090000","36 Bartlet Street",null,"Andover","MA","01810"]
[16,"Superintendent","Kathleen","Bodie","Arlington","00100000","869 Massachusetts Avenue",null,"Arlington","MA","02476"]
[17,"Superintendent","Michael","Zapantis","Ashburnham-Westminster","06100000","11 Oakmont Drive","c/o Office of the Superintendent","Ashburnham","MA","01430"]
[18,"Superintendent","Richard","Hoffmann","Ashland","00140000","87 West Union Street",null,"Ashland","MA","01721"]
[19,"Superintendent","Mary","Nawrocki","Assabet Valley Regional Vocational Technical","08010000","215 Fitchburg Street",null,"Marlborough","MA","01752"]
[20,"Superintendent","Anthony","Polito","Athol-Royalston","06150000","P.O.Box 968","1062 Pleasant Street","Athol","MA","01331"]
[21,"Charter School Leader","Fernando","Goulart","Atlantis Charter (District)","04910000","37 Park Street Street",null,"Fall River","MA","02721"]
[22,"Superintendent","Pia","Durkin","Attleboro","00160000","100 Rathbun Willard Drive",null,"Attleboro","MA","02703"]
[23,"Superintendent","Maryellen","Brunelle","Auburn","00170000","5 West Street",null,"Auburn","MA","01501"]
[24,"Superintendent","Margaret","Frieswyk","Avon","00180000","Patrick Clark Drive",null,"Avon","MA","02322"]
[25,"Superintendent","George","Frost","Ayer","00190000","141 Washington Street",null,"Ayer","MA","01432"]
[26,"Superintendent","Patricia","Grenier","Barnstable","00200000","P O Box 955","230 South Street","Hyannis","MA","02601"]
[27,"Charter School Leader","Kara","Peterson","Barnstable Horace Mann Charter (District)","04230000","730 Osterville-W. Barnstable Road",null,"Marstons Mills","MA","02648"]
[28,"Superintendent","Maureen","Lacroix","Bedford","00230000","97 McMahon Road",null,"Bedford","MA","01730"]
[29,"Superintendent","Richard","Pazasis","Belchertown","00240000","P.O. Box 841","14 Maple St.","Belchertown","MA","01007"]
[30,"Superintendent","David","Fischer","Bellingham","00250000","60 Harpin Street",null,"Bellingham","MA","02019"]
[31,"Superintendent","Patricia","Aubin","Belmont","00260000","644 Pleasant Street",null,"Belmont","MA","02478"]
[32,"Charter School Leader","Marlon","Davis","Benjamin Banneker Charter Public (District)","04200000","21 Notre Dame Avenue",null,"Cambridge","MA","02140"]
[33,"Charter School Leader","Kevin","O'Malley","Benjamin Franklin Classical Charter Public (District)","04470000","201 Main Street",null,"Franklin","MA","02038"]
[34,"Superintendent","Thomas","Lynch","Berkley","00270000","21 North Main Street",null,"Berkley","MA","02779"]
[35,"Charter School Leader","Julia","Bowen","Berkshire Arts and Technology Charter Public (District)","04140000","One Commercial Place","PO Box 267","Adams","MA","01220"]
[36,"Superintendent","Donna","Moyer","Berkshire Hills","06180000","50 Main Street","PO Box 617","Stockbridge","MA","01262"]
[37,"Superintendent","Brian","McDermott","Berlin","00280000","215 Main Street",null,"Boylston","MA","01505"]
[38,"Superintendent","Brian","McDermott","Berlin-Boylston","06200000","215 Main Street",null,"Boylston","MA","01505"]
[39,"Superintendent","James","Hayes","Beverly","00300000","502 Cabot St",null,"Beverly","MA","01915"]
[40,"Superintendent","Anthony","Serio","Billerica","00310000","365 Boston Rd",null,"Billerica","MA","01821"]
[41,"Superintendent","Michael","Fitzpatrick","Blackstone Valley Regional Vocational Technical","08050000","65 Pleasant Street",null,"Upton","MA","01568"]
[42,"Superintendent","Christine","Tyrie","Blackstone-Millville","06220000","175 Lincoln Street",null,"Blackstone","MA","01504"]
[43,"Superintendent","Joseph","Ciccolo","Blue Hills Regional Vocational Technical","08060000","800 Randolph Street",null,"Canton","MA","02021"]
[44,"Superintendent","Carol","Johnson","Boston","00350000","26 Court Street",null,"Boston","MA","02108"]
[45,"Charter School Leader","Kathleen","Sullivan","Boston Collegiate Charter (District)","04490000","11 Mayhew Street",null,"Dorchester","MA","02125"]
[46,"Charter School Leader","Karen","Cowan","Boston Day and Evening Academy Charter (District)","04240000","20 Kearsarge Ave",null,"Roxbury","MA","02119"]
[47,"Charter School Leader","Howard","Mccue","Boston Preparatory Charter Public (District)","04160000","1286 Hyde Park Avenue",null,"Hyde Park","MA","02136"]
[48,"Charter School Leader","Roger","Harris","Boston Renaissance Charter Public (District)","04810000","250 Stuart St",null,"Boston","MA","02116"]
[49,"Superintendent","Edmond","LaFleur","Bourne","00360000","36 Sandwich Rd",null,"Bourne","MA","02532"]
[50,"Superintendent","Curtis","Bates","Boxborough","00370000","493 Massachusetts Avenue",null,"Boxborough","MA","01719"]
[51,"Superintendent","Bernard","Creeden","Boxford","00380000","28 Middleton Road",null,"Boxford","MA","01921"]
[52,"Superintendent","Brian","McDermott","Boylston","00390000","215 Main Street",null,"Boylston","MA","01505"]
[53,"Superintendent","Peter","Kurzberg","Braintree","00400000","348 Pond Street",null,"Braintree","MA","02184"]
[54,"Superintendent","Michael","Gradone","Brewster","00410000","78 Eldredge Pkwy",null,"Orleans","MA","02653"]
[55,"Superintendent","Jacqueline","Forbes","Bridgewater-Raynham","06250000","777 Pleasant St.",null,"Raynham","MA","02767"]
[56,"Superintendent","Daniel","Durgin","Brimfield","00430000","320A Brookfield Rd",null,"Fiskdale","MA","01518"]
[57,"Superintendent","Krista","Paynton","Bristol County Agricultural","09100000","135 Center Street",null,"Dighton","MA","02715"]
[58,"Superintendent","Richard","Gross","Bristol-Plymouth Regional Vocational Technical","08100000","940 County Street",null,"Taunton","MA","02780"]
[59,"Superintendent","Basan","Nembirkow","Brockton","00440000","43 Crescent Street",null,"Brockton","MA","02301"]
[60,"Superintendent","Daniel","Durgin","Brookfield","00450000","320 Brookfield Rd",null,"Fiskdale","MA","01518"]
[61,"Superintendent","William","Lupini","Brookline","00460000","333 Washington Street",null,"Brookline","MA","02445"]
[62,"Superintendent","Eric","Conti","Burlington","00480000","123 Cambridge Street",null,"Burlington","MA","01803"]
[63,"Superintendent","Carolyn","Turk","Cambridge","00490000","159 Thorndike Street",null,"Cambridge","MA","02141"]
[64,"Superintendent","John","D'Auria","Canton","00500000","960 Washington Street",null,"Canton","MA","02021"]
[65,"Charter School Leader","Katherine","McNamara","Cape Cod Lighthouse Charter (District)","04320000","225 Rte 6A Bayberry Square",null,"Orleans","MA","02653"]
[66,"Superintendent","William","Fisher","Cape Cod Regional Vocational Technical","08150000","351 Pleasant Lake Avenue",null,"Harwich","MA","02645"]
[67,"Superintendent","Marie","Doyle","Carlisle","00510000","83 School Street",null,"Carlisle","MA","01741"]
[68,"Superintendent","Elizabeth","Sorrell","Carver","00520000","3 Carver Square Blvd.",null,"Carver","MA","02330"]
[69,"Superintendent","Donna","Harlan","Central Berkshire","06350000","PO Box 299",null,"Dalton","MA","01227"]
[70,"Superintendent","Mary","Lanzo","Chatham","00550000","425 Crowell Rd",null,"Chatham","MA","02633"]
[71,"Superintendent","Donald","Yeoman","Chelmsford","00560000","230 North Rd.",null,"North Chelmsford","MA","01863"]
[72,"Superintendent","Thomas","Kingston","Chelsea","00570000","500 Broadway Street","c/o City Hall Room 216","Chelsea","MA","02150"]
[73,"Superintendent","Barbara","Ripa","Chesterfield-Goshen","06320000","19 Stage Rd",null,"Westhampton","MA","01027"]
[74,"Superintendent","Richard","Rege","Chicopee","00610000","180 Broadway",null,"Chicopee","MA","01020"]
[75,"Charter School Leader","Thomas","O'Neill","Christa McAuliffe Regional Charter Public (District)","04180000","25 Clinton Street",null,"Framingham","MA","01702"]
[76,"Charter School Leader","Erica","Jamison","City On A Hill Charter Public (District)","04370000","58 Circuit Street",null,"Roxbury","MA","02119"]
[77,"Superintendent","Jon","Lev","Clarksburg","00630000","98 Church Street",null,"North Adams","MA","01247"]
[78,"Superintendent","Gerald","Gaw","Clinton","00640000","150 School Street",null,"Clinton","MA","01510"]
[79,"Charter School Leader","Margaret","Campbell","Codman Academy Charter Public (District)","04380000","637 Washington Street",null,"Dorchester","MA","02124"]
[80,"Superintendent","Denise","Walsh","Cohasset","00650000","143 Pond Street",null,"Cohasset","MA","02025"]
[81,"Charter School Leader","Paula","Evans","Community Charter School of Cambridge (District)","04360000","245 Bent Street",null,"Cambridge","MA","02141"]
[82,"Charter School Leader","Sheila","Balboni","Community Day Charter Public (District)","04400000","190 Hampshire Street",null,"Lawrence","MA","01840"]
[83,"Superintendent","Diana","Rigby","Concord","00670000","120 Meriam Rd",null,"Concord","MA","01742"]
[84,"Superintendent","Diana","Rigby","Concord-Carlisle","06400000","120 Meriam Rd",null,"Concord","MA","01742"]
[85,"Charter School Leader","Diana","Lam","Conservatory Lab Charter (District)","04390000","25 Arlington Street",null,"Brighton","MA","02135"]
[86,"Superintendent","Regina","Nash","Conway","00680000","219 Christian Ln RFD1",null,"South Deerfield","MA","01373"]
[87,"Superintendent","Nancy","McLaughlin","Danvers","00710000","64 Cabot Road",null,"Danvers","MA","01923"]
[88,"Superintendent","Stephen","Russell","Dartmouth","00720000","8 Bush Street",null,"Dartmouth","MA","02748"]
[89,"Superintendent","June","Doe","Dedham","00730000","100 Whiting Avenue","PO Box 246","Dedham","MA","02027"]
[90,"Superintendent","Regina","Nash","Deerfield","00740000","219 Christian Ln RFD1",null,"South Deerfield","MA","01373"]
[91,"Superintendent","Carol","Woodbury","Dennis-Yarmouth","06450000","296 Station Avenue",null,"South Yarmouth","MA","02664"]
[92,"Superintendent","Kathleen","Montagano","Dighton-Rehoboth","06500000","2700 Regional Road",null,"North Dighton","MA","02764"]
[93,"Charter School Leader","Robert","Flynn","Dorchester Collegiate Academy ","04750000","12 Becket Street ","#2","Dorchester","MA",2124]
[94,"Superintendent","Nancy","Lane","Douglas","00770000","21 Davis Street",null,"Douglas","MA","01516"]
[95,"Superintendent","Valerie","Spriggs","Dover","00780000","157 Farm Street",null,"Dover","MA","02030"]
[96,"Superintendent","Valerie","Spriggs","Dover-Sherborn","06550000","157 Farm Street",null,"Dover","MA","02030"]
[97,"Superintendent","William","Mullin","Dracut","00790000","2063 Lakeview Avenue",null,"Dracut","MA","01826"]
[98,"Superintendent","Sean","Gilrein","Dudley-Charlton Reg","06580000","68 Dudley Oxford Road",null,"Dudley","MA","01571"]
[99,"Superintendent","Susan","Skeiber","Duxbury","00820000","130 St. George Street",null,"Duxbury","MA","02332"]
[100,"Superintendent","Margaret","Strojny","East Bridgewater","00830000","11 Plymouth Street",null,"East Bridgewater","MA","02333"]
[101,"Superintendent","Edward","Costa","East Longmeadow","00870000","180 Maple Street",null,"East Longmeadow","MA","01028"]
[102,"Superintendent","Michael","Gradone","Eastham","00850000","78 Eldredge Pkwy",null,"Orleans","MA","02653"]
[103,"Superintendent","Deborah","Carter","Easthampton","00860000","50 Payson Avenue","Second Floor","Easthampton","MA","01027"]
[104,"Superintendent","William","Simmons","Easton","00880000","PO Box 359",null,"North Easton","MA","02356"]
[105,"Superintendent","James","Weiss","Edgartown","00890000","4 Pine St.",null,"Vineyard Haven","MA","02568"]
[106,"Charter School Leader","Jon","Clark","Edward Brooke Charter (District)","04280000","190 Cummins Highway",null,"Roslindale","MA","02131"]
[107,"Superintendent","Joan","Wickman","Erving","00910000","18 Pleasant Street",null,"Erving","MA","01344"]
[108,"Superintendent","Roger","Bourgeois","Essex Agricultural Technical","09130000","PO BOX 362",null,"Hathorne","MA","01937"]
[109,"Superintendent","Frederick","Foresteire","Everett","00930000","121 Vine Street",null,"Everett","MA","02149"]
[110,"Charter School Leader","Ann","Roy","Excel Academy Charter (District)","04100000","1150 Saratoga Street",null,"East Boston","MA","02128"]
[111,"Superintendent","Robert","Baldwin","Fairhaven","00940000","128 Washington Street",null,"Fairhaven","MA","02719"]
[112,"Superintendent","Margery","Mayo-Brown","Fall River","00950000","417 Rock Street",null,"Fall River","MA","02720"]
[113,"Superintendent","Marc","Dupuis","Falmouth","00960000","340 Teaticket Hwy",null,"East Falmouth","MA","02536"]
[114,"Superintendent","Joanne","Austin","Farmington River Reg","06620000","555 N Main Street","PO Box 679","Otis","MA","01253"]
[115,"Superintendent","Andre","Ravenelle","Fitchburg","00970000","376 South Street",null,"Fitchburg","MA","01420"]
[116,"Superintendent","Jon","Lev","Florida","00980000","56 North County Rd",null,"Florida","MA","01247"]
[117,"Charter School Leader","Edward","Blatchford","Four Rivers Charter Public (District)","04130000","248 Colrain Road",null,"Greenfield","MA","01301"]
[118,"Superintendent","Christopher","Martes","Foxborough","00990000","60 South Street","C/O Igo Administration Building","Foxborough","MA","02035"]
[119,"Charter School Leader","Mark","Logan","Foxborough Regional Charter (District)","04460000","131 Central Street",null,"Foxborough","MA","02035"]
[120,"Superintendent","Eugene","Thayer","Framingham","01000000","14 Vernon Street","Suite 201","Framingham","MA","01701"]
[121,"Charter School Leader","Teriann","Schrader","Francis W. Parker Charter Essential (District)","04780000","49 Antietam Street",null,"Devens","MA","01434"]
[122,"Superintendent","Wayne","Ogden","Franklin","01010000","355 East Central Street",null,"Franklin","MA","02038"]
[123,"Superintendent","Richard","Lane","Franklin County Regional Vocational Technical","08180000","82 Industrial Blvd",null,"Turners Falls","MA","01376"]
[124,"Superintendent","Louis","Rodrigues","Freetown","01020000","98 Howland Rd",null,"Lakeville","MA","02347"]
[125,"Superintendent","Louis","Rodrigues","Freetown-Lakeville","06650000","98 Howland Rd",null,"Lakeville","MA","02347"]
[126,"Superintendent","Regina","Nash","Frontier","06700000","219 Christian Ln RFD1",null,"South Deerfield","MA","01373"]
[127,"Superintendent","Carol","Daring","Gardner","01030000","70 Waterford Street",null,"Gardner","MA","01440"]
[128,"Superintendent","David","Hopson","Gateway","06720000","12 Littleville Road",null,"Huntington","MA","01050"]
[129,"Superintendent","Carol","Jacobs","Georgetown","01050000","51 North Street",null,"Georgetown","MA","01833"]
[130,"Superintendent","Kenneth","Rocke","Gill-Montague","06740000","35 Crocker Avenue",null,"Turners Falls","MA","01376"]
[131,"Charter School Leader","Warren","Berube","Global Learning Charter Public (District)","04960000","190 Ashley Boulevard",null,"New Bedford","MA","02746"]
[132,"Superintendent","Christopher","Farmer","Gloucester","01070000","6 School House Rd",null,"Gloucester","MA","01930"]
[133,"Charter School Leader","O'Connor","Jane","Gloucester Community Arts Charter School","04480000","PO Box 1631",null,"Gloucester","MA","01930"]
[134,"Superintendent","Russell","Latham","Gosnold","01090000","16 Williams Street",null,"Rehoboth","MA","02769"]
[135,"Superintendent","Joseph","Connors","Grafton","01100000","30 Providence Rd",null,"Grafton","MA","01519"]
[136,"Superintendent","Patricia","Stevens","Granby","01110000","387 East State Street",null,"Granby","MA","01033"]
[137,"Superintendent","John","Barry","Granville","01120000","86 Powder Mill Road",null,"Southwick","MA","01077"]
[138,"Superintendent","Rogerio","Ramos","Greater Fall River Regional Vocational Technical","08210000","251 Stonehaven Rd",null,"Fall River","MA","02723"]
[139,"Superintendent","Judy","DeLucia","Greater Lawrence Regional Vocational Technical","08230000","57 River Rd",null,"Andover","MA","01810"]
[140,"Superintendent","James","Cassin","Greater Lowell Regional Vocational Technical","08280000","250 Pawtucket Blvd",null,"Tyngsborough","MA","01879"]
[141,"Superintendent","Michael","Shea","Greater New Bedford Regional Vocational Technical","08250000","1121 Ashley Blvd",null,"New Bedford","MA","02745"]
[142,"Superintendent","Susan","Hollins","Greenfield","01140000","141 Davis Street",null,"Greenfield","MA","01301"]
[143,"Superintendent","Alan","Genovese","Groton-Dunstable","06730000","P O Box 729",null,"Groton","MA","01450"]
[144,"Superintendent","Nicholas","Young","Hadley","01170000","125 Russell Street",null,"Hadley","MA","01035"]
[145,"Superintendent","John","Tuffy","Halifax","01180000","250 Pembroke Street",null,"Kingston","MA","02364"]
[146,"Charter School Leader","Volkan Yesilyurt","Yesilyurt ","Hampden Charter School of Science ","04990000","111 Elm Street ","Ste. 4","West Springfield","MA",1089]
[147,"Superintendent","Marinel","McGrath","Hamilton-Wenham","06750000","5 School Street",null,"Wenham","MA","01984"]
[148,"Superintendent","Paul","Gagliarducci","Hampden-Wilbraham","06800000","621 Main Street",null,"Wilbraham","MA","01095"]
[149,"Superintendent","Barbara","Ripa","Hampshire","06830000","19 Stage Rd",null,"Westhampton","MA","01027"]
[150,"Superintendent","William","Ballen","Hancock","01210000","1831 STATE ROAD",null,"RICHMOND","MA","01254"]
[151,"Superintendent","Kristine","Nash","Hanover","01220000","188 Broadway Street",null,"Hanover","MA","02339"]
[152,"Superintendent","Thomas","Jefferson","Harvard","01250000","39 Massachusetts Avenue",null,"Harvard","MA","01451"]
[153,"Superintendent","Carolyn","Cragin","Harwich","01260000","81 Oak Street",null,"Harwich","MA","02645"]
[154,"Superintendent","Patrice","Dardenne","Hatfield","01270000","34 School Street",null,"Hatfield","MA","01038"]
[155,"Superintendent","Raleigh","Buchanan","Haverhill","01280000","4 Summer Street",null,"Haverhill","MA","01830"]
[156,"Superintendent","Michael","Buoniconti","Hawlemont","06850000","24 Ashfield Rd",null,"Shelburne Falls","MA","01370"]
[157,"Charter School Leader","Caren","Walker","Health Careers Academy Charter (District)","04520000","360 Huntington Avenue","c/o 102 Cahners Hall","Boston","MA","02115"]
[158,"Charter School Leader","Janet","Begin","Hill View Montessori Charter Public (District)","04550000","P.O. Box 1545",null,"Haverhill","MA","01831"]
[159,"Charter School Leader","Amy","Aaron","Hilltown Cooperative Charter Public (District)","04500000","132 Main Street","Box 147","Haydenville","MA","01039"]
[160,"Superintendent","Dorothy","Galo","Hingham","01310000","220 Central Street",null,"Hingham","MA","02043"]
[161,"Superintendent","Susan","Martin","Holbrook","01330000","227 Plymouth Street",null,"Holbrook","MA","02343"]
[162,"Superintendent","Daniel","Durgin","Holland","01350000","320 Brookfield Rd",null,"Fiskdale","MA","01518"]
[163,"Superintendent","Bradford","Jackson","Holliston","01360000","370 Hollis Street",null,"Holliston","MA","01746"]
[164,"Superintendent","Eduardo","Carballo","Holyoke","01370000","57 Suffolk Street",null,"Holyoke","MA","01040"]
[165,"Charter School Leader","Sonia","Pope","Holyoke Community Charter (District)","04530000","2200 Northampton St.",null,"Holyoke","MA","01040"]
[166,"Superintendent","Patricia","Ruane","Hopedale","01380000","25 Adin Street",null,"Hopedale","MA","01747"]
[167,"Superintendent","John","Phelan","Hopkinton","01390000","89 Hayden Rowe Street",null,"Hopkinton","MA","01748"]
[168,"Superintendent","Stephen","Dlott","Hudson","01410000","155 Apsley Street",null,"Hudson","MA","01749"]
[169,"Superintendent","Kathleen","Tyrell","Hull","01420000","180 Harborview Road",null,"Hull","MA","02045"]
[170,"Charter School Leader","Aimee","Voletti","Innovation Academy Charter (District)","04350000","72 Tyng Road",null,"Tyngsborough","MA","01879"]
[171,"Superintendent","Jan","Avallone","Institutional Schools","03700000","75 Pleasant Street",null,"Malden","MA","02148"]
[172,"Superintendent","Richard","Korb","Ipswich","01440000","1 Lord Square",null,"Ipswich","MA","01938"]
[173,"Charter School Leader","Joshua","Zoia","KIPP Academy Lynn Charter (District)","04290000","25 Bessom Street",null,"Lynn","MA","01902"]
[174,"Superintendent","Richard","Robbat","King Philip","06900000","18 King Street",null,"Norfolk","MA","02056"]
[175,"Superintendent","John","Tuffy","Kingston","01450000","250 Pembroke Street",null,"Kingston","MA","02364"]
[176,"Superintendent","Louis","Rodrigues","Lakeville","01460000","98 Howland Rd",null,"Lakeville","MA","02347"]
[177,"Superintendent","Rose","Ellis","Lanesborough","01480000","188 Summer Street",null,"Lanesborough","MA","01237"]
[178,"Superintendent","Wilfredo","Laboy","Lawrence","01490000","255 Essex Street",null,"Lawrence","MA","01840"]
[179,"Charter School Leader","Ralph","Carrero","Lawrence Family Development Charter (District)","04540000","34 West Street",null,"Lawrence","MA","01841"]
[180,"Superintendent","Jason","McCandless","Lee","01500000","480 Pleasant Street","Suite 102","Lee","MA","01238"]
[181,"Superintendent","Paul","Soojian","Leicester","01510000","1078 Main Street",null,"Leicester","MA","01524"]
[182,"Superintendent","Marianne","Young","Lenox","01520000","6 Walker Street",null,"Lenox","MA","01240"]
[183,"Superintendent","Nadine","Binkley","Leominster","01530000","24 Church Street",null,"Leominster","MA","01453"]
[184,"Superintendent","Joan","Wickman","Leverett","01540000","18 Pleasant Street",null,"Erving","MA","01344"]
[185,"Superintendent","Paul","Ash","Lexington","01550000","146 Maple Street",null,"Lexington","MA","02420"]
[186,"Superintendent","Michael","Brandmeyer","Lincoln","01570000","1 Ballfield Road",null,"Lincoln","MA","01773"]
[187,"Superintendent","John","Ritchie","Lincoln-Sudbury","06950000","390 Lincoln Rd",null,"Sudbury","MA","01776"]
[188,"Superintendent","Diane","Bemis","Littleton","01580000","PO Box 1486","33 Shattuck St.","Littleton","MA","01460"]
[189,"Superintendent","Elizabeth","Hart","Longmeadow","01590000","127 Grassy Gutter Rd",null,"Longmeadow","MA","01106"]
[190,"Superintendent","Chris","Scott","Lowell","01600000","155 Merrimack Street",null,"Lowell","MA","01852"]
[191,"Charter School Leader","Rida","Eng","Lowell Community Charter Public (District)","04560000","206 Jackson Street",null,"Lowell","MA","01852"]
[192,"Charter School Leader","Margaret","McDevitt","Lowell Middlesex Academy Charter (District)","04580000","67 Middle St",null,"Lowell","MA","01852"]
[193,"Superintendent","Theresa","Kane","Ludlow","01610000","63 Chestnut Street",null,"Ludlow","MA","01056"]
[194,"Superintendent","Loxi","Calmes","Lunenburg","01620000","1033 Mass Avenue",null,"Lunenburg","MA","01462"]
[195,"Superintendent","Catherine","Latham","Lynn","01630000","90 Commercial Street",null,"Lynn","MA","01905"]
[196,"Superintendent","Robert","Hassett","Lynnfield","01640000","55 Summer Street",null,"Lynnfield","MA","01940"]
[197,"Charter School Leader","Alan","Safran","MATCH Charter Public High (District)","04690000","1001 Commonwealth Avenue",null,"Boston","MA","02215"]
[198,"Superintendent","Robert","Salvatelli","Ma Academy for Math and Science","04680000","85 Prescott St.",null,"Worcester","MA","01605"]
[199,"Superintendent","Sidney","Smith","Malden","01650000","200 Pleasant Street",null,"Malden","MA","02148"]
[200,"Superintendent","Marcia","O'Neil","Manchester Essex Regional","06980000","PO BOX 1407",null,"Manchester","MA","01944"]
[201,"Superintendent","Brenda","Hodges","Mansfield","01670000","2 Park Row",null,"Mansfield","MA","02048"]
[202,"Superintendent","Paul","Dulac","Marblehead","01680000","9 Widger Road",null,"Marblehead","MA","01945"]
[203,"Charter School Leader","Helena","Cullen-Hamzeh","Marblehead Community Charter Public (District)","04640000","17 Lime Street",null,"Marblehead","MA","01945"]
[204,"Superintendent","William","Cooper","Marion","01690000","135 Marion Rd",null,"Mattapoisett","MA","02739"]
[205,"Superintendent","Mary","Carlson","Marlborough","01700000","17 Washington Street",null,"Marlborough","MA","01752"]
[206,"Superintendent","Middleton","McGoodwin","Marshfield","01710000","76 South River Street",null,"Marshfield","MA","02050"]
[207,"Charter School Leader","Kenneth","Keenan","Marstons Mills East HM Charter Public (District)","04270000","760 Osterville/West Barnstable Road",null,"Marston Mills","MA","02648"]
[208,"Charter School Leader","Robert","Moore","Martha's Vineyard Charter (District)","04660000","PO Box 1150",null,"West Tisbury","MA","02575"]
[209,"Superintendent","James","Weiss","Marthas Vineyard","07000000","4 Pine St",null,"Vineyard Haven","MA","02568"]
[210,"Charter School Leader","Alan","Katz","Martin Luther King Jr. Charter School of Excellence (District)","04920000","649 State Street",null,"Springfield","MA","01109"]
[211,"Superintendent","Claire","Kohn","Masconomet","07050000","20 Endicott Rd",null,"Topsfield","MA","01983"]
[212,"Superintendent","Ann","Bradshaw","Mashpee","01720000","150-A Old Barnstable Road",null,"Mashpee","MA","02649"]
[213,"Superintendent","William","Cooper","Mattapoisett","01730000","135 Marion Rd",null,"Mattapoisett","MA","02739"]
[214,"Superintendent","Mark","Masterson","Maynard","01740000","12 Bancroft Street",null,"Maynard","MA","01754"]
[215,"Superintendent","Robert","Maguire","Medfield","01750000","459 Main St","3rd Fl","Medfield","MA","02052"]
[216,"Superintendent","Roy","Belson","Medford","01760000","489 Winthrop Street",null,"Medford","MA","02155"]
[217,"Superintendent","Judith","Evans","Medway","01770000","45 Holliston Street",null,"Medway","MA","02053"]
[218,"Superintendent","Joseph","Casey","Melrose","01780000","360 Lynn Fells Pkwy",null,"Melrose","MA","02176"]
[219,"Superintendent","Antonio","Fernandes","Mendon-Upton","07100000","150 North Ave",null,"Mendon","MA","01756"]
[220,"Superintendent","Jeanne","Whitten","Methuen","01810000","10 Ditson Pl",null,"Methuen","MA","01844"]
[221,"Superintendent","Robert","Sullivan","Middleborough","01820000","30 Forest Street",null,"Middleborough","MA","02346"]
[222,"Superintendent","Bernard","Creeden","Middleton","01840000","28 Middleton Road",null,"Boxford","MA","01921"]
[223,"Superintendent","Robert","Tremblay","Milford","01850000","31 West Fountain Street",null,"Milford","MA","01757"]
[224,"Superintendent","Susan","Hitchcock","Millbury","01860000","12 Martin Street",null,"Millbury","MA","01527"]
[225,"Superintendent","Nancy","Gustafson","Millis","01870000","245 Plain Street","Central Office","Millis","MA","02054"]
[226,"Superintendent","Mary","Gormley","Milton","01890000","25 Gile Road",null,"Milton","MA","02186"]
[227,"Superintendent","Edward","Bouquillon","Minuteman Regional Vocational Technical","08300000","758 Marrett Rd",null,"Lexington","MA","02421"]
[228,"Superintendent","Michael","Buoniconti","Mohawk Trail","07170000","24 Ashfield Rd",null,"Shelburne Falls","MA","01370"]
[229,"Superintendent","Linda","Denault","Monson","01910000","P O Box 159",null,"Monson","MA","01057"]
[230,"Superintendent","James","Culkeen","Montachusett Regional Vocational Technical","08320000","1050 Westminster Street",null,"Fitchburg","MA","01420"]
[231,"Superintendent","William","Travis","Mount Greylock","07150000","1781 Cold Spring Rd",null,"Williamstown","MA","01267"]
[232,"Charter School Leader","Joseph","McCleary","Mystic Valley Regional Charter (District)","04700000","45 Lebanon Street",null,"Malden","MA","02148"]
[233,"Superintendent","Joseph","Lisi","Nahant","01960000","290 Castle Road",null,"Nahant","MA","01908"]
[234,"Superintendent","Robert","Pellicone","Nantucket","01970000","10 Surfside Road",null,"Nantucket","MA","02554"]
[235,"Superintendent","Roseli","Weiss","Narragansett","07200000","462 Baldwinville Road",null,"Baldwinville","MA","01436"]
[236,"Superintendent","Michael","Wood","Nashoba","07250000","50 Mechanic Street",null,"Bolton","MA","01740"]
[237,"Superintendent","Judith","Klimkiewicz","Nashoba Valley Regional Vocational Technical","08520000","100 Littleton Road",null,"Westford","MA","01886"]
[238,"Superintendent","Peter","Sanchioni","Natick","01980000","13 East Central Street",null,"Natick","MA","01760"]
[239,"Superintendent","Michael","Gradone","Nauset","06600000","78 Eldredge Pkwy",null,"Orleans","MA","02653"]
[240,"Superintendent","Daniel","Gutekanst","Needham","01990000","1330 Highland Avenue",null,"Needham","MA","02492"]
[241,"Charter School Leader","Kevin","Andrews","Neighborhood House Charter (District)","04440000","21 Queen Street",null,"Dorchester","MA","02122"]
[242,"Superintendent","Portia","Bonner","New Bedford","02010000","455 County Street","C/O Paul Rodrigues Administration Bldg.","New Bedford","MA","02740"]
[243,"Charter School Leader","Tromblay","Nancy","New Leadership Charter (District)","04710000","37 Alderman Street",null,"Springfield","MA","01108"]
[244,"Superintendent","Joan","Wickman","New Salem-Wendell","07280000","18 Pleasant Street",null,"Erving","MA","01344"]
[245,"Superintendent","Kevin","Lyons","Newburyport","02040000","70 Low Street",null,"Newburyport","MA","01950"]
[246,"Superintendent","Jeffrey","Young","Newton","02070000","100 Walnut Street",null,"Newtonville","MA","02460"]
[247,"Superintendent","Don","Leclerc","Norfolk","02080000","70 Boardman Street",null,"Norfolk","MA","02056"]
[248,"Superintendent","Michael","McFarland","Norfolk County Agricultural","09150000","400 Main Street",null,"Walpole","MA","02081"]
[249,"Superintendent","James","Montepare","North Adams","02090000","191 East Main Street","Ste 1","North Adams","MA","01247"]
[250,"Superintendent","Vincent","Marini","North Andover","02110000","43 High Street",null,"North Andover","MA","01845"]
[251,"Superintendent","James","Rice","North Attleborough","02120000","6 Morse Street",null,"No. Attleborough","MA","02760"]
[252,"Superintendent","Erin","Nosek","North Brookfield","02150000","10 New School Drive",null,"North Brookfield","MA","01535"]
[253,"Charter School Leader","Stephanie","Harden","North Central Charter Essential (District)","04740000","1 Oak Hill Road","Suite 100","Fitchburg","MA","01420"]
[254,"Superintendent","Maureen","Marshall","North Middlesex","07350000","23 Main Street",null,"Townsend","MA","01469"]
[255,"Superintendent","David","Troughton","North Reading","02170000","19 Sherman Road",null,"North Reading","MA","01864"]
[256,"Superintendent","Amelia","O'Malley","North Shore Regional Vocational Technical","08540000","P.O. Box 806","30 Log Bridge Rd","Middleton","MA","01949"]
[257,"Superintendent","Isabelina","Babcock","Northampton","02100000","212 Main Street",null,"Northampton","MA","01060"]
[258,"Superintendent","Arthur","Apostolou","Northampton-Smith Vocational Agricultural","04060000","80 Locust Street",null,"Northampton","MA","01060"]
[259,"Superintendent","Charles","Gobron","Northboro-Southboro","07300000","53 Parkerville Road",null,"Southborough","MA","01772"]
[260,"Superintendent","Charles","Gobron","Northborough","02130000","53 Parkerville Road",null,"Southborough","MA","01772"]
[261,"Superintendent","Henry","O'Donnell","Northbridge","02140000","87 Linwood Avenue",null,"Whitinsville","MA","01588"]
[262,"Superintendent","Patricia","Cronin","Northeast Metropolitan Regional Vocational Technical","08530000","100 Hemlock Rd",null,"Wakefield","MA","01880"]
[263,"Superintendent","James","Brosnan","Northern Berkshire Regional Vocational Technical","08510000","70 Hodges Cross Rd",null,"North Adams","MA","01247"]
[264,"Superintendent","Patricia","Ansay","Norton","02180000","64 West Main Street",null,"Norton","MA","02766"]
[265,"Superintendent","Donald","Beaudette","Norwell","02190000","322 Main Street",null,"Norwell","MA","02061"]
[266,"Superintendent","John","Moretti","Norwood","02200000","275 Prospect Street","PO BOX 67","Norwood","MA","02062"]
[267,"Superintendent","James","Weiss","Oak Bluffs","02210000","4 Pine Street","RR2 Box 261","Vineyard Haven","MA","02568"]
[268,"Superintendent","Gary","Brown","Old Colony Regional Vocational Technical","08550000","476 North Avenue",null,"Rochester","MA","02770"]
[269,"Superintendent","William","Cooper","Old Rochester","07400000","135 Marion Rd",null,"Mattapoisett","MA","02739"]
[270,"Superintendent","Paul","Burnim","Orange","02230000","131 West Main Street",null,"Orange","MA","01364"]
[271,"Superintendent","Michael","Gradone","Orleans","02240000","78 Eldredge Pkwy",null,"Orleans","MA","02653"]
[272,"Superintendent","Ernest","Boss","Oxford","02260000","5 Sigourney Street",null,"Oxford","MA","01540"]
[273,"Superintendent","Gerald","Fournier","Palmer","02270000","24 Converse Street","c/o Suite 1","Palmer","MA","01069"]
[274,"Superintendent","Gerald","Paist","Pathfinder Regional Vocational Technical","08600000","240 Sykes Street",null,"Palmer","MA","01069"]
[275,"Superintendent","Charles","Burnett","Peabody","02290000","21 Johnson Street",null,"Peabody","MA","01960"]
[276,"Superintendent","Maria","Geryk","Pelham","02300000","170 Chestnut Street","Business Office","Amherst","MA","01002"]
[277,"Superintendent","Frank","Hackett","Pembroke","02310000","72 Pilgrim Road","Office of the Superintendent","Pembroke","MA","02359"]
[278,"Superintendent","Paul","Livingston","Pentucket","07450000","22 Main Street",null,"West Newbury","MA","01985"]
[279,"Superintendent","Patricia","Martin","Petersham","02340000","P O Box 148",null,"Petersham","MA","01366"]
[280,"Charter School Leader","Megan","Mehr","Phoenix Charter Academy (District)","04930000","59 Nichols St",null,"Chelsea","MA","02150"]
[281,"Charter School Leader","Mike","Basarir","Pioneer Charter School of Science (District)","04940000","51-59 Summer Street",null,"Everett","MA","02149"]
[282,"Superintendent","Dayle","Doiron","Pioneer Valley","07500000","97 F Sumner Turner Rd",null,"Northfield","MA","01360"]
[283,"Charter School Leader","Kathleen","Wang","Pioneer Valley Chinese Immersion Charter(District)","04970000","317 Russell Street",null,"Hadley","MA","01035"]
[284,"Charter School Leader","Robert","Brick","Pioneer Valley Performing Arts Charter Public (District)","04790000","15 Mulligan Drive",null,"South Hadley","MA","01075"]
[285,"Superintendent","Howard","Eberwein","Pittsfield","02360000","269 First Street",null,"Pittsfield","MA","01201"]
[286,"Superintendent","David","Raiche","Plainville","02380000","68 Messenger Street",null,"Plainville","MA","02762"]
[287,"Superintendent","Gary","Maestas","Plymouth","02390000","253 South Meadow Rd",null,"Plymouth","MA","02360"]
[288,"Superintendent","John","Tuffy","Plympton","02400000","250 Pembroke Street",null,"Kingston","MA","02364"]
[289,"Charter School Leader","Jed","Lippard","Prospect Hill Academy Charter (District)","04870000","15 Webster Avenue",null,"Somerville","MA","02143"]
[290,"Superintendent","Jessica","Waugh","Provincetown","02420000","2 Mayflower Lane",null,"Provincetown","MA","02657"]
[291,"Superintendent","Sue","Gee","Quabbin","07530000","872 South Street",null,"Barre","MA","01005"]
[292,"Superintendent","Brett","Kustigian","Quaboag Regional","07780000","48 High Street","PO Box 1538","Warren","MA","01083"]
[293,"Superintendent","Richard","Decristofaro","Quincy","02430000","159 Burgin Parkway",null,"Quincy","MA","02169"]
[294,"Superintendent","Gholamreza","Namin","Ralph C Mahar","07550000","507 South Main Street","P.O. Box 680","Orange","MA","01364"]
[295,"Superintendent","Richard","Silverman","Randolph","02440000","40 Highland Avenue",null,"Randolph","MA","02368"]
[296,"Superintendent","Patrick","Schettini","Reading","02460000","82 Oakland Road",null,"Reading","MA","01867"]
[297,"Superintendent","Paul","Dakin","Revere","02480000","101 School Street",null,"Revere","MA","02151"]
[298,"Superintendent","William","Ballen","Richmond","02490000","188 Summer Street",null,"Lanesborough","MA","01237"]
[299,"Charter School Leader","Jill","Crafts","Rising Tide Charter Public (District)","04830000","6 Resnik Road",null,"Plymouth","MA","02360"]
[300,"Charter School Leader","Dale","Bishop","River Valley Charter (District)","04820000","2 Perry Way",null,"Newburyport","MA","01950"]
[301,"Charter School Leader","Janet","Morris-Henry","Robert M. Hughes Academy Charter Public (District)","04510000","91 School Street",null,"Springfield","MA","01105"]
[302,"Superintendent","William","Cooper","Rochester","02500000","135 Marion Rd",null,"Mattapoisett","MA","02739"]
[303,"Superintendent","John","Retchless","Rockland","02510000","34 MacKinlay Way",null,"Rockland","MA","02370"]
[304,"Superintendent","Susan","King","Rockport","02520000","24 Jerdens Lane","c/o Rockport Public Schools","Rockport","MA","01966"]
[305,"Superintendent","Michael","Buoniconti","Rowe","02530000","24 Ashfield Rd",null,"Shelburne Falls","MA","01370"]
[306,"Charter School Leader","Will","Austin","Roxbury Preparatory Charter (District)","04840000","120 Fisher Avenue",null,"Roxbury","MA","02120"]
[307,"Charter School Leader","Maretta","Thomsen","Sabis International Charter (District)","04410000","160 Joan Street",null,"Springfield","MA","01129"]
[308,"Superintendent","William","Cameron","Salem","02580000","29 Highland Avenue",null,"Salem","MA","01970"]
[309,"Charter School Leader","Sean","O'Neil","Salem Academy Charter (District)","04850000","45 Congress St.","Shetland Park","Salem","MA","01970"]
[310,"Superintendent","Mary","Johnson","Sandwich","02610000","365 Quaker Meetinghouse Road","Suite A","East Sandwich","MA","02537"]
[311,"Superintendent","Richard","Langlois","Saugus","02620000","23 Main Street",null,"Saugus","MA","01906"]
[312,"Superintendent","Jon","Lev","Savoy","02630000","26 Chapel Road",null,"Savoy","MA","01256"]
[313,"Superintendent","Mark","Mason","Scituate","02640000","606 C J Cushing Hwy",null,"Scituate","MA","02066"]
[314,"Superintendent","Emile","Chevrette","Seekonk","02650000","25 Water Lane",null,"Seekonk","MA","02771"]
[315,"Charter School Leader","Krista","Piazza","Seven Hills Charter Public (District)","04860000","51 Gage Street",null,"Worcester","MA","01605"]
[316,"Superintendent","Barbara","Dunham","Sharon","02660000","1 School Street",null,"Sharon","MA","02067"]
[317,"Superintendent","Charles","Lyons","Shawsheen Valley Regional Vocational Technical","08710000","100 Cook Street",null,"Billerica","MA","01821"]
[318,"Superintendent","Valerie","Spriggs","Sherborn","02690000","157 Farm Street",null,"Dover","MA","02030"]
[319,"Superintendent","Malcolm","Reid","Shirley","02700000","34 Lancaster Rd",null,"Shirley","MA","01464"]
[320,"Superintendent","Anthony","Bent","Shrewsbury","02710000","100 Maple Avenue",null,"Shrewsbury","MA","01545"]
[321,"Superintendent","Joan","Wickman","Shutesbury","02720000","18 Pleasant Street",null,"Erving","MA","01344"]
[322,"Charter School Leader","Euthemia","Gilman","Silver Hill Horace Mann Charter (District)","04770000","675 Washington Street",null,"Haverhill","MA","01832"]
[323,"Superintendent","John","Tuffy","Silver Lake","07600000","250 Pembroke Street",null,"Kingston","MA","02364"]
[324,"Charter School Leader","Karmala","Sherwood","Smith Leadership Academy Charter Public (District)","04190000","23 Leonard Street",null,"Boston","MA","02122"]
[325,"Superintendent","Richard","Medeiros","Somerset","02730000","580 Whetstone Hill Road",null,"Somerset","MA","02726"]
[326,"Superintendent","Anthony","Pierantozzi","Somerville","02740000","181 Washington Street",null,"Somerville","MA","02143"]
[327,"Superintendent","Gus","Sayer","South Hadley","02780000","116 Main Street",null,"South Hadley","MA","01075"]
[328,"Superintendent","James","Lynch","South Middlesex Regional Vocational Technical","08290000","750 Winter Street",null,"Framingham","MA","01702"]
[329,"Charter School Leader","Prudence","Goodale","South Shore Charter Public (District)","04880000","100 Longwater Circle",null,"Norwell","MA","02061"]
[330,"Superintendent","Charles","Homer","South Shore Regional Vocational Technical","08730000","476 Webster Street",null,"Hanover","MA","02339"]
[331,"Superintendent","Barbara","Ripa","Southampton","02750000","19 Stage Rd",null,"Westhampton","MA","01027"]
[332,"Superintendent","Charles","Gobron","Southborough","02760000","53 Parkerville Road",null,"Southborough","MA","01772"]
[333,"Superintendent","Dale","Hanley","Southbridge","02770000","41 Elm Street",null,"Southbridge","MA","01550"]
[334,"Superintendent","Luis","Lopes","Southeastern Regional Vocational Technical","08720000","250 Foundry Street",null,"South Easton","MA","02375"]
[335,"Superintendent","Michael","Singleton","Southern Berkshire","07650000","PO BOX 339",null,"Sheffield","MA","01257"]
[336,"Superintendent","David","Papagni","Southern Worcester County Regional Vocational Technical","08760000","57 Old Muggett Hill Road",null,"Charlton","MA","01507"]
[337,"Superintendent","John","Barry","Southwick-Tolland","07660000","86 Powder Mill Road",null,"Southwick","MA","01077"]
[338,"Superintendent","Ralph","Hicks","Spencer-E Brookfield","07670000","306 Main Street",null,"Spencer","MA","01562"]
[339,"Charter School Leader","Sigalovsky","Julia","Spirit of Knowledge Charter School","04760000","PO Box 20164",null,"Worcester","MA","01602"]
[340,"Superintendent","Alan","Ingram","Springfield","02810000","195 State Street","PO Box 1410","Springfield","MA","01102"]
[341,"Superintendent","Les","Olson","Stoneham","02840000","149 Franklin Street",null,"Stoneham","MA","02180"]
[342,"Superintendent","Anthony","Sarno","Stoughton","02850000","232 Pearl Street",null,"Stoughton","MA","02072"]
[343,"Superintendent","Daniel","Durgin","Sturbridge","02870000","320 Brookfield Rd",null,"Fiskdale","MA","01518"]
[344,"Charter School Leader","Eric","Hieser","Sturgis Charter Public (District)","04890000","427 Main Street",null,"Hyannis","MA","02601"]
[345,"Superintendent","John","Brackett","Sudbury","02880000","40 Fairbank Rd",null,"Sudbury","MA","01776"]
[346,"Superintendent","Regina","Nash","Sunderland","02890000","219 Christian Ln RFD1",null,"South Deerfield","MA","01373"]
[347,"Superintendent","Cecilia","Bella","Sutton","02900000","383 Boston Rd",null,"Sutton","MA","01590"]
[348,"Superintendent","Matthew","Malone","Swampscott","02910000","207 Forest Avenue",null,"Swampscott","MA","01907"]
[349,"Superintendent","Stephan","Flanagan","Swansea","02920000","1 Gardner's Neck Road",null,"Swansea","MA","02777"]
[350,"Superintendent","Daniel","Durgin","Tantasqua","07700000","320A Brookfield Rd",null,"Fiskdale","MA","01518"]
[351,"Superintendent","Arthur","Stellar","Taunton","02930000","110 County Street",null,"Taunton","MA","02780"]
[352,"Superintendent","Christine","McGrath","Tewksbury","02950000","139 Pleasant Street",null,"Tewksbury","MA","01876"]
[353,"Superintendent","James","Weiss","Tisbury","02960000","4 Pine Street","RR2 Box 261","Vineyard Haven","MA","02568"]
[354,"Superintendent","Bernard","Creeden","Topsfield","02980000","28 Middleton Road",null,"Boxford","MA","01921"]
[355,"Superintendent","Barbara","Renzoni","Tri County Regional Vocational Technical","08780000","147 Pond Street",null,"Franklin","MA","02038"]
[356,"Superintendent","Sandra","Halloran","Triton","07730000","112 Elm Street",null,"Byfield","MA","01922"]
[357,"Superintendent","Brian","Davis","Truro","03000000","P O Box 2029",null,"Truro","MA","02666"]
[358,"Superintendent","Darrell","Lockwood","Tyngsborough","03010000","50 Norris Rd",null,"Tyngsborough","MA","01879"]
[359,"Superintendent","James","Weiss","Up-Island Regional","07740000","4 Pine Street",null,"Vineyard Haven","MA","02568"]
[360,"Superintendent","Kevin","Farr","Upper Cape Cod Regional Vocational Technical","08790000","220 Sandwich Rd",null,"Bourne","MA","02532"]
[361,"Superintendent","Daniel","Stefanilo","Uxbridge","03040000","21 South Main Street",null,"Uxbridge","MA","01569"]
[362,"Superintendent","Thomas","Pandiscio","Wachusett","07750000","1745 Main Street","c/o Jefferson School","Jefferson","MA","01522"]
[363,"Superintendent","Joan","Landers","Wakefield","03050000","60 Farm Street",null,"Wakefield","MA","01880"]
[364,"Superintendent","Daniel","Durgin","Wales","03060000","320 Brookfield Rd",null,"Fiskdale","MA","01518"]
[365,"Superintendent","Lincoln","Lynch","Walpole","03070000","135 School Street",null,"Walpole","MA","02081"]
[366,"Superintendent","Peter","Azar","Waltham","03080000","617 Lexington Street",null,"Waltham","MA","02452"]
[367,"Superintendent","Mary","Beach","Ware","03090000","P O Box 240",null,"Ware","MA","01082"]
[368,"Superintendent","Barry","Rabinovitch","Wareham","03100000","54 Marion Road",null,"Wareham","MA","02571"]
[369,"Superintendent","Steven","Hiersche","Watertown","03140000","30 Common Street",null,"Watertown","MA","02472"]
[370,"Superintendent","Gary","Burton","Wayland","03150000","41 Cochituate Rd",null,"Wayland","MA","01778"]
[371,"Superintendent","Gregory","Ciardi","Webster","03160000","P.O. Box 430",null,"Webster","MA","01570"]
[372,"Superintendent","Bella","Wong","Wellesley","03170000","40 Kingsbury Street",null,"Wellesley","MA","02481"]
[373,"Superintendent","Michael","Gradone","Wellfleet","03180000","78 Eldredge Pkwy",null,"Orleans","MA","02653"]
[374,"Superintendent","Thomas","Kane","West Boylston","03220000","125 Crescent Street",null,"West Boylston","MA","01583"]
[375,"Superintendent","Patricia","Oakley","West Bridgewater","03230000","2 Spring Street",null,"West Bridgewater","MA","02379"]
[376,"Superintendent","Suzanne","Marotta","West Springfield","03320000","26 Central Street",null,"West Springfield","MA","01089"]
[377,"Superintendent","Anne","Towle","Westborough","03210000","45 West Main Street","P O Box 1152","Westborough","MA","01581"]
[378,"Superintendent","Shirley","Alvira","Westfield","03250000","22 Ashley Street",null,"Westfield","MA","01085"]
[379,"Superintendent","Everett","Olsen","Westford","03260000","23 Depot Street",null,"Westford","MA","01886"]
[380,"Superintendent","Barbara","Ripa","Westhampton","03270000","19 Stage Rd",null,"Westhampton","MA","01027"]
[381,"Superintendent","Cheryl","Maloney","Weston","03300000","89 Wellesley Street",null,"Weston","MA","02493"]
[382,"Superintendent","Linda","Galton","Westport","03310000","17 Main Rd",null,"Westport","MA","02790"]
[383,"Superintendent","John","Antonucci","Westwood","03350000","220 Nahatan Street",null,"Westwood","MA","02090"]
[384,"Superintendent","Mary","Livingstone","Weymouth","03360000","111 Middle Street",null,"Weymouth","MA","02189"]
[385,"Superintendent","Regina","Nash","Whately","03370000","219 Christian Ln RFD1",null,"South Deerfield","MA","01373"]
[386,"Superintendent","John","McEwan","Whitman-Hanson","07800000","610 Franklin Street",null,"Whitman","MA","02382"]
[387,"Superintendent","William","DeRosa","Whittier Regional Vocational Technical","08850000","115 Amesbury Line Rd",null,"Haverhill","MA","01830"]
[388,"Superintendent","Barbara","Ripa","Williamsburg","03400000","19 Stage Rd",null,"Westhampton","MA","01027"]
[389,"Superintendent","Rose","Ellis","Williamstown","03410000","115 Church Street",null,"Williamstown","MA","01267"]
[390,"Superintendent","Joanne","Benton","Wilmington","03420000","161 Church Street",null,"Wilmington","MA","01887"]
[391,"Superintendent","Brooke","Clenchy","Winchendon","03430000","175 Grove Street",null,"Winchendon","MA","01475"]
[392,"Superintendent","William","McAlduff","Winchester","03440000","154 Horn Pond Brk Rd",null,"Winchester","MA","01890"]
[393,"Superintendent","Steven","Jenkins","Winthrop","03460000","45 Pauline Street",null,"Winthrop","MA","02152"]
[394,"Superintendent","Carl","Batchelder","Woburn","03470000","55 Locust Street",null,"Woburn","MA","01801"]
[395,"Superintendent","Deirdre","Loughlin","Worcester","03480000","20 Irving Street",null,"Worcester","MA","01609"]
[396,"Superintendent","Jeffrey","Marsden","Wrentham","03500000","120 Taunton Street",null,"Wrentham","MA","02093"]
[397,"Superintendent","Susan","Rees","ACCEPT Education Collaborative","05500000","220 North Main Street","Suite 201","Natick","MA","01760"]
[398,"Superintendent","Cathy","Cummins","Assabet Valley Collaborative","05020000","57 Orchard Street",null,"Marlborough","MA","01752"]
[399,"Superintendent","Susan","Hassan","Bi-County Collaborative (BICO)","05040000","397 East Central Street",null,"Franklin","MA","02038"]
[400,"Superintendent","Michael","Fitzpatrick","Blackstone Valley Collaborative","05060000","65 Pleasant Street",null,"Upton","MA","01568"]
[401,"Superintendent","Teresa","Watts","C.A.S.E. Concord Area SPED Collaborative","05160000","120 Meriam Rd",null,"Concord","MA","01742"]
[402,"Superintendent","Edward","McCaul","CAPS Educational Collaborative","05140000","53 School Street",null,"Gardner","MA","01440"]
[403,"Superintendent","Michael","Palladino","CHARMS Collaborative","05200000","137 Walnut Street",null,"Stoughton","MA","02072"]
[404,"Superintendent","Walter","Healey","Cape Cod Collaborative","05120000","P O Box 3086","5700 LeMay Avenue","Otis ANGB","MA","02542"]
[405,"Superintendent","Marco","Rodrigues","Central Massachusetts SPED Collaborative","05180000","11 McKeon Road",null,"Worcester","MA","01610"]
[406,"Superintendent","Dorsey","Yearley","EDCO Collaborative","05230000","281 Winter Street",null,"Waltham","MA","02451"]
[407,"Superintendent","Richard","Murphy","FLLAC Collaborative","05240000","2 Shaker Road, Suite B210",null,"Shirley","MA","01464"]
[408,"Superintendent","John","Mara","Greater Lawrence Educational Collaborative (GLEC)","05280000","480 Broadway Ave",null,"Methuen","MA","01844"]
[409,"Superintendent","Joan","Schuman","Hampshire Educational Collaborative","05320000","97 Hawley Street",null,"Northampton","MA","01060"]
[410,"Superintendent","Patric","Barbieri","LABBB Collaborative","05340000","281 Winter Street","Suite 100","Waltham","MA","02451"]
[411,"Superintendent","Anne","McKenzie","Lower Pioneer Valley Educational Collaborative","05360000","174 Brush Hill Avenue",null,"West Springfield","MA","01089"]
[412,"Superintendent","Donna","Goodell","Merrimack Educational Collaborative","05400000","40 Linnell Circle",null,"Billerica","MA","01821"]
[413,"Superintendent","Eleanor","Moody","NEED Collaborative","05420000","P O Box 896",null,"Truro","MA","02666"]
[414,"Superintendent","Joanne","Sullivan","North River Collaborative","05440000","198 Spring Street",null,"Rockland","MA","02370"]
[415,"Superintendent","Robert","Gass","Northshore Education Consortium","05460000","112 Sohier Rd",null,"Beverly","MA","01915"]
[416,"Superintendent","Judith","Riggs","Pilgrim Area Collaborative (PAC)","05480000","120 Center Street","P. O. Box 1098","Pembroke","MA","02359"]
[417,"Superintendent","John","Farrington","Project SPOKE Collaborative","05560000","64 W Main St",null,"Norton","MA","02766"]
[418,"Superintendent","Martin","Hanley","READS Collaborative","05580000","105 East Grove Street",null,"Middleborough","MA","02346"]
[419,"Superintendent","George","Flynn","SEEM Collaborative","05620000","92 Montvale Ave","Suite 3500","Stoneham","MA","02180"]
[420,"Superintendent","Sherye","Weisz","SMARTS Collaborative","05660000","P.O.Box 356",null,"Attleboro","MA","02703"]
[421,"Superintendent","Elizabeth","Kelley","Shore Educational Collaborative","05640000","100 Revere Beach Parkway","Owen Center","Chelsea","MA","02150"]
[422,"Superintendent","Peter","Kopcha","South Berkshire Educational Collaborative","05680000","PO Box 502",null,"Great Barrington","MA","01230"]
[423,"Superintendent","David","Heimbecker","South Coast Educational Collaborative","05220000","2201 G.A.R. Highway",null,"Swansea","MA","02777"]
[424,"Superintendent","Michael","Savage","South Shore Educational Collaborative","05740000","90 Industrial Park Road",null,"Hingham","MA","02043"]
[425,"Superintendent","Catherine","Cooper","Southeastern Mass. Educational Collaborative (SMEC)","05700000","4238 Acushnet Avenue",null,"New Bedford","MA","02745"]
[426,"Superintendent","Beth","Gonyea","Southern Worcester County Educational Collaborative","05720000","P O Box 517",null,"Southbridge","MA","01550"]
[427,"Superintendent","John","Connolly","The Education Cooperative (TEC)","05760000","PO Box 186",null,"Dedham","MA","02027"]